Workbook

Sheet parameters
A1: Parameter sheet | Q1: do not remove | R1: NO
R2: YES | X2: sutter kocher parameters | AA2: standard parameters | AD2: # of goals
B3: NETWORK PARAMETERS | X3: 0 | Y3: 0.05 | AA3: 0 | AB3: 0.05 | AD3: 0 | AE3: 0.05
C4: min/average | D4: max/stdev | X4: 0.05 | Y4: 0.01 | AA4: 0.05 | AB4: 0.01 | AD4: 0.05 | AE4: 0.01
B5: initial level | C5: 0 | D5: 0.05 | R5: 1 | X5: 0 | Y5: 0.1 | AA5: 0 | AB5: 0.02 | AD5: 0 | AE5: 0.1
B6: resource consumption rate r | C6: 0.05 | D6: 0.01 | R6: 2 | X6: 0.2 | Y6: 0.03 | AA6: 1 | AB6: 0.15 | AD6: 0.5 | AE6: 0.15
B7: connection strength | C7: 0 | D7: 0.02 | R7: 3 | X7: 0.5 | Y7: 0.25 | AA7: 0.5 | AB7: 0.25 | AD7: 0.5 | AE7: 0.25
B8: genetic factor normal case | C8: 1 | D8: 0.15 | R8: 4 | X8: 1 | Y8: 350 | AA8: 1 | AB8: 350 | AD8: 1 | AE8: 350
B9: genetic factor emergenic case | C9: 0.5 | D9: 0.25 | R9: 5 | X9: 10 | Y9: 25 | AA9: 10 | AB9: 25 | AD9: 10 | AE9: 25
B10: delay of onset | C10: 1 | D10: 350
B11: maximum range | C11: 10 | D11: 25 | X11: 0.25 | AA11: 0.25 | AD11: 0.25
B13: connection probability | C13: 0.25
B18: PRODUCT PARAMETERS | X18: 0.004 | AA18: 0.002 | AD18: 0.005
B20: Poisson parameter | C20: 0.002 | X20: 1 | AA20: 1 | AD20: 1
B22: condition_value | C22: 1 | E22: simple model | X22: 0 | AA22: 0 | AD22: 0
B24: threshold_value | C24: 0
X25: 0.7 | AA25: 0.7 | AD25: 0.7
B26: Correlated Frequency-tenacity (product model 3)
B27: correlation_F_and_T | C27: 0.7
X30: 10 | AA30: 10 | AD30: 10
B31: Simonton Creative Productivity Model | X31: 2 | AA31: 2 | AD31: 2
B32: production_constant | C32: 10 | X32: 1 | AA32: 1 | AD32: 1
B33: decay_constant | C33: 2
B34: power_constant | C34: 1
B37: Matthew Models | X37: 0.5 | AA37: 0.5 | AD37: 0.5
B38: Model 1
B39: Simple_Matthew (condition value must be 5!) | C39: 0.5 | E39: Applies only to Condition Value 5 | X39: 0 | AA39: 0 | AD39: 0
B40: Model 2
B41: Product support parameter | C41: 0 | X41: NO | AA41: NO | AD41: NO
B42: Model 3 | X42: 0.001 | AA42: 0.001 | AD42: 0.001
B43: matthew condition | C43: NO
B44: matthew parameter | C44: 0.001
X47: NO | AA47: NO | AD47: NO
B48: SECUNDARY PARAMETERS
B49: lifespan decline condition | C49: NO | X49: 0 | AA49: 0 | AD49: 0
B51: random walk multiplier | C51: 0 | X51: 0 | AA51: 0 | AD51: 0
B53: random effect on growers | C53: 0

Sheet output
T28: type of model | U28: =model_type(model!E11) -> normal genetic model
U29: =IF(parameters!C43="YES","Matthew model","Standard model") -> Standard model
U31: =model_type2((model!L11)) -> PRODUCT MODEL 3. RESET EQUATIONS TO NORMAL MODEL!
A44: Specified values | G44: Growth and Connection parameters
B45: grower3 | C45: =H63 -> 0.7680468744
B46: products1 | C46: =collected_number_of_products -> 0 | G46: =model!A8:H18 -> grower | H46: endlevel | I46: initial | J46: rate | K46: genetic K | L46: effect_type | M46: delay | N46: MyMax | P46: grower1 | Q46: grower2 | R46: grower3 | S46: grower4 | T46: grower5 | U46: grower6 | V46: grower7 | W46: grower8 | X46: grower9 | Y46: grower10
B47: =G65 -> initial level | C47: 0.0103347638 | G47: 1 | H47: 1.312335352 | I47: 0.02666957719 | J47: 0.05740745693 | K47: 0.9648648738 | L47: 1 | M47: 1 | N47: 10 | O47: grower1 | P47: =model!I9:R18 -> 0 | Q47: 0 | R47: 0 | S47: 0 | T47: 0 | U47: 0.02342221171 | V47: 0 | W47: 0 | X47: 0 | Y47: 0.002548598727
B48: rate | C48: 0.03966894767 | G48: 2 | H48: 0.8173352779 | I48: 0.0348844373 | J48: 0.05363685844 | K48: 1.044243448 | L48: 1 | M48: 1 | N48: 21 | O48: grower2 | P48: 0 | Q48: 0 | R48: 0 | S48: 0 | T48: 0 | U48: 0 | V48: 0 | W48: -0.007196702104 | X48: 0 | Y48: 0
B49: genetic K | C49: 1.003550882 | G49: 3 | H49: 0.3838613264 | I49: 0.0103347638 | J49: 0.03966894767 | K49: 1.003550882 | L49: 1 | M49: 1 | N49: 20 | O49: grower3 | P49: 0 | Q49: 0 | R49: 0 | S49: 0 | T49: 0 | U49: -0.01586747385 | V49: 0 | W49: 0 | X49: 0 | Y49: 0
B50: grower 4 | C50: =H80 -> 1.317056155 | G50: 4 | H50: 1.317056155 | I50: 0.007653501374 | J50: 0.05888259101 | K50: 1.317056155 | L50: 1 | M50: 1 | N50: 21 | O50: grower4 | P50: 0 | Q50: -0.008849270258 | R50: 0 | S50: 0 | T50: 0 | U50: 0 | V50: 0 | W50: 0 | X50: 0 | Y50: -0.004237576923
B51: life span slope | C51: =collected_product_slope -> 0 | G51: 5 | H51: 1.962281964 | I51: 0.006229080691 | J51: 0.03598292923 | K51: 0.9514573434 | L51: 1 | M51: 19 | N51: 15 | O51: grower5 | P51: 0.01054177724 | Q51: 0 | R51: -0.01286426142 | S51: 0 | T51: 0 | U51: 0 | V51: 0 | W51: 0 | X51: 0 | Y51: 0
G52: 6 | H52: 0.9112066723 | I52: 0.01446233672 | J52: 0.04714767178 | K52: 0.8541375503 | L52: 1 | M52: 153 | N52: 17 | O52: grower6 | P52: 0 | Q52: 0 | R52: 0 | S52: 0 | T52: 0 | U52: 0 | V52: 0 | W52: -0.006562811561 | X52: 0 | Y52: 0
G53: 7 | H53: 1.011575292 | I53: 0.0294473993 | J53: 0.07112470444 | K53: 1.011575301 | L53: 1 | M53: 182 | N53: 19 | O53: grower7 | P53: 0 | Q53: 0 | R53: 0 | S53: 0 | T53: 0 | U53: 0 | V53: 0 | W53: 0 | X53: 0 | Y53: 0
G54: 8 | H54: 0.906799605 | I54: 0.02423515073 | J54: 0.05085974456 | K54: 1.182923298 | L54: 1 | M54: 217 | N54: 12 | O54: grower8 | P54: 0 | Q54: 0 | R54: 0 | S54: 0 | T54: 0 | U54: 0 | V54: 0 | W54: 0 | X54: 0 | Y54: 0
G55: 9 | H55: 0.9095466227 | I55: 0.02887495704 | J55: 0.03910122435 | K55: 0.9099390428 | L55: 1 | M55: 202 | N55: 14 | O55: grower9 | P55: 0 | Q55: 0 | R55: 0 | S55: 0 | T55: 0.04205351475 | U55: -0.02348832862 | V55: 0 | W55: 0 | X55: 0 | Y55: 0
G56: 10 | H56: 0.9540164128 | I56: 0.03882648447 | J56: 0.04216501119 | K56: 1.007597242 | L56: 1 | M56: 146 | N56: 17 | O56: grower10 | P56: 0 | Q56: 0 | R56: 0 | S56: 0 | T56: 0 | U56: 0 | V56: 0 | W56: 0 | X56: 0 | Y56: 0
G60: Growth Levels and Level parameters
H62: grower 3 | J62: best performance | O62: timeseries growers step = 20
G63: max value | H63: =H79 -> 0.7680468744 | J63: =MAX(H77:H86) -> 1.962281964 | N63: time | O63: =growers_in_steps_of_20 -> grower1 | P63: grower2 | Q63: grower3 | R63: grower4 | S63: grower5 | T63: grower6 | U63: grower7 | V63: grower8 | W63: grower9 | X63: grower10
G64: name | H64: grower 3 | J64: =Plookup(J63,H77:H86,G77:G86) -> grower5 | N64: 1 | O64: 0.02666957719 | P64: 0.0348844373 | Q64: 0.0103347638 | R64: 0.007653501374 | S64: 0.006229080691 | T64: 0.01446233672 | U64: 0.0294473993 | V64: 0.02423515073 | W64: 0.02887495704 | X64: 0.03882648447
G65: initial level | H65: =model!C11 -> 0.0103347638 | J65: =Plookup(J63,H77:H86,model!C9:C18) -> 0.006229080691 | N65: 21 | O65: 0.07701600469 | P65: 0.09323991394 | Q65: 0.02219475949 | R65: 0.023737178 | S65: 0.006697806644 | T65: 0.01446233672 | U65: 0.0294473993 | V65: 0.02423515073 | W65: 0.02887495704 | X65: 0.03882648447
G66: rate | H66: =model!D11 -> 0.03966894767 | J66: =Plookup(J63,H77:H86,model!D9:D18) -> 0.03598292923 | N66: 41 | O66: 0.2015035084 | P66: 0.2262219476 | Q66: 0.04697389828 | R66: 0.07176126235 | S66: 0.01380076925 | T66: 0.01446233672 | U66: 0.0294473993 | V66: 0.02423515073 | W66: 0.02887495704 | X66: 0.03882648447
G67: genetic K | H67: =model!E11 -> 1.003550882 | J67: =my_lookup(J63,H77:H86,model!E9:E18) -> 0.9514573434 | N67: 61 | O67: 0.4286907799 | P67: 0.4517052722 | Q67: 0.09642110814 | R67: 0.2017351972 | S67: 0.02821297856 | T67: 0.01446233672 | U67: 0.0294473993 | V67: 0.02423515073 | W67: 0.02887495704 | X67: 0.03882648447
G68: delay | H68: =model!G11 -> 1 | J68: =my_lookup(J63,H77:H86,model!G9:G18) -> 19 | N68: 81 | O68: 0.6831412424 | P68: 0.6853003573 | Q68: 0.1866538961 | R68: 0.4766911262 | S68: 0.05677172651 | T68: 0.01446233672 | U68: 0.0294473993 | V68: 0.02423515073 | W68: 0.02887495704 | X68: 0.03882648447
G69: Max | H69: =model!H18 -> 17 | J69: =my_lookup(J63,H77:H86,model!H9:H18) -> 15 | N69: 101 | O69: 0.8552153045 | P69: 0.8145537065 | Q69: 0.3269820688 | R69: 0.8425280914 | S69: 0.110802214 | T69: 0.01446233672 | U69: 0.0294473993 | V69: 0.02423515073 | W69: 0.02887495704 | X69: 0.03882648447
G70: connection sum | H70: =model!K20 -> -0.01286426142 | J70: =my_lookup(J63,H77:H86,connectionsum) -> 0.04205351475 | N70: 121 | O70: 0.9424746907 | P70: 0.8467008555 | Q70: 0.4972839706 | R70: 1.115778393 | S70: 0.2046384426 | T70: 0.01446233672 | U70: 0.0294473993 | V70: 0.02423515073 | W70: 0.02887495704 | X70: 0.03882648447
G71: total support | H71: =model!Z33 -> 0 | J71: =my_lookup(J63,H77:H86,totalsupport) -> 0.01635377211 | N71: 141 | O71: 0.9897956698 | P71: 0.8418397038 | Q71: 0.6466420923 | R71: 1.244993087 | S71: 0.3458320011 | T71: 0.01446233672 | U71: 0.0294473993 | V71: 0.02423515073 | W71: 0.02887495704 | X71: 0.03882648447
G72: number of products | H72: =model!T23 -> 0 | N72: 161 | O72: 1.025644622 | P72: 0.831986604 | Q72: 0.7359752571 | R72: 1.293021195 | S72: 0.5185980246 | T72: 0.02267534412 | U72: 0.0294473993 | V72: 0.02423515073 | W72: 0.02887495704 | X72: 0.06704487545
N73: 181 | O73: 1.058499516 | P73: 0.8250374153 | Q73: 0.7667328129 | R73: 1.309238392 | S73: 0.6841296256 | T73: 0.06810684548 | U73: 0.0294473993 | V73: 0.02423515073 | W73: 0.02887495704 | X73: 0.1336980262
N74: 201 | O74: 1.086839098 | P74: 0.8211293612 | Q74: 0.7629135391 | R74: 1.314534377 | S74: 0.8098940689 | T74: 0.189897828 | U74: 0.1008697114 | V74: 0.02423515073 | W74: 0.02887495704 | X74: 0.2477325045
N75: 221 | O75: 1.108282786 | P75: 0.8191348568 | Q75: 0.7459704289 | R75: 1.3162449 | S75: 0.8967577478 | T75: 0.4385883906 | U75: 0.3088765351 | V75: 0.02847540203 | W75: 0.05782879754 | X75: 0.4095179038
H76: max level | I76: endlevel | J76: sum of levels | N76: 241 | O76: 1.124442892 | P76: 0.8181686474 | Q76: 0.7257010381 | R76: 1.316795402 | S76: 0.9702948819 | T76: 0.7394073214 | U76: 0.6443703982 | V76: 0.06140973227 | W76: 0.1158505101 | X76: 0.5872909751
G77: grower1 | H77: =TRANSPOSE(maxlevel10) -> 1.312335352 | I77: =TRANSPOSE(endlevel10) -> 1.312335352 | J77: =TRANSPOSE(totalsumlist) -> 503.6894226 | N77: 261 | O77: 1.139097031 | P77: 0.8177151032 | Q77: 0.7037486117 | R77: 1.316972367 | S77: 1.056010562 | T77: 0.9287739329 | U77: 0.8858640012 | V77: 0.1231716097 | W77: 0.2169611253 | X77: 0.7356552989
G78: grower2 | H78: 0.8471454365 | I78: 0.8173352779 | J78: 365.0459132 | N78: 281 | O78: 1.156690032 | P78: 0.817506505 | Q78: 0.6775755362 | R78: 1.317029234 | S78: 1.178289552 | T78: 0.9854324566 | U78: 0.9771427925 | V78: 0.2266689395 | W78: 0.3650588488 | X78: 0.8339752856
G79: grower3 | H79: 0.7680468744 | I79: 0.3838613264 | J79: 239.4805609 | N79: 301 | O79: 1.180790382 | P79: 0.8174118741 | Q79: 0.6437158929 | R79: 1.317047505 | S79: 1.345963863 | T79: 0.9721575757 | U79: 1.002808335 | V79: 0.3734987405 | W79: 0.5351993847 | X79: 0.8899680403
G80: grower4 | H80: 1.317056155 | I80: 1.317056155 | J80: 537.9216974 | N80: 321 | O80: 1.211317051 | P80: 0.8173693504 | Q80: 0.6016609861 | R80: 1.317053376 | S80: 1.535317875 | T80: 0.9383264483 | U80: 1.009386488 | V80: 0.5392559262 | W80: 0.6842652616 | X80: 0.9195981138
G81: grower5 | H81: 1.962281964 | I81: 1.962281964 | J81: 515.1297906 | N81: 341 | O81: 1.243203986 | P81: 0.8173503689 | Q81: 0.5558492174 | R81: 1.317055262 | S81: 1.70209814 | T81: 0.9097937308 | U81: 1.011031537 | V81: 0.6844447297 | W81: 0.7872396975 | X81: 0.9351125037
G82: grower6 | H82: 0.9864189645 | I82: 0.9112066723 | J82: 259.5532778 | N82: 361 | O82: 1.270014735 | P82: 0.8173419361 | Q82: 0.5126957939 | R82: 1.317055868 | S82: 1.819218489 | T82: 0.8944483899 | U82: 1.011440382 | V82: 0.7860304212 | W82: 0.8473875999 | X82: 0.943472719
G83: grower7 | H83: 1.011575292 | I83: 1.011575292 | J83: 274.6735543 | N83: 381 | O83: 1.288700311 | P83: 0.8173382024 | Q83: 0.4763627995 | R83: 1.317056062 | S83: 1.888939877 | T83: 0.8901646912 | U83: 1.011541835 | V83: 0.8463374987 | W83: 0.8791654106 | X83: 0.9481422127
G84: grower8 | H84: 0.906799605 | I84: 0.906799605 | J84: 175.9268792 | N84: 401 | O84: 1.300031769 | P84: 0.8173365533 | Q84: 0.4478403897 | R84: 1.317056125 | S84: 1.926381798 | T84: 0.8921450001 | U84: 1.011567 | V84: 0.8784864599 | W84: 0.8950729624 | X84: 0.9508011128
G85: grower9 | H85: 0.9095466227 | I85: 0.9095466227 | J85: 194.0511353 | N85: 421 | O85: 1.306288685 | P85: 0.8173358262 | Q85: 0.4262762522 | R85: 1.317056145 | S85: 1.945351664 | T85: 0.8965738308 | U85: 1.011573242 | V85: 0.894435831 | W85: 0.9028218709 | X85: 0.9523143609
G86: grower10 | H86: 0.9540164128 | I86: 0.9540164128 | J86: 262.2435097 | N86: 441 | O86: 1.309543418 | P86: 0.8173355061 | Q86: 0.410258363 | R86: 1.317056152 | S86: 1.954667623 | T86: 0.9013218142 | U86: 1.01157479 | V86: 0.9018975601 | W86: 0.9065464675 | X86: 0.9531648318
N87: 461 | O87: 1.311175285 | P87: 0.8173353652 | Q87: 0.3984399374 | R87: 1.317056154 | S87: 1.959168734 | T87: 0.90549171 | U87: 1.011575174 | V87: 0.9051598671 | W87: 0.9083252535 | X87: 0.9536347534
H91: Example of my_value formula, applies to total_model_output
H92: time | I92: value
H93: 220 | I93: =my_value(total_model_output,H93,3) -> 1.160759694 | J93: I93=my_value(total_model_output,H93,3)
H94: 221 | I94: 1.160283439
H95: 222 | I95: 1.159820858
H96: 223 | I96: 1.159371811
H97: 224 | I97: 1.158936131
H98: 225 | I98: 1.158513636
H99: 226 | I99: 1.158104127
H100: 227 | I100: 1.157707389
H101: 228 | I101: 1.157323195
H102: 229 | I102: 1.156951309
H103: 230 | I103: 1.156591482
H104: 231 | I104: 1.156243459
H105: 232 | I105: 1.15590698
H106: 233 | I106: 1.155581778

Sheet model
A1: model | B1: initial | C1: =parameters!C5 -> 0 | D1: =parameters!D5 -> 0.05 | F1: =parameters!C13 -> 0.25 | H1: RW_multiplier | I1: =parameters!C51 -> 0 | K1: MyMax | L1: 20 | M1: myRandom | N1: =parameters!C51 -> 0 | O1: multiplier | Q1: matthew | R1: NO | S1: NO
B2: rate | C2: =parameters!C6 -> 0.05 | D2: =parameters!D6 -> 0.01 | H2: cc_reduction | I2: =parameters!C49 -> NO | K2: effect type | L2: 1 | Q2: matthewparameter | R2: 0.0001
B3: connection | C3: =parameters!C7 -> 0 | D3: =parameters!D7 -> 0.02
B4: carcapNorm | C4: =parameters!C8 -> 1 | D4: =parameters!D8 -> 0.15 | CH4: PLUS FACTOR | CI4: 0.01
B5: carcapEm | C5: =parameters!C9 -> 0.5 | D5: =parameters!D9 -> 0.25 | CH5: MIN FACTOR | CI5: -0.01
B6: delay | C6: =parameters!C10 -> 1 | D6: =parameters!D10 -> 350 | BO6: 30
B7: Max | C7: =parameters!C11 -> 10 | D7: =parameters!D11 -> 25 | U7: =COUNTIF(I10:R19,"<>0") -> 19
A8: grower | B8: endlevel | C8: initial | D8: rate | E8: genetic K | F8: effect_type | G8: delay | H8: MyMax | I8: grower1 | J8: grower2 | K8: grower3 | L8: grower4 | M8: grower5 | N8: grower6 | O8: grower7 | P8: grower8 | Q8: grower9 | R8: grower10 | S8: grower5 | T8: grower6 | U8: grower7 | V8: grower8 | W8: grower9 | X8: grower10
A9: 1 | B9: =TRANSPOSE(endlevel10) -> 1.312335352 | C9: =_xll.dRandReal($C$1,$D$1) -> 0.02666957719 | D9: =_xll.dNormalDev($C$2,$D$2) -> 0.05740745693 | E9: =_xll.dNormalDev($C$4,$D$4) -> 0.9648648738 | F9: =IF(RAND()<$L$2,1,0) -> 1 | G9: 1 | H9: =_xll.dRandInt($C$7,$D$7) -> 10 | I9: 0 | J9: =IF(RAND()<$F$1,_xll.dNormalDev($C$3,$D$3),0) -> 0 | K9: =IF(RAND()<$F$1,_xll.dNormalDev($C$3,$D$3),0) -> 0 | L9: =IF(RAND()<$F$1,_xll.dNormalDev($C$3,$D$3),0) -> 0 | M9: =IF(RAND()<$F$1,_xll.dNormalDev($C$3,$D$3),0) -> 0 | N9: =IF(RAND()<$F$1,_xll.dNormalDev($C$3,$D$3),0) -> 0.02342221171 | O9: =IF(RAND()<$F$1,_xll.dNormalDev($C$3,$D$3),0) -> 0 | P9: =IF(RAND()<$F$1,_xll.dNormalDev($C$3,$D$3),0) -> 0 | Q9: =IF(RAND()<$F$1,_xll.dNormalDev($C$3,$D$3),0) -> 0 | R9: =IF(RAND()<$F$1,_xll.dNormalDev($C$3,$D$3),0) -> 0.002548598727 | S9: 0 | T9: 0 | U9: 0 | V9: 0 | W9: -0.003233883653 | X9: -0.02385528148 | Y9: grower5 | Z9: grower6 | AA9: grower7 | AB9: grower8 | AC9: grower9 | AD9: grower10 | BI9: grower | BK9: initial | BL9: rate | BM9: genetic K | BN9: effect_type | BO9: delay | BP9: MyMax | BQ9: grower1 | BR9: grower2 | BS9: grower3 | BT9: grower4 | BU9: grower5 | BV9: grower6 | BW9: grower7 | BX9: grower8 | BY9: grower9 | BZ9: grower10 | CC9: initial40 | CD9: rate40 | CE9: carcap40 | CF9: effect_type | CG9: delay | CH9: MyMax | CI9: grower1 | CJ9: grower2 | CK9: grower3 | CL9: grower4 | CM9: grower5 | CN9: grower6 | CO9: grower7 | CP9: grower8 | CQ9: grower9 | CR9: grower10 | CU9: initial | CV9: rate | CW9: genetic K | CX9: effect_type | CY9: delay | CZ9: MyMax | DA9: grower1 | DB9: grower2 | DC9: grower3 | DD9: grower4 | DE9: grower5 | DF9: grower6 | DG9: grower7 | DH9: grower8 | DI9: grower9 | DJ9: grower10
A10: 2 | B10: 0.8173352779 | C10: =_xll.dRandReal($C$1,$D$1) -> 0.0348844373 | D10: =_xll.dNormalDev($C$2,$D$2) -> 0.05363685844 | E10: =_xll.dNormalDev($C$4,$D$4) -> 1.044243448 | F10: 1 | G10: 1 | H10: =_xll.dRandInt($C$7,$D$7) -> 21 | I10: =IF(RAND()<$F$1,_xll.dNormalDev($C$3,$D$3),0) -> 0 | J10: 0 | K10: =IF(RAND()<$F$1,_xll.dNormalDev($C$3,$D$3),0) -> 0 | L10: =IF(RAND()<$F$1,_xll.dNormalDev($C$3,$D$3),0) -> 0 | M10: =IF(RAND()<$F$1,_xll.dNormalDev($C$3,$D$3),0) -> 0 | N10: =IF(RAND()<$F$1,_xll.dNormalDev($C$3,$D$3),0) -> 0 | O10: =IF(RAND()<$F$1,_xll.dNormalDev($C$3,$D$3),0) -> 0 | P10: =IF(RAND()<$F$1,_xll.dNormalDev($C$3,$D$3),0) -> -0.007196702104 | Q10: =IF(RAND()<$F$1,_xll.dNormalDev($C$3,$D$3),0) -> 0 | R10: =IF(RAND()<$F$1,_xll.dNormalDev($C$3,$D$3),0) -> 0 | S10: 0 | T10: 0 | U10: 0.009265752701 | V10: 0 | W10: 0 | X10: -0.006655736524 | Y10: =IF(M$21=MAX(maxlevel10),M10,"") -> 0 | Z10: =IF(N$21=MAX(maxlevel10),N10,"") ->  | AA10: =IF(O$21=MAX(maxlevel10),O10,"") ->  | AB10: =IF(P$21=MAX(maxlevel10),P10,"") ->  | AC10: =IF(Q$21=MAX(maxlevel10),Q10,"") ->  | AD10: =IF(R$21=MAX(maxlevel10),R10,"") ->  | AE10: =TRANSPOSE(totalsumlist) -> 503.6894226 | AF10: =SUM(U10:AD10) -> 0.002610016177 | AG10: =AE10*AF10 -> 1.314637541 | BI10: 1 | BK10: =_xll.dRandReal($C$1,$D$1) -> 0.01367928463 | BL10: =_xll.dNormalDev($C$2,$D$2) -> 0.03434502731 | BM10: =_xll.dNormalDev($C$4,$D$4) -> 0.7578856225 | BN10: =IF(RAND()<$L$2,1,0) -> 1 | BO10: 1 | BP10: =_xll.dRandInt($C$7,$D$7) -> 14 | BQ10: 0 | BR10: =IF(RAND()<$F$1,_xll.dNormalDev($C$3,$D$3),0) -> 0 | BS10: =IF(RAND()<$F$1,_xll.dNormalDev($C$3,$D$3),0) -> 0 | BT10: =IF(RAND()<$F$1,_xll.dNormalDev($C$3,$D$3),0) -> -0.01511059321 | BU10: =IF(RAND()<$F$1,_xll.dNormalDev($C$3,$D$3),0) -> 0 | BV10: =IF(RAND()<$F$1,_xll.dNormalDev($C$3,$D$3),0) -> 0 | BW10: =IF(RAND()<$F$1,_xll.dNormalDev($C$3,$D$3),0) -> 0 | BX10: =IF(RAND()<$F$1,_xll.dNormalDev($C$3,$D$3),0) -> 0 | BY10: =IF(RAND()<$F$1,_xll.dNormalDev($C$3,$D$3),0) -> 0 | BZ10: =IF(RAND()<$F$1,_xll.dNormalDev($C$3,$D$3),0) -> 0 | CC10: =_xll.dRandReal($C$1,$D$1) -> 0.03511482065 | CD10: =_xll.dNormalDev($C$2,$D$2) -> 0.03618846331 | CE10: =_xll.dNormalDev($C$4,$D$4) -> 1.210256112 | CF10: =IF(RAND()<$L$2,1,0) -> 1 | CG10: 1 | CH10: =_xll.dRandInt($C$7,$D$7) -> 18 | CI10: =IF(RAND()<$F$1,_xll.dNormalDev($C$3+PLUS_FACTOR,$D$3),0) -> 0 | CJ10: =IF(RAND()<$F$1,_xll.dNormalDev($C$3+PLUS_FACTOR,$D$3),0) -> 0 | CK10: =IF(RAND()<$F$1,_xll.dNormalDev($C$3+PLUS_FACTOR,$D$3),0) -> 0 | CL10: =IF(RAND()<$F$1,_xll.dNormalDev($C$3+PLUS_FACTOR,$D$3),0) -> 0 | CM10: =IF(RAND()<$F$1,_xll.dNormalDev($C$3+PLUS_FACTOR,$D$3),0) -> 0.05423439588 | CN10: =IF(RAND()<$F$1,_xll.dNormalDev($C$3+MIN_FACTOR,$D$3),0) -> 0 | CO10: =IF(RAND()<$F$1,_xll.dNormalDev($C$3+MIN_FACTOR,$D$3),0) -> 0 | CP10: =IF(RAND()<$F$1,_xll.dNormalDev($C$3+MIN_FACTOR,$D$3),0) -> 0 | CQ10: =IF(RAND()<$F$1,_xll.dNormalDev($C$3+MIN_FACTOR,$D$3),0) -> 0 | CR10: =IF(RAND()<$F$1,_xll.dNormalDev($C$3+MIN_FACTOR,$D$3),0) -> 0 | CU10: =_xll.dRandReal($C$1,$D$1) -> 0.01614542849 | CV10: =_xll.dNormalDev($C$2,$D$2) -> 0.05287098532 | CW10: =_xll.dNormalDev($C$4,$D$4) -> 0.8701562891 | CX10: =IF(RAND()<$L$2,1,0) -> 1 | CY10: 1 | CZ10: =_xll.dRandInt($C$7,$D$7) -> 19 | DA10: 0 | DB10: =IF(RAND()<$F$1,_xll.dNormalDev($C$3,$D$3),0) -> 0 | DC10: =IF(RAND()<$F$1,_xll.dNormalDev($C$3,$D$3),0) -> 0.04813996835 | DD10: =IF(RAND()<$F$1,_xll.dNormalDev($C$3,$D$3),0) -> 0 | DE10: =IF(RAND()<$F$1,_xll.dNormalDev($C$3,$D$3),0) -> 0 | DF10: =IF(RAND()<$F$1,_xll.dNormalDev($C$3,$D$3),0) -> 0 | DG10: =IF(RAND()<$F$1,_xll.dNormalDev($C$3,$D$3),0) -> 0 | DH10: =IF(RAND()<$F$1,_xll.dNormalDev($C$3,$D$3),0) -> 0 | DI10: =IF(RAND()<$F$1,_xll.dNormalDev($C$3,$D$3),0) -> 0 | DJ10: =IF(RAND()<$F$1,_xll.dNormalDev($C$3,$D$3),0) -> 0
A11: 3 | B11: 0.3838613264 | C11: =_xll.dRandReal($C$1,$D$1) -> 0.0103347638 | D11: =_xll.dNormalDev($C$2,$D$2) -> 0.03966894767 | E11: =_xll.dNormalDev($C$4,$D$4) -> 1.003550882 | F11: 1 | G11: 1 | H11: =_xll.dRandInt($C$7,$D$7) -> 20 | I11: =IF(RAND()<$F$1,_xll.dNormalDev($C$3,$D$3),0) -> 0 | J11: =IF(RAND()<$F$1,_xll.dNormalDev($C$3,$D$3),0) -> 0 | K11: 0 | L11: =IF(K12<>0,(correlation_F_and_T*K12+SQRT(1-correlation_F_and_T^2)*_xll.dNormalDev($C$3,$D$3)),0) -> 0 | M11: =IF(RAND()<$F$1,_xll.dNormalDev($C$3,$D$3),0) -> 0 | N11: =IF(RAND()<$F$1,_xll.dNormalDev($C$3,$D$3),0) -> -0.01586747385 | O11: =IF(RAND()<$F$1,_xll.dNormalDev($C$3,$D$3),0) -> 0 | P11: =IF(RAND()<$F$1,_xll.dNormalDev($C$3,$D$3),0) -> 0 | Q11: =IF(RAND()<$F$1,_xll.dNormalDev($C$3,$D$3),0) -> 0 | R11: =IF(RAND()<$F$1,_xll.dNormalDev($C$3,$D$3),0) -> 0 | S11: -0.007516184054 | T11: -0.03828784061 | U11: 0 | V11: 0 | W11: 0 | X11: 0 | Y11: 0 | AE11: 365.0459132 | AF11: 0 | AG11: 0 | BI11: 2 | BK11: =_xll.dRandReal($C$1,$D$1) -> 0.01581984605 | BL11: =_xll.dNormalDev($C$2,$D$2) -> 0.04598249452 | BM11: =_xll.dNormalDev($C$4,$D$4) -> 0.9922351482 | BN11: 1 | BO11: 1 | BP11: =_xll.dRandInt($C$7,$D$7) -> 11 | BQ11: =IF(RAND()<$F$1,_xll.dNormalDev($C$3,$D$3),0) -> -0.01890291721 | BR11: 0 | BS11: =IF(RAND()<$F$1,_xll.dNormalDev($C$3,$D$3),0) -> -0.03122544423 | BT11: =IF(RAND()<$F$1,_xll.dNormalDev($C$3,$D$3),0) -> 0 | BU11: =IF(RAND()<$F$1,_xll.dNormalDev($C$3,$D$3),0) -> 0 | BV11: =IF(RAND()<$F$1,_xll.dNormalDev($C$3,$D$3),0) -> 0 | BW11: =IF(RAND()<$F$1,_xll.dNormalDev($C$3,$D$3),0) -> 0 | BX11: =IF(RAND()<$F$1,_xll.dNormalDev($C$3,$D$3),0) -> 0 | BY11: =IF(RAND()<$F$1,_xll.dNormalDev($C$3,$D$3),0) -> 0 | BZ11: =IF(RAND()<$F$1,_xll.dNormalDev($C$3,$D$3),0) -> 0 | CC11: =_xll.dRandReal($C$1,$D$1) -> 0.002374612784 | CD11: =_xll.dNormalDev($C$2,$D$2) -> 0.05008433752 | CE11: =_xll.dNormalDev($C$4,$D$4) -> 0.8158482295 | CF11: 1 | CG11: 1 | CH11: =_xll.dRandInt($C$7,$D$7) -> 25 | CI11: =IF(RAND()<$F$1,_xll.dNormalDev($C$3+PLUS_FACTOR,$D$3),0) -> 0 | CJ11: =IF(RAND()<$F$1,_xll.dNormalDev($C$3+PLUS_FACTOR,$D$3),0) -> 0 | CK11: =IF(RAND()<$F$1,_xll.dNormalDev($C$3+PLUS_FACTOR,$D$3),0) -> 0 | CL11: =IF(RAND()<$F$1,_xll.dNormalDev($C$3+PLUS_FACTOR,$D$3),0) -> 0 | CM11: =IF(RAND()<$F$1,_xll.dNormalDev($C$3+PLUS_FACTOR,$D$3),0) -> 0 | CN11: =IF(RAND()<$F$1,_xll.dNormalDev($C$3+MIN_FACTOR,$D$3),0) -> 0 | CO11: =IF(RAND()<$F$1,_xll.dNormalDev($C$3+MIN_FACTOR,$D$3),0) -> 0 | CP11: =IF(RAND()<$F$1,_xll.dNormalDev($C$3+MIN_FACTOR,$D$3),0) -> 0.005235822226 | CQ11: =IF(RAND()<$F$1,_xll.dNormalDev($C$3+MIN_FACTOR,$D$3),0) -> 0 | CR11: =IF(RAND()<$F$1,_xll.dNormalDev($C$3+MIN_FACTOR,$D$3),0) -> 0 | CU11: =_xll.dRandReal($C$1,$D$1) -> 0.003020688973 | CV11: =_xll.dNormalDev($C$2,$D$2) -> 0.05657169598 | CW11: =_xll.dNormalDev($C$4,$D$4) -> 0.9018332444 | CX11: 1 | CY11: 1 | CZ11: =_xll.dRandInt($C$7,$D$7) -> 12 | DA11: =IF(RAND()<$F$1,_xll.dNormalDev($C$3,$D$3),0) -> 0 | DB11: 0 | DC11: =IF(RAND()<$F$1,_xll.dNormalDev($C$3,$D$3),0) -> 0 | DD11: =IF(RAND()<$F$1,_xll.dNormalDev($C$3,$D$3),0) -> 0 | DE11: =IF(RAND()<$F$1,_xll.dNormalDev($C$3,$D$3),0) -> 0 | DF11: =IF(RAND()<$F$1,_xll.dNormalDev($C$3,$D$3),0) -> 0 | DG11: =IF(RAND()<$F$1,_xll.dNormalDev($C$3,$D$3),0) -> 0 | DH11: =IF(RAND()<$F$1,_xll.dNormalDev($C$3,$D$3),0) -> 0 | DI11: =IF(RAND()<$F$1,_xll.dNormalDev($C$3,$D$3),0) -> 0 | DJ11: =IF(RAND()<$F$1,_xll.dNormalDev($C$3,$D$3),0) -> -0.01703072213
A12: 4 | B12: 1.317056155 | C12: =_xll.dRandReal($C$1,$D$1) -> 0.007653501374 | D12: =_xll.dNormalDev($C$2,$D$2) -> 0.05888259101 | E12: =_xll.dNormalDev($C$4,$D$4) -> 1.317056155 | F12: 1 | G12: 1 | H12: =_xll.dRandInt($C$7,$D$7) -> 21 | I12: =IF(RAND()<$F$1,_xll.dNormalDev($C$3,$D$3),0) -> 0 | J12: =IF(RAND()<$F$1,_xll.dNormalDev($C$3,$D$3),0) -> -0.008849270258 | K12: =IF(RAND()<$F$1,_xll.dNormalDev($C$3,$D$3),0) -> 0 | L12: 0 | M12: =IF(RAND()<$F$1,_xll.dNormalDev($C$3,$D$3),0) -> 0 | N12: =IF(RAND()<$F$1,_xll.dNormalDev($C$3,$D$3),0) -> 0 | O12: =IF(RAND()<$F$1,_xll.dNormalDev($C$3,$D$3),0) -> 0 | P12: =IF(RAND()<$F$1,_xll.dNormalDev($C$3,$D$3),0) -> 0 | Q12: =IF(RAND()<$F$1,_xll.dNormalDev($C$3,$D$3),0) -> 0 | R12: =IF(RAND()<$F$1,_xll.dNormalDev($C$3,$D$3),0) -> -0.004237576923 | S12: -0.02429855243 | T12: 0 | U12: 0 | V12: 0 | W12: -0.01514843054 | X12: 0 | Y12: 0 | AE12: 239.4805609 | AF12: -0.01514843054 | AG12: -3.627754644 | BI12: 3 | BK12: =_xll.dRandReal($C$1,$D$1) -> 0.04213086558 | BL12: =_xll.dNormalDev($C$2,$D$2) -> 0.05469664078 | BM12: =_xll.dNormalDev($C$4,$D$4) -> 0.9122135044 | BN12: 1 | BO12: 1 | BP12: =_xll.dRandInt($C$7,$D$7) -> 14 | BQ12: =IF(RAND()<$F$1,_xll.dNormalDev($C$3,$D$3),0) -> 0 | BR12: =IF(RAND()<$F$1,_xll.dNormalDev($C$3,$D$3),0) -> 0 | BS12: 0 | BT12: =IF(RAND()<$F$1,_xll.dNormalDev($C$3,$D$3),0) -> 0 | BU12: =IF(RAND()<$F$1,_xll.dNormalDev($C$3,$D$3),0) -> 0 | BV12: =IF(RAND()<$F$1,_xll.dNormalDev($C$3,$D$3),0) -> 0 | BW12: =IF(RAND()<$F$1,_xll.dNormalDev($C$3,$D$3),0) -> 0 | BX12: =IF(RAND()<$F$1,_xll.dNormalDev($C$3,$D$3),0) -> 0 | BY12: =IF(RAND()<$F$1,_xll.dNormalDev($C$3,$D$3),0) -> 0 | BZ12: =IF(RAND()<$F$1,_xll.dNormalDev($C$3,$D$3),0) -> 0 | CC12: =_xll.dRandReal($C$1,$D$1) -> 0.01408219208 | CD12: =_xll.dNormalDev($C$2,$D$2) -> 0.038420318 | CE12: =_xll.dNormalDev($C$4,$D$4) -> 1.221964676 | CF12: 1 | CG12: =_xll.dRandInt($C$6,CA12*$BO$6) -> 1 | CH12: =_xll.dRandInt($C$7,$D$7) -> 15 | CI12: =IF(RAND()<$F$1,_xll.dNormalDev($C$3+PLUS_FACTOR,$D$3),0) -> -0.0002857443054 | CJ12: =IF(RAND()<$F$1,_xll.dNormalDev($C$3+PLUS_FACTOR,$D$3),0) -> 0 | CK12: =IF(RAND()<$F$1,_xll.dNormalDev($C$3+PLUS_FACTOR,$D$3),0) -> 0 | CL12: =IF(RAND()<$F$1,_xll.dNormalDev($C$3+PLUS_FACTOR,$D$3),0) -> 0 | CM12: =IF(RAND()<$F$1,_xll.dNormalDev($C$3+PLUS_FACTOR,$D$3),0) -> 0 | CN12: =IF(RAND()<$F$1,_xll.dNormalDev($C$3+MIN_FACTOR,$D$3),0) -> 0 | CO12: =IF(RAND()<$F$1,_xll.dNormalDev($C$3+MIN_FACTOR,$D$3),0) -> 0 | CP12: =IF(RAND()<$F$1,_xll.dNormalDev($C$3+MIN_FACTOR,$D$3),0) -> 0 | CQ12: =IF(RAND()<$F$1,_xll.dNormalDev($C$3+MIN_FACTOR,$D$3),0) -> 0 | CR12: =IF(RAND()<$F$1,_xll.dNormalDev($C$3+MIN_FACTOR,$D$3),0) -> 0 | CU12: =_xll.dRandReal($C$1,$D$1) -> 0.03569884062 | CV12: =_xll.dNormalDev($C$2,$D$2) -> 0.0508593966 | CW12: =_xll.dNormalDev($C$4,$D$4) -> 0.6913494829 | CX12: 1 | CY12: 1 | CZ12: =_xll.dRandInt($C$7,$D$7) -> 24 | DA12: =IF(RAND()<$F$1,_xll.dNormalDev($C$3,$D$3),0) -> 0 | DB12: =IF(RAND()<$F$1,_xll.dNormalDev($C$3,$D$3),0) -> 0 | DC12: 0 | DD12: =IF(DC13<>0,(correlation_F_and_T*DC13+SQRT(1-correlation_F_and_T^2)*_xll.dNormalDev($C$3,$D$3)),0) -> 0 | DE12: =IF(RAND()<$F$1,_xll.dNormalDev($C$3,$D$3),0) -> 0 | DF12: =IF(RAND()<$F$1,_xll.dNormalDev($C$3,$D$3),0) -> 0 | DG12: =IF(RAND()<$F$1,_xll.dNormalDev($C$3,$D$3),0) -> 0 | DH12: =IF(RAND()<$F$1,_xll.dNormalDev($C$3,$D$3),0) -> 0 | DI12: =IF(RAND()<$F$1,_xll.dNormalDev($C$3,$D$3),0) -> 0 | DJ12: =IF(RAND()<$F$1,_xll.dNormalDev($C$3,$D$3),0) -> 0
A13: 5 | B13: 1.962281964 | C13: =_xll.dRandReal($C$1,$D$1) -> 0.006229080691 | D13: =_xll.dNormalDev($C$2,$D$2) -> 0.03598292923 | E13: =_xll.dNormalDev($C$4,$D$4) -> 0.9514573434 | F13: 1 | G13: =_xll.dRandInt($C$6,A13*$BO$6) -> 19 | H13: =_xll.dRandInt($C$7,$D$7) -> 15 | I13: =IF(RAND()<$F$1,_xll.dNormalDev($C$3,$D$3),0) -> 0.01054177724 | J13: =IF(RAND()<$F$1,_xll.dNormalDev($C$3,$D$3),0) -> 0 | K13: =IF(RAND()<$F$1,_xll.dNormalDev($C$3,$D$3),0) -> -0.01286426142 | L13: =IF(RAND()<$F$1,_xll.dNormalDev($C$3,$D$3),0) -> 0 | M13: 0 | N13: =IF(RAND()<$F$1,_xll.dNormalDev($C$3,$D$3),0) -> 0 | O13: =IF(RAND()<$F$1,_xll.dNormalDev($C$3,$D$3),0) -> 0 | P13: =IF(RAND()<$F$1,_xll.dNormalDev($C$3,$D$3),0) -> 0 | Q13: =IF(RAND()<$F$1,_xll.dNormalDev($C$3,$D$3),0) -> 0 | R13: =IF(RAND()<$F$1,_xll.dNormalDev($C$3,$D$3),0) -> 0 | S13: 0 | T13: 0 | U13: 0 | V13: 0 | W13: -0.02092272245 | X13: 0 | Y13: 0 | AE13: 537.9216974 | AF13: -0.02092272245 | AG13: -11.25478638 | BI13: 4 | BK13: =_xll.dRandReal($C$1,$D$1) -> 0.02056980208 | BL13: =_xll.dNormalDev($C$2,$D$2) -> 0.06039156444 | BM13: =_xll.dNormalDev($C$4,$D$4) -> 1.27280524 | BN13: 1 | BO13: 1 | BP13: =_xll.dRandInt($C$7,$D$7) -> 19 | BQ13: =IF(RAND()<$F$1,_xll.dNormalDev($C$3,$D$3),0) -> 0 | BR13: =IF(RAND()<$F$1,_xll.dNormalDev($C$3,$D$3),0) -> 0 | BS13: =IF(RAND()<$F$1,_xll.dNormalDev($C$3,$D$3),0) -> -0.005684831127 | BT13: 0 | BU13: =IF(RAND()<$F$1,_xll.dNormalDev($C$3,$D$3),0) -> 0 | BV13: =IF(RAND()<$F$1,_xll.dNormalDev($C$3,$D$3),0) -> 0 | BW13: =IF(RAND()<$F$1,_xll.dNormalDev($C$3,$D$3),0) -> 0 | BX13: =IF(RAND()<$F$1,_xll.dNormalDev($C$3,$D$3),0) -> 0 | BY13: =IF(RAND()<$F$1,_xll.dNormalDev($C$3,$D$3),0) -> -0.02348359371 | BZ13: =IF(RAND()<$F$1,_xll.dNormalDev($C$3,$D$3),0) -> 0 | CC13: =_xll.dRandReal($C$1,$D$1) -> 0.02330008239 | CD13: =_xll.dNormalDev($C$2,$D$2) -> 0.06192761818 | CE13: =_xll.dNormalDev($C$4,$D$4) -> 0.9604454341 | CF13: 1 | CG13: =_xll.dRandInt($C$6,CA13*$BO$6) -> 1 | CH13: =_xll.dRandInt($C$7,$D$7) -> 25 | CI13: =IF(RAND()<$F$1,_xll.dNormalDev($C$3+PLUS_FACTOR,$D$3),0) -> 0 | CJ13: =IF(RAND()<$F$1,_xll.dNormalDev($C$3+PLUS_FACTOR,$D$3),0) -> 0 | CK13: =IF(RAND()<$F$1,_xll.dNormalDev($C$3+PLUS_FACTOR,$D$3),0) -> 0 | CL13: =IF(RAND()<$F$1,_xll.dNormalDev($C$3+PLUS_FACTOR,$D$3),0) -> 0 | CM13: =IF(RAND()<$F$1,_xll.dNormalDev($C$3+PLUS_FACTOR,$D$3),0) -> 0 | CN13: =IF(RAND()<$F$1,_xll.dNormalDev($C$3+MIN_FACTOR,$D$3),0) -> 0 | CO13: =IF(RAND()<$F$1,_xll.dNormalDev($C$3+MIN_FACTOR,$D$3),0) -> 0 | CP13: =IF(RAND()<$F$1,_xll.dNormalDev($C$3+MIN_FACTOR,$D$3),0) -> 0 | CQ13: =IF(RAND()<$F$1,_xll.dNormalDev($C$3+MIN_FACTOR,$D$3),0) -> 0 | CR13: =IF(RAND()<$F$1,_xll.dNormalDev($C$3+MIN_FACTOR,$D$3),0) -> 0 | CU13: =_xll.dRandReal($C$1,$D$1) -> 0.0482813322 | CV13: =_xll.dNormalDev($C$2,$D$2) -> 0.03241686446 | CW13: =_xll.dNormalDev($C$4,$D$4) -> 0.8989931213 | CX13: 1 | CY13: 1 | CZ13: =_xll.dRandInt($C$7,$D$7) -> 13 | DA13: =IF(RAND()<$F$1,_xll.dNormalDev($C$3,$D$3),0) -> 0 | DB13: =IF(RAND()<$F$1,_xll.dNormalDev($C$3,$D$3),0) -> -0.004894823005 | DC13: =IF(RAND()<$F$1,_xll.dNormalDev($C$3,$D$3),0) -> 0 | DD13: 0 | DE13: =IF(RAND()<$F$1,_xll.dNormalDev($C$3,$D$3),0) -> 0 | DF13: =IF(RAND()<$F$1,_xll.dNormalDev($C$3,$D$3),0) -> 0 | DG13: =IF(RAND()<$F$1,_xll.dNormalDev($C$3,$D$3),0) -> 0 | DH13: =IF(RAND()<$F$1,_xll.dNormalDev($C$3,$D$3),0) -> 0 | DI13: =IF(RAND()<$F$1,_xll.dNormalDev($C$3,$D$3),0) -> 0 | DJ13: =IF(RAND()<$F$1,_xll.dNormalDev($C$3,$D$3),0) -> 0
A14: 6 | B14: 0.9112066723 | C14: =_xll.dRandReal($C$1,$D$1) -> 0.01446233672 | D14: =_xll.dNormalDev($C$2,$D$2) -> 0.04714767178 | E14: =_xll.dNormalDev($C$4,$D$4) -> 0.8541375503 | F14: 1 | G14: =_xll.dRandInt($C$6,A14*$BO$6) -> 153 | H14: =_xll.dRandInt($C$7,$D$7) -> 17 | I14: =IF(RAND()<$F$1,_xll.dNormalDev($C$3,$D$3),0) -> 0 | J14: =IF(RAND()<$F$1,_xll.dNormalDev($C$3,$D$3),0) -> 0 | K14: =IF(RAND()<$F$1,_xll.dNormalDev($C$3,$D$3),0) -> 0 | L14: =IF(RAND()<$F$1,_xll.dNormalDev($C$3,$D$3),0) -> 0 | M14: =IF(RAND()<$F$1,_xll.dNormalDev($C$3,$D$3),0) -> 0 | N14: 0 | O14: =IF(RAND()<$F$1,_xll.dNormalDev($C$3,$D$3),0) -> 0 | P14: =IF(RAND()<$F$1,_xll.dNormalDev($C$3,$D$3),0) -> -0.006562811561 | Q14: =IF(RAND()<$F$1,_xll.dNormalDev($C$3,$D$3),0) -> 0 | R14: =IF(RAND()<$F$1,_xll.dNormalDev($C$3,$D$3),0) -> 0 | S14: 0 | T14: -0.05042344294 | U14: 0 | V14: 0.02109724675 | W14: -0.01722731874 | X14: -0.04010981916 | Y14: 0 | AE14: 515.1297906 | AF14: -0.03623989115 | AG14: -18.66824754 | BI14: 5 | BK14: =_xll.dRandReal($C$1,$D$1) -> 0.002825045912 | BL14: =_xll.dNormalDev($C$2,$D$2) -> 0.05975487837 | BM14: =_xll.dNormalDev($C$4,$D$4) -> 1.350523814 | BN14: 1 | BO14: =_xll.dRandInt($C$6,BI14*$BO$6) -> 99 | BP14: =_xll.dRandInt($C$7,$D$7) -> 19 | BQ14: =IF(RAND()<$F$1,_xll.dNormalDev($C$3,$D$3),0) -> -0.01278896553 | BR14: =IF(RAND()<$F$1,_xll.dNormalDev($C$3,$D$3),0) -> 0 | BS14: =IF(RAND()<$F$1,_xll.dNormalDev($C$3,$D$3),0) -> 0 | BT14: =IF(RAND()<$F$1,_xll.dNormalDev($C$3,$D$3),0) -> 0 | BU14: 0 | BV14: =IF(RAND()<$F$1,_xll.dNormalDev($C$3,$D$3),0) -> 0.02242224108 | BW14: =IF(RAND()<$F$1,_xll.dNormalDev($C$3,$D$3),0) -> 0 | BX14: =IF(RAND()<$F$1,_xll.dNormalDev($C$3,$D$3),0) -> 0 | BY14: =IF(RAND()<$F$1,_xll.dNormalDev($C$3,$D$3),0) -> 0 | BZ14: =IF(RAND()<$F$1,_xll.dNormalDev($C$3,$D$3),0) -> 0 | CC14: =_xll.dRandReal($C$1,$D$1) -> 0.0424559544 | CD14: =_xll.dNormalDev($C$2,$D$2) -> 0.07515283417 | CE14: =_xll.dNormalDev($C$4,$D$4) -> 1.100914486 | CF14: 1 | CG14: =_xll.dRandInt($C$6,CA14*$BO$6) -> 1 | CH14: =_xll.dRandInt($C$7,$D$7) -> 18 | CI14: =IF(RAND()<$F$1,_xll.dNormalDev($C$3+PLUS_FACTOR,$D$3),0) -> 0 | CJ14: =IF(RAND()<$F$1,_xll.dNormalDev($C$3+PLUS_FACTOR,$D$3),0) -> 0 | CK14: =IF(RAND()<$F$1,_xll.dNormalDev($C$3+PLUS_FACTOR,$D$3),0) -> 0 | CL14: =IF(RAND()<$F$1,_xll.dNormalDev($C$3+PLUS_FACTOR,$D$3),0) -> 0 | CM14: =IF(RAND()<$F$1,_xll.dNormalDev($C$3+PLUS_FACTOR,$D$3),0) -> 0 | CN14: =IF(RAND()<$F$1,_xll.dNormalDev($C$3+MIN_FACTOR,$D$3),0) -> 0 | CO14: =IF(RAND()<$F$1,_xll.dNormalDev($C$3+MIN_FACTOR,$D$3),0) -> -0.01899235857 | CP14: =IF(RAND()<$F$1,_xll.dNormalDev($C$3+MIN_FACTOR,$D$3),0) -> 0 | CQ14: =IF(RAND()<$F$1,_xll.dNormalDev($C$3+MIN_FACTOR,$D$3),0) -> 0 | CR14: =IF(RAND()<$F$1,_xll.dNormalDev($C$3+MIN_FACTOR,$D$3),0) -> 0 | CU14: =_xll.dRandReal($C$1,$D$1) -> 0.04361295929 | CV14: =_xll.dNormalDev($C$2,$D$2) -> 0.03595981224 | CW14: =_xll.dNormalDev($C$4,$D$4) -> 1.042100267 | CX14: 1 | CY14: =_xll.dRandInt($C$6,CS14*$BO$6) -> 1 | CZ14: =_xll.dRandInt($C$7,$D$7) -> 10 | DA14: =IF(RAND()<$F$1,_xll.dNormalDev($C$3,$D$3),0) -> 0.009172940852 | DB14: =IF(RAND()<$F$1,_xll.dNormalDev($C$3,$D$3),0) -> 0 | DC14: =IF(RAND()<$F$1,_xll.dNormalDev($C$3,$D$3),0) -> 0 | DD14: =IF(RAND()<$F$1,_xll.dNormalDev($C$3,$D$3),0) -> 0 | DE14: 0 | DF14: =IF(RAND()<$F$1,_xll.dNormalDev($C$3,$D$3),0) -> 0 | DG14: =IF(RAND()<$F$1,_xll.dNormalDev($C$3,$D$3),0) -> 0 | DH14: =IF(RAND()<$F$1,_xll.dNormalDev($C$3,$D$3),0) -> -0.00781827478 | DI14: =IF(RAND()<$F$1,_xll.dNormalDev($C$3,$D$3),0) -> 0 | DJ14: =IF(RAND()<$F$1,_xll.dNormalDev($C$3,$D$3),0) -> 0
A15: 7 | B15: 1.011575292 | C15: =_xll.dRandReal($C$1,$D$1) -> 0.0294473993 | D15: =_xll.dNormalDev($C$2,$D$2) -> 0.07112470444 | E15: =_xll.dNormalDev($C$4,$D$4) -> 1.011575301 | F15: 1 | G15: =_xll.dRandInt($C$6,A15*$BO$6) -> 182 | H15: =_xll.dRandInt($C$7,$D$7) -> 19 | I15: =IF(RAND()<$F$1,_xll.dNormalDev($C$3,$D$3),0) -> 0 | J15: =IF(RAND()<$F$1,_xll.dNormalDev($C$3,$D$3),0) -> 0 | K15: =IF(RAND()<$F$1,_xll.dNormalDev($C$3,$D$3),0) -> 0 | L15: =IF(RAND()<$F$1,_xll.dNormalDev($C$3,$D$3),0) -> 0 | M15: =IF(RAND()<$F$1,_xll.dNormalDev($C$3,$D$3),0) -> 0 | N15: =IF(RAND()<$F$1,_xll.dNormalDev($C$3,$D$3),0) -> 0 | O15: 0 | P15: =IF(RAND()<$F$1,_xll.dNormalDev($C$3,$D$3),0) -> 0 | Q15: =IF(RAND()<$F$1,_xll.dNormalDev($C$3,$D$3),0) -> 0 | R15: =IF(RAND()<$F$1,_xll.dNormalDev($C$3,$D$3),0) -> 0 | S15: 0 | T15: 0 | U15: 0 | V15: -0.009128951321 | W15: 0 | X15: 0 | Y15: 0 | AE15: 259.5532778 | AF15: -0.009128951321 | AG15: -2.369449238 | BI15: 6 | BK15: =_xll.dRandReal($C$1,$D$1) -> 0.002692441025 | BL15: =_xll.dNormalDev($C$2,$D$2) -> 0.04820596294 | BM15: =_xll.dNormalDev($C$4,$D$4) -> 1.399955081 | BN15: 1 | BO15: =_xll.dRandInt($C$6,BI15*$BO$6) -> 29 | BP15: =_xll.dRandInt($C$7,$D$7) -> 13 | BQ15: =IF(RAND()<$F$1,_xll.dNormalDev($C$3,$D$3),0) -> -0.0005984984254 | BR15: =IF(RAND()<$F$1,_xll.dNormalDev($C$3,$D$3),0) -> -0.00389145245 | BS15: =IF(RAND()<$F$1,_xll.dNormalDev($C$3,$D$3),0) -> 0 | BT15: =IF(RAND()<$F$1,_xll.dNormalDev($C$3,$D$3),0) -> 0 | BU15: =IF(RAND()<$F$1,_xll.dNormalDev($C$3,$D$3),0) -> 0 | BV15: 0 | BW15: =IF(RAND()<$F$1,_xll.dNormalDev($C$3,$D$3),0) -> -0.01044727801 | BX15: =IF(RAND()<$F$1,_xll.dNormalDev($C$3,$D$3),0) -> 0 | BY15: =IF(RAND()<$F$1,_xll.dNormalDev($C$3,$D$3),0) -> 0 | BZ15: =IF(RAND()<$F$1,_xll.dNormalDev($C$3,$D$3),0) -> 0 | CC15: =_xll.dRandReal($C$1,$D$1) -> 0.04607608987 | CD15: =_xll.dNormalDev($C$2,$D$2) -> 0.04426041539 | CE15: =_xll.dNormalDev($C$4,$D$4) -> 1.1603608 | CF15: 1 | CG15: =_xll.dRandInt($C$6,CA15*$BO$6) -> 1 | CH15: =_xll.dRandInt($C$7,$D$7) -> 13 | CI15: =IF(RAND()<$F$1,_xll.dNormalDev($C$3+MIN_FACTOR,$D$3),0) -> -0.003157021672 | CJ15: =IF(RAND()<$F$1,_xll.dNormalDev($C$3+MIN_FACTOR,$D$3),0) -> 0 | CK15: =IF(RAND()<$F$1,_xll.dNormalDev($C$3+MIN_FACTOR,$D$3),0) -> -0.02833827218 | CL15: =IF(RAND()<$F$1,_xll.dNormalDev($C$3+MIN_FACTOR,$D$3),0) -> 0 | CM15: =IF(RAND()<$F$1,_xll.dNormalDev($C$3+MIN_FACTOR,$D$3),0) -> 0 | CN15: =IF(RAND()<$F$1,_xll.dNormalDev($C$3+PLUS_FACTOR,$D$3),0) -> 0 | CO15: =IF(RAND()<$F$1,_xll.dNormalDev($C$3+PLUS_FACTOR,$D$3),0) -> 0 | CP15: =IF(RAND()<$F$1,_xll.dNormalDev($C$3+PLUS_FACTOR,$D$3),0) -> 0 | CQ15: =IF(RAND()<$F$1,_xll.dNormalDev($C$3+PLUS_FACTOR,$D$3),0) -> 0 | CR15: =IF(RAND()<$F$1,_xll.dNormalDev($C$3+PLUS_FACTOR,$D$3),0) -> 0 | CU15: =_xll.dRandReal($C$1,$D$1) -> 0.0418514341 | CV15: =_xll.dNormalDev($C$2,$D$2) -> 0.05258564651 | CW15: =_xll.dNormalDev($C$4,$D$4) -> 0.9089482027 | CX15: 1 | CY15: =_xll.dRandInt($C$6,CS15*$BO$6) -> 1 | CZ15: =_xll.dRandInt($C$7,$D$7) -> 25 | DA15: =IF(RAND()<$F$1,_xll.dNormalDev($C$3,$D$3),0) -> 0 | DB15: =IF(RAND()<$F$1,_xll.dNormalDev($C$3,$D$3),0) -> 0 | DC15: =IF(RAND()<$F$1,_xll.dNormalDev($C$3,$D$3),0) -> -0.03672802772 | DD15: =IF(RAND()<$F$1,_xll.dNormalDev($C$3,$D$3),0) -> 0 | DE15: =IF(RAND()<$F$1,_xll.dNormalDev($C$3,$D$3),0) -> 0 | DF15: 0 | DG15: =IF(RAND()<$F$1,_xll.dNormalDev($C$3,$D$3),0) -> 0 | DH15: =IF(RAND()<$F$1,_xll.dNormalDev($C$3,$D$3),0) -> 0.03167884131 | DI15: =IF(RAND()<$F$1,_xll.dNormalDev($C$3,$D$3),0) -> 0 | DJ15: =IF(RAND()<$F$1,_xll.dNormalDev($C$3,$D$3),0) -> 0
A16: 8 | B16: 0.906799605 | C16: =_xll.dRandReal($C$1,$D$1) -> 0.02423515073 | D16: =_xll.dNormalDev($C$2,$D$2) -> 0.05085974456 | E16: =_xll.dNormalDev($C$4,$D$4) -> 1.182923298 | F16: 1 | G16: =_xll.dRandInt($C$6,A16*$BO$6) -> 217 | H16: =_xll.dRandInt($C$7,$D$7) -> 12 | I16: =IF(RAND()<$F$1,_xll.dNormalDev($C$3,$D$3),0) -> 0 | J16: =IF(RAND()<$F$1,_xll.dNormalDev($C$3,$D$3),0) -> 0 | K16: =IF(RAND()<$F$1,_xll.dNormalDev($C$3,$D$3),0) -> 0 | L16: =IF(RAND()<$F$1,_xll.dNormalDev($C$3,$D$3),0) -> 0 | M16: =IF(RAND()<$F$1,_xll.dNormalDev($C$3,$D$3),0) -> 0 | N16: =IF(RAND()<$F$1,_xll.dNormalDev($C$3,$D$3),0) -> 0 | O16: =IF(RAND()<$F$1,_xll.dNormalDev($C$3,$D$3),0) -> 0 | P16: 0 | Q16: =IF(RAND()<$F$1,_xll.dNormalDev($C$3,$D$3),0) -> 0 | R16: =IF(RAND()<$F$1,_xll.dNormalDev($C$3,$D$3),0) -> 0 | S16: 0 | T16: -0.03100737922 | U16: 0 | V16: 0 | W16: -0.01070039384 | X16: -0.03834283614 | Y16: 0 | AE16: 274.6735543 | AF16: -0.04904322998 | AG16: -13.47087829 | BI16: 7 | BK16: =_xll.dRandReal($C$1,$D$1) -> 0.03436459778 | BL16: =_xll.dNormalDev($C$2,$D$2) -> 0.06033334474 | BM16: =_xll.dNormalDev($C$4,$D$4) -> 1.155137996 | BN16: 1 | BO16: =_xll.dRandInt($C$6,BI16*$BO$6) -> 193 | BP16: =_xll.dRandInt($C$7,$D$7) -> 18 | BQ16: =IF(RAND()<$F$1,_xll.dNormalDev($C$3,$D$3),0) -> 0 | BR16: =IF(RAND()<$F$1,_xll.dNormalDev($C$3,$D$3),0) -> 0 | BS16: =IF(RAND()<$F$1,_xll.dNormalDev($C$3,$D$3),0) -> 0 | BT16: =IF(RAND()<$F$1,_xll.dNormalDev($C$3,$D$3),0) -> 0 | BU16: =IF(RAND()<$F$1,_xll.dNormalDev($C$3,$D$3),0) -> 0 | BV16: =IF(RAND()<$F$1,_xll.dNormalDev($C$3,$D$3),0) -> 0 | BW16: 0 | BX16: =IF(RAND()<$F$1,_xll.dNormalDev($C$3,$D$3),0) -> -0.02414075206 | BY16: =IF(RAND()<$F$1,_xll.dNormalDev($C$3,$D$3),0) -> 0 | BZ16: =IF(RAND()<$F$1,_xll.dNormalDev($C$3,$D$3),0) -> 0 | CC16: =_xll.dRandReal($C$1,$D$1) -> 0.006254054862 | CD16: =_xll.dNormalDev($C$2,$D$2) -> 0.04666394691 | CE16: =_xll.dNormalDev($C$4,$D$4) -> 0.9590084112 | CF16: 1 | CG16: =_xll.dRandInt($C$6,CA16*$BO$6) -> 1 | CH16: =_xll.dRandInt($C$7,$D$7) -> 20 | CI16: =IF(RAND()<$F$1,_xll.dNormalDev($C$3+MIN_FACTOR,$D$3),0) -> 0 | CJ16: =IF(RAND()<$F$1,_xll.dNormalDev($C$3+MIN_FACTOR,$D$3),0) -> 0 | CK16: =IF(RAND()<$F$1,_xll.dNormalDev($C$3+MIN_FACTOR,$D$3),0) -> 0 | CL16: =IF(RAND()<$F$1,_xll.dNormalDev($C$3+MIN_FACTOR,$D$3),0) -> 0 | CM16: =IF(RAND()<$F$1,_xll.dNormalDev($C$3+MIN_FACTOR,$D$3),0) -> 0 | CN16: =IF(RAND()<$F$1,_xll.dNormalDev($C$3+PLUS_FACTOR,$D$3),0) -> 0 | CO16: =IF(RAND()<$F$1,_xll.dNormalDev($C$3+PLUS_FACTOR,$D$3),0) -> 0 | CP16: =IF(RAND()<$F$1,_xll.dNormalDev($C$3+PLUS_FACTOR,$D$3),0) -> 0 | CQ16: =IF(RAND()<$F$1,_xll.dNormalDev($C$3+PLUS_FACTOR,$D$3),0) -> 0 | CR16: =IF(RAND()<$F$1,_xll.dNormalDev($C$3+PLUS_FACTOR,$D$3),0) -> 0 | CU16: =_xll.dRandReal($C$1,$D$1) -> 0.03263130425 | CV16: =_xll.dNormalDev($C$2,$D$2) -> 0.05715335198 | CW16: =_xll.dNormalDev($C$4,$D$4) -> 1.063022191 | CX16: 1 | CY16: =_xll.dRandInt($C$6,CS16*$BO$6) -> 1 | CZ16: =_xll.dRandInt($C$7,$D$7) -> 16 | DA16: =IF(RAND()<$F$1,_xll.dNormalDev($C$3,$D$3),0) -> 0 | DB16: =IF(RAND()<$F$1,_xll.dNormalDev($C$3,$D$3),0) -> 0 | DC16: =IF(RAND()<$F$1,_xll.dNormalDev($C$3,$D$3),0) -> 0 | DD16: =IF(RAND()<$F$1,_xll.dNormalDev($C$3,$D$3),0) -> 0 | DE16: =IF(RAND()<$F$1,_xll.dNormalDev($C$3,$D$3),0) -> 0.01673429525 | DF16: =IF(RAND()<$F$1,_xll.dNormalDev($C$3,$D$3),0) -> 0 | DG16: 0 | DH16: =IF(RAND()<$F$1,_xll.dNormalDev($C$3,$D$3),0) -> 0 | DI16: =IF(RAND()<$F$1,_xll.dNormalDev($C$3,$D$3),0) -> 0 | DJ16: =IF(RAND()<$F$1,_xll.dNormalDev($C$3,$D$3),0) -> 0
A17: 9 | B17: 0.9095466227 | C17: =_xll.dRandReal($C$1,$D$1) -> 0.02887495704 | D17: =_xll.dNormalDev($C$2,$D$2) -> 0.03910122435 | E17: =_xll.dNormalDev($C$4,$D$4) -> 0.9099390428 | F17: 1 | G17: =_xll.dRandInt($C$6,A17*$BO$6) -> 202 | H17: =_xll.dRandInt($C$7,$D$7) -> 14 | I17: =IF(RAND()<$F$1,_xll.dNormalDev($C$3,$D$3),0) -> 0 | J17: =IF(RAND()<$F$1,_xll.dNormalDev($C$3,$D$3),0) -> 0 | K17: =IF(RAND()<$F$1,_xll.dNormalDev($C$3,$D$3),0) -> 0 | L17: =IF(RAND()<$F$1,_xll.dNormalDev($C$3,$D$3),0) -> 0 | M17: =IF(RAND()<$F$1,_xll.dNormalDev($C$3,$D$3),0) -> 0.04205351475 | N17: =IF(RAND()<$F$1,_xll.dNormalDev($C$3,$D$3),0) -> -0.02348832862 | O17: =IF(RAND()<$F$1,_xll.dNormalDev($C$3,$D$3),0) -> 0 | P17: =IF(RAND()<$F$1,_xll.dNormalDev($C$3,$D$3),0) -> 0 | Q17: 0 | R17: =IF(RAND()<$F$1,_xll.dNormalDev($C$3,$D$3),0) -> 0 | S17: 0 | T17: 0 | U17: 0 | V17: -0.0003044670612 | W17: 0 | X17: -0.008482101949 | Y17: 0.04205351475 | AE17: 175.9268792 | AF17: 0.03326694574 | AG17: 5.852549944 | BI17: 8 | BK17: =_xll.dRandReal($C$1,$D$1) -> 0.03457444784 | BL17: =_xll.dNormalDev($C$2,$D$2) -> 0.05161593625 | BM17: =_xll.dNormalDev($C$4,$D$4) -> 0.637751652 | BN17: 1 | BO17: =_xll.dRandInt($C$6,BI17*$BO$6) -> 129 | BP17: =_xll.dRandInt($C$7,$D$7) -> 20 | BQ17: =IF(RAND()<$F$1,_xll.dNormalDev($C$3,$D$3),0) -> 0 | BR17: =IF(RAND()<$F$1,_xll.dNormalDev($C$3,$D$3),0) -> 0.00660747288 | BS17: =IF(RAND()<$F$1,_xll.dNormalDev($C$3,$D$3),0) -> 0.005693272367 | BT17: =IF(RAND()<$F$1,_xll.dNormalDev($C$3,$D$3),0) -> 0 | BU17: =IF(RAND()<$F$1,_xll.dNormalDev($C$3,$D$3),0) -> 0 | BV17: =IF(RAND()<$F$1,_xll.dNormalDev($C$3,$D$3),0) -> 0 | BW17: =IF(RAND()<$F$1,_xll.dNormalDev($C$3,$D$3),0) -> -0.008813666346 | BX17: 0 | BY17: =IF(RAND()<$F$1,_xll.dNormalDev($C$3,$D$3),0) -> 0 | BZ17: =IF(RAND()<$F$1,_xll.dNormalDev($C$3,$D$3),0) -> 0 | CC17: =_xll.dRandReal($C$1,$D$1) -> 0.04522586121 | CD17: =_xll.dNormalDev($C$2,$D$2) -> 0.05363821254 | CE17: =_xll.dNormalDev($C$4,$D$4) -> 0.7811175583 | CF17: 1 | CG17: =_xll.dRandInt($C$6,CA17*$BO$6) -> 1 | CH17: =_xll.dRandInt($C$7,$D$7) -> 21 | CI17: =IF(RAND()<$F$1,_xll.dNormalDev($C$3+MIN_FACTOR,$D$3),0) -> 0 | CJ17: =IF(RAND()<$F$1,_xll.dNormalDev($C$3+MIN_FACTOR,$D$3),0) -> 0 | CK17: =IF(RAND()<$F$1,_xll.dNormalDev($C$3+MIN_FACTOR,$D$3),0) -> 0 | CL17: =IF(RAND()<$F$1,_xll.dNormalDev($C$3+MIN_FACTOR,$D$3),0) -> 0 | CM17: =IF(RAND()<$F$1,_xll.dNormalDev($C$3+MIN_FACTOR,$D$3),0) -> 0 | CN17: =IF(RAND()<$F$1,_xll.dNormalDev($C$3+PLUS_FACTOR,$D$3),0) -> 0 | CO17: =IF(RAND()<$F$1,_xll.dNormalDev($C$3+PLUS_FACTOR,$D$3),0) -> 0 | CP17: =IF(RAND()<$F$1,_xll.dNormalDev($C$3+PLUS_FACTOR,$D$3),0) -> 0 | CQ17: =IF(RAND()<$F$1,_xll.dNormalDev($C$3+PLUS_FACTOR,$D$3),0) -> 0 | CR17: =IF(RAND()<$F$1,_xll.dNormalDev($C$3+PLUS_FACTOR,$D$3),0) -> 0 | CU17: =_xll.dRandReal($C$1,$D$1) -> 0.01362633171 | CV17: =_xll.dNormalDev($C$2,$D$2) -> 0.04917375852 | CW17: =_xll.dNormalDev($C$4,$D$4) -> 0.7663887931 | CX17: 1 | CY17: =_xll.dRandInt($C$6,CS17*$BO$6) -> 1 | CZ17: =_xll.dRandInt($C$7,$D$7) -> 20 | DA17: =IF(RAND()<$F$1,_xll.dNormalDev($C$3,$D$3),0) -> 0 | DB17: =IF(RAND()<$F$1,_xll.dNormalDev($C$3,$D$3),0) -> 0 | DC17: =IF(RAND()<$F$1,_xll.dNormalDev($C$3,$D$3),0) -> 0 | DD17: =IF(RAND()<$F$1,_xll.dNormalDev($C$3,$D$3),0) -> 0 | DE17: =IF(RAND()<$F$1,_xll.dNormalDev($C$3,$D$3),0) -> 0 | DF17: =IF(RAND()<$F$1,_xll.dNormalDev($C$3,$D$3),0) -> 0 | DG17: =IF(RAND()<$F$1,_xll.dNormalDev($C$3,$D$3),0) -> 0.02273495056 | DH17: 0 | DI17: =IF(RAND()<$F$1,_xll.dNormalDev($C$3,$D$3),0) -> 0 | DJ17: =IF(RAND()<$F$1,_xll.dNormalDev($C$3,$D$3),0) -> 0
A18: 10 | B18: 0.9540164128 | C18: =_xll.dRandReal($C$1,$D$1) -> 0.03882648447 | D18: =_xll.dNormalDev($C$2,$D$2) -> 0.04216501119 | E18: =_xll.dNormalDev($C$4,$D$4) -> 1.007597242 | F18: 1 | G18: =_xll.dRandInt($C$6,A18*$BO$6) -> 146 | H18: =_xll.dRandInt($C$7,$D$7) -> 17 | I18: =IF(RAND()<$F$1,_xll.dNormalDev($C$3,$D$3),0) -> 0 | J18: =IF(RAND()<$F$1,_xll.dNormalDev($C$3,$D$3),0) -> 0 | K18: =IF(RAND()<$F$1,_xll.dNormalDev($C$3,$D$3),0) -> 0 | L18: =IF(RAND()<$F$1,_xll.dNormalDev($C$3,$D$3),0) -> 0 | M18: =IF(RAND()<$F$1,_xll.dNormalDev($C$3,$D$3),0) -> 0 | N18: =IF(RAND()<$F$1,_xll.dNormalDev($C$3,$D$3),0) -> 0 | O18: =IF(RAND()<$F$1,_xll.dNormalDev($C$3,$D$3),0) -> 0 | P18: =IF(RAND()<$F$1,_xll.dNormalDev($C$3,$D$3),0) -> 0 | Q18: =IF(RAND()<$F$1,_xll.dNormalDev($C$3,$D$3),0) -> 0 | R18: 0 | S18: 0 | T18: 0 | U18: 0 | V18: 0 | W18: 0 | X18: -0.02397815626 | Y18: 0 | AE18: 194.0511353 | AF18: -0.02397815626 | AG18: -4.652988445 | BI18: 9 | BK18: =_xll.dRandReal($C$1,$D$1) -> 0.03573827157 | BL18: =_xll.dNormalDev($C$2,$D$2) -> 0.04123238028 | BM18: =_xll.dNormalDev($C$4,$D$4) -> 1.063092648 | BN18: 1 | BO18: =_xll.dRandInt($C$6,BI18*$BO$6) -> 146 | BP18: =_xll.dRandInt($C$7,$D$7) -> 20 | BQ18: =IF(RAND()<$F$1,_xll.dNormalDev($C$3,$D$3),0) -> 0.01140197258 | BR18: =IF(RAND()<$F$1,_xll.dNormalDev($C$3,$D$3),0) -> 0 | BS18: =IF(RAND()<$F$1,_xll.dNormalDev($C$3,$D$3),0) -> -0.01475029686 | BT18: =IF(RAND()<$F$1,_xll.dNormalDev($C$3,$D$3),0) -> 0.006951027038 | BU18: =IF(RAND()<$F$1,_xll.dNormalDev($C$3,$D$3),0) -> -0.006432554337 | BV18: =IF(RAND()<$F$1,_xll.dNormalDev($C$3,$D$3),0) -> 0 | BW18: =IF(RAND()<$F$1,_xll.dNormalDev($C$3,$D$3),0) -> 0.01851272683 | BX18: =IF(RAND()<$F$1,_xll.dNormalDev($C$3,$D$3),0) -> 0 | BY18: 0 | BZ18: =IF(RAND()<$F$1,_xll.dNormalDev($C$3,$D$3),0) -> 0 | CC18: =_xll.dRandReal($C$1,$D$1) -> 0.0045333519 | CD18: =_xll.dNormalDev($C$2,$D$2) -> 0.05384624532 | CE18: =_xll.dNormalDev($C$4,$D$4) -> 0.9724080842 | CF18: 1 | CG18: =_xll.dRandInt($C$6,CA18*$BO$6) -> 1 | CH18: =_xll.dRandInt($C$7,$D$7) -> 20 | CI18: =IF(RAND()<$F$1,_xll.dNormalDev($C$3+MIN_FACTOR,$D$3),0) -> 0 | CJ18: =IF(RAND()<$F$1,_xll.dNormalDev($C$3+MIN_FACTOR,$D$3),0) -> -0.02307166396 | CK18: =IF(RAND()<$F$1,_xll.dNormalDev($C$3+MIN_FACTOR,$D$3),0) -> 0 | CL18: =IF(RAND()<$F$1,_xll.dNormalDev($C$3+MIN_FACTOR,$D$3),0) -> 0 | CM18: =IF(RAND()<$F$1,_xll.dNormalDev($C$3+MIN_FACTOR,$D$3),0) -> 0 | CN18: =IF(RAND()<$F$1,_xll.dNormalDev($C$3+PLUS_FACTOR,$D$3),0) -> 0 | CO18: =IF(RAND()<$F$1,_xll.dNormalDev($C$3+PLUS_FACTOR,$D$3),0) -> 0 | CP18: =IF(RAND()<$F$1,_xll.dNormalDev($C$3+PLUS_FACTOR,$D$3),0) -> 0 | CQ18: =IF(RAND()<$F$1,_xll.dNormalDev($C$3+PLUS_FACTOR,$D$3),0) -> -0.04855703722 | CR18: =IF(RAND()<$F$1,_xll.dNormalDev($C$3+PLUS_FACTOR,$D$3),0) -> 0.02959178511 | CU18: =_xll.dRandReal($C$1,$D$1) -> 0.01730010358 | CV18: =_xll.dNormalDev($C$2,$D$2) -> 0.04417160106 | CW18: =_xll.dNormalDev($C$4,$D$4) -> 1.074947093 | CX18: 1 | CY18: =_xll.dRandInt($C$6,CS18*$BO$6) -> 1 | CZ18: =_xll.dRandInt($C$7,$D$7) -> 18 | DA18: =IF(RAND()<$F$1,_xll.dNormalDev($C$3,$D$3),0) -> 0.01131224895 | DB18: =IF(RAND()<$F$1,_xll.dNormalDev($C$3,$D$3),0) -> 0 | DC18: =IF(RAND()<$F$1,_xll.dNormalDev($C$3,$D$3),0) -> 0.01767485974 | DD18: =IF(RAND()<$F$1,_xll.dNormalDev($C$3,$D$3),0) -> 0.01082852143 | DE18: =IF(RAND()<$F$1,_xll.dNormalDev($C$3,$D$3),0) -> 0 | DF18: =IF(RAND()<$F$1,_xll.dNormalDev($C$3,$D$3),0) -> 0 | DG18: =IF(RAND()<$F$1,_xll.dNormalDev($C$3,$D$3),0) -> 0 | DH18: =IF(RAND()<$F$1,_xll.dNormalDev($C$3,$D$3),0) -> 0 | DI18: 0 | DJ18: =IF(RAND()<$F$1,_xll.dNormalDev($C$3,$D$3),0) -> 0
S19: quadratic_condition | T19: 1 | U19: =IF(I$21=MAX(maxlevel10),I19,"") ->  | V19: =IF(J$21=MAX(maxlevel10),J19,"") ->  | W19: =IF(K$21=MAX(maxlevel10),K19,"") ->  | X19: =IF(L$21=MAX(maxlevel10),L19,"") ->  | Y19: 0 | AE19: 262.2435097 | AF19: 0 | AG19: 0 | BI19: 10 | BK19: =_xll.dRandReal($C$1,$D$1) -> 0.01054642372 | BL19: =_xll.dNormalDev($C$2,$D$2) -> 0.05172908283 | BM19: =_xll.dNormalDev($C$4,$D$4) -> 1.129979875 | BN19: 1 | BO19: =_xll.dRandInt($C$6,BI19*$BO$6) -> 106 | BP19: =_xll.dRandInt($C$7,$D$7) -> 15 | BQ19: =IF(RAND()<$F$1,_xll.dNormalDev($C$3,$D$3),0) -> 0 | BR19: =IF(RAND()<$F$1,_xll.dNormalDev($C$3,$D$3),0) -> 0 | BS19: =IF(RAND()<$F$1,_xll.dNormalDev($C$3,$D$3),0) -> 0 | BT19: =IF(RAND()<$F$1,_xll.dNormalDev($C$3,$D$3),0) -> 0 | BU19: =IF(RAND()<$F$1,_xll.dNormalDev($C$3,$D$3),0) -> 0 | BV19: =IF(RAND()<$F$1,_xll.dNormalDev($C$3,$D$3),0) -> 0 | BW19: =IF(RAND()<$F$1,_xll.dNormalDev($C$3,$D$3),0) -> 0 | BX19: =IF(RAND()<$F$1,_xll.dNormalDev($C$3,$D$3),0) -> 0 | BY19: =IF(RAND()<$F$1,_xll.dNormalDev($C$3,$D$3),0) -> 0 | BZ19: 0 | CC19: =_xll.dRandReal($C$1,$D$1) -> 0.007714422245 | CD19: =_xll.dNormalDev($C$2,$D$2) -> 0.05439082027 | CE19: =_xll.dNormalDev($C$4,$D$4) -> 0.9596347276 | CF19: 1 | CG19: =_xll.dRandInt($C$6,CA19*$BO$6) -> 1 | CH19: =_xll.dRandInt($C$7,$D$7) -> 23 | CI19: =IF(RAND()<$F$1,_xll.dNormalDev($C$3+MIN_FACTOR,$D$3),0) -> 0 | CJ19: =IF(RAND()<$F$1,_xll.dNormalDev($C$3+MIN_FACTOR,$D$3),0) -> 0 | CK19: =IF(RAND()<$F$1,_xll.dNormalDev($C$3+MIN_FACTOR,$D$3),0) -> 0 | CL19: =IF(RAND()<$F$1,_xll.dNormalDev($C$3+MIN_FACTOR,$D$3),0) -> 0 | CM19: =IF(RAND()<$F$1,_xll.dNormalDev($C$3+MIN_FACTOR,$D$3),0) -> 0 | CN19: =IF(RAND()<$F$1,_xll.dNormalDev($C$3+PLUS_FACTOR,$D$3),0) -> 0 | CO19: =IF(RAND()<$F$1,_xll.dNormalDev($C$3+PLUS_FACTOR,$D$3),0) -> 0 | CP19: =IF(RAND()<$F$1,_xll.dNormalDev($C$3+PLUS_FACTOR,$D$3),0) -> 0 | CQ19: =IF(RAND()<$F$1,_xll.dNormalDev($C$3+PLUS_FACTOR,$D$3),0) -> 0 | CR19: =IF(RAND()<$F$1,_xll.dNormalDev($C$3+PLUS_FACTOR,$D$3),0) -> 0 | CU19: =_xll.dRandReal($C$1,$D$1) -> 0.01399001323 | CV19: =_xll.dNormalDev($C$2,$D$2) -> 0.03616733881 | CW19: =_xll.dNormalDev($C$4,$D$4) -> 1.071815122 | CX19: 1 | CY19: =_xll.dRandInt($C$6,CS19*$BO$6) -> 1 | CZ19: =_xll.dRandInt($C$7,$D$7) -> 15 | DA19: =IF(RAND()<$F$1,_xll.dNormalDev($C$3,$D$3),0) -> 0 | DB19: =IF(RAND()<$F$1,_xll.dNormalDev($C$3,$D$3),0) -> 0.03013077671 | DC19: =IF(RAND()<$F$1,_xll.dNormalDev($C$3,$D$3),0) -> 0.0001909599497 | DD19: =IF(RAND()<$F$1,_xll.dNormalDev($C$3,$D$3),0) -> 0.00748704728 | DE19: =IF(RAND()<$F$1,_xll.dNormalDev($C$3,$D$3),0) -> 0 | DF19: =IF(RAND()<$F$1,_xll.dNormalDev($C$3,$D$3),0) -> 0 | DG19: =IF(RAND()<$F$1,_xll.dNormalDev($C$3,$D$3),0) -> 0 | DH19: =IF(RAND()<$F$1,_xll.dNormalDev($C$3,$D$3),0) -> 0 | DI19: =IF(RAND()<$F$1,_xll.dNormalDev($C$3,$D$3),0) -> 0 | DJ19: 0
H20: Sum | I20: =SUM(I9:I18) -> 0.01054177724 | J20: =SUM(J9:J18) -> -0.008849270258 | K20: -0.01286426142 | L20: 0 | M20: 0.04205351475 | N20: -0.01593359076 | O20: 0 | P20: -0.01375951367 | Q20: 0 | R20: -0.001688978195 | S20: pref_attach_on | T20: 0 | AG20: =SUM(AG10:AG19) -> -46.87691705
B21: Max | H21: Max | I21: =MAX(I24:I522) -> 1.312335352 | J21: 0.8471454365 | K21: 0.7680468744 | L21: 1.317056155 | M21: 1.962281964 | N21: 0.9864189645 | O21: 1.011575292 | P21: 0.906799605 | Q21: 0.9095466227 | R21: 0.9540164128 | S21: threshold | T21: 0 | BQ21: 25
A22: grower1 | B22: =TRANSPOSE(maxlevel10) -> 1.312335352 | C22: =TRANSPOSE(early_levels) -> 0.2924446511 | F22: =B22 -> 1.312335352 | I22: =I21*I20 -> 0.01383434695 | J22: -0.007496618916 | K22: -0.009880355773 | L22: 0 | M22: 0.08252085352 | N22: -0.0157171961 | O22: 0 | P22: -0.01247712156 | Q22: 0 | R22: -0.001611312919 | S22: poisson prob | T22: 0.002 | AJ22: =COUNTIF(AJ24:AJ33,"<>0") -> 4 | AK22: =COUNTIF(AK24:AK33,"<>0") -> 3 | AL22: 1 | AM22: 2 | AN22: 0 | AO22: 1 | AP22: 1 | AQ22: 1 | AR22: 2 | AS22: 0 | BI22: grower | BK22: initial40 | BL22: rate40 | BM22: carcap40 | BN22: effect_type | BO22: delay | BP22: MyMax | BQ22: grower1 | BR22: grower2 | BS22: grower3 | BT22: grower4 | BU22: grower5 | BV22: grower6 | BW22: grower7 | BX22: grower8 | BY22: grower9 | BZ22: grower10 | CC22: initial40 | CD22: rate40 | CE22: carcap40 | CF22: effect_type | CG22: delay | CH22: MyMax | CI22: grower1 | CJ22: grower2 | CK22: grower3 | CL22: grower4 | CM22: grower5 | CN22: grower6 | CO22: grower7 | CP22: grower8 | CQ22: grower9 | CR22: grower10
A23: grower2 | B23: 0.8471454365 | C23: 0.3183952544 | F23: =E10 -> 1.044243448 | G23: step | H23: time | I23: grower1 | J23: grower2 | K23: grower3 | L23: grower4 | M23: grower5 | N23: grower6 | O23: grower7 | P23: grower8 | Q23: grower9 | R23: grower10 | S23: products 3 | T23: =S522 -> 0 | X23: grower1 | Y23: grower2 | Z23: grower3 | AA23: grower4 | AB23: grower5 | AC23: grower6 | AD23: grower7 | AE23: grower8 | AF23: grower9 | AG23: grower10 | AJ23: grower1 | AK23: grower2 | AL23: grower3 | AM23: grower4 | AN23: grower5 | AO23: grower6 | AP23: grower7 | AQ23: grower8 | AR23: grower9 | AS23: grower10 | BI23: 1 | BK23: =_xll.dRandReal($C$1,$D$1) -> 0.01596465324 | BL23: =_xll.dNormalDev($C$2,$D$2) -> 0.03830273262 | BM23: =_xll.dNormalDev($C$4,$D$4) -> 1.024672332 | BN23: =IF(RAND()<$L$2,1,0) -> 1 | BO23: 1 | BP23: =_xll.dRandInt($C$7,$D$7) -> 14 | BQ23: =IF(RAND()<$F$1,_xll.dNormalDev($C$3-((1-(501-$BO23)/500)/$BQ$21),$D$3),0) -> -0.001073921855 | BR23: =IF(RAND()<$F$1,_xll.dNormalDev($C$3-((1-(501-$BO23)/500)/$BQ$21),$D$3),0) -> 0 | BS23: =IF(RAND()<$F$1,_xll.dNormalDev($C$3-((1-(501-$BO23)/500)/$BQ$21),$D$3),0) -> -0.004355826227 | BT23: =IF(RAND()<$F$1,_xll.dNormalDev($C$3-((1-(501-$BO23)/500)/$BQ$21),$D$3),0) -> 0 | BU23: =IF(RAND()<$F$1,_xll.dNormalDev($C$3-((1-(501-$BO23)/500)/$BQ$21),$D$3),0) -> -0.02745344926 | BV23: =IF(RAND()<$F$1,_xll.dNormalDev($C$3-((1-(501-$BO23)/500)/$BQ$21),$D$3),0) -> 0 | BW23: =IF(RAND()<$F$1,_xll.dNormalDev($C$3-((1-(501-$BO23)/500)/$BQ$21),$D$3),0) -> 0 | BX23: =IF(RAND()<$F$1,_xll.dNormalDev($C$3-((1-(501-$BO23)/500)/$BQ$21),$D$3),0) -> 0 | BY23: =IF(RAND()<$F$1,_xll.dNormalDev($C$3-((1-(501-$BO23)/500)/$BQ$21),$D$3),0) -> 0 | BZ23: =IF(RAND()<$F$1,_xll.dNormalDev($C$3-((1-(501-$BO23)/500)/$BQ$21),$D$3),0) -> 0.01356834063 | CC23: =_xll.dRandReal($C$1,$D$1) -> 0.02375282274 | CD23: =_xll.dNormalDev($C$2,$D$2) -> 0.04465247749 | CE23: =_xll.dNormalDev($C$4,$D$4) -> 0.8042854366 | CF23: =IF(RAND()<$L$2,1,0) -> 1 | CG23: 1 | CH23: =_xll.dRandInt($C$7,$D$7) -> 10 | CI23: 0 | CJ23: =IF(RAND()<$F$1,_xll.dNormalDev($C$3,$D$3),0) -> 0 | CK23: =IF(RAND()<$F$1,_xll.dNormalDev($C$3,$D$3),0) -> 0 | CL23: =IF(RAND()<$F$1,_xll.dNormalDev($C$3,$D$3),0) -> 0 | CM23: =IF(RAND()<$F$1,_xll.dNormalDev($C$3,$D$3),0) -> 0 | CN23: =IF(RAND()<$F$1,_xll.dNormalDev($C$3,$D$3),0) -> 0 | CO23: =IF(RAND()<$F$1,_xll.dNormalDev($C$3,$D$3),0) -> 0 | CP23: =IF(RAND()<$F$1,_xll.dNormalDev($C$3,$D$3),0) -> 0 | CQ23: =IF(RAND()<$F$1,_xll.dNormalDev($C$3,$D$3),0) -> 0 | CR23: =IF(RAND()<$F$1,_xll.dNormalDev($C$3,$D$3),0) -> 0
A24: grower3 | B24: 0.7680468744 | C24: 0.06525662842 | D24: =B35 -> 1.962281964 | F24: =D10 -> 0.05363685844 | G24: 1 | H24: 0.1 | I24: =FGrowthMatrix8(C9:C18,D9:D18,E9:E18,F9:F18,G9:G18,H9:H18,I9:R18,500) -> 0.02666957719 | J24: 0.0348844373 | K24: 0.0103347638 | L24: 0.007653501374 | M24: 0.006229080691 | N24: 0.01446233672 | O24: 0.0294473993 | P24: 0.02423515073 | Q24: 0.02887495704 | R24: 0.03882648447 | S24: 0 | T24: 0 | U24: =calculate_product_slope(T24:T522) -> 0 | X24: =I9*AVERAGE($I24:$I522) -> 0 | Y24: 0 | Z24: 0 | AA24: 0 | AB24: 0 | AC24: 0.02364232524 | AD24: 0 | AE24: 0 | AF24: 0 | AG24: 0.002572549542 | AJ24: 0 | AK24: =IF(RAND()<$F$1,_xll.dNormalDev($C$3,$D$3),0) -> 0.002732050957 | AL24: =IF(RAND()<$F$1,_xll.dNormalDev($C$3,$D$3),0) -> 0 | AM24: =IF(RAND()<$F$1,_xll.dNormalDev($C$3,$D$3),0) -> 0 | AN24: =IF(RAND()<$F$1,_xll.dNormalDev($C$3,$D$3),0) -> 0 | AO24: =IF(RAND()<$F$1,_xll.dNormalDev($C$3,$D$3),0) -> 0 | AP24: =IF(RAND()<$F$1,_xll.dNormalDev($C$3,$D$3),0) -> 0 | AQ24: =IF(RAND()<$F$1,_xll.dNormalDev($C$3,$D$3),0) -> 0 | AR24: =IF(RAND()<$F$1,_xll.dNormalDev($C$3,$D$3),0) -> 0 | AS24: =IF(RAND()<$F$1,_xll.dNormalDev($C$3,$D$3),0) -> 0 | BI24: 2 | BK24: =_xll.dRandReal($C$1,$D$1) -> 0.01310380504 | BL24: =_xll.dNormalDev($C$2,$D$2) -> 0.07522341386 | BM24: =_xll.dNormalDev($C$4,$D$4) -> 0.9794533129 | BN24: 1 | BO24: 1 | BP24: =_xll.dRandInt($C$7,$D$7) -> 20 | BQ24: =IF(RAND()<$F$1,_xll.dNormalDev($C$3-((1-(501-$BO24)/500)/$BQ$21),$D$3),0) -> 0.0160237721 | BR24: =IF(RAND()<$F$1,_xll.dNormalDev($C$3-((1-(501-$BO24)/500)/$BQ$21),$D$3),0) -> 0 | BS24: =IF(RAND()<$F$1,_xll.dNormalDev($C$3-((1-(501-$BO24)/500)/$BQ$21),$D$3),0) -> 0 | BT24: =IF(RAND()<$F$1,_xll.dNormalDev($C$3-((1-(501-$BO24)/500)/$BQ$21),$D$3),0) -> 0 | BU24: =IF(RAND()<$F$1,_xll.dNormalDev($C$3-((1-(501-$BO24)/500)/$BQ$21),$D$3),0) -> 0 | BV24: =IF(RAND()<$F$1,_xll.dNormalDev($C$3-((1-(501-$BO24)/500)/$BQ$21),$D$3),0) -> 0 | BW24: =IF(RAND()<$F$1,_xll.dNormalDev($C$3-((1-(501-$BO24)/500)/$BQ$21),$D$3),0) -> 0.007342283208 | BX24: =IF(RAND()<$F$1,_xll.dNormalDev($C$3-((1-(501-$BO24)/500)/$BQ$21),$D$3),0) -> 0.007099070339 | BY24: =IF(RAND()<$F$1,_xll.dNormalDev($C$3-((1-(501-$BO24)/500)/$BQ$21),$D$3),0) -> 0 | BZ24: =IF(RAND()<$F$1,_xll.dNormalDev($C$3-((1-(501-$BO24)/500)/$BQ$21),$D$3),0) -> 0.01303522495 | CC24: =_xll.dRandReal($C$1,$D$1) -> 0.04212169711 | CD24: =_xll.dNormalDev($C$2,$D$2) -> 0.0498963104 | CE24: =_xll.dNormalDev($C$4,$D$4) -> 0.8980132514 | CF24: 1 | CG24: 1 | CH24: =_xll.dRandInt($C$7,$D$7) -> 14 | CI24: =IF(RAND()<$F$1,_xll.dNormalDev($C$3,$D$3),0) -> 0 | CJ24: 0 | CK24: =IF(RAND()<$F$1,_xll.dNormalDev($C$3,$D$3),0) -> 0 | CL24: =IF(RAND()<$F$1,_xll.dNormalDev($C$3,$D$3),0) -> 0 | CM24: =IF(RAND()<$F$1,_xll.dNormalDev($C$3,$D$3),0) -> 0.003510418116 | CN24: =IF(RAND()<$F$1,_xll.dNormalDev($C$3,$D$3),0) -> -0.005467958787 | CO24: =IF(RAND()<$F$1,_xll.dNormalDev($C$3,$D$3),0) -> 0 | CP24: =IF(RAND()<$F$1,_xll.dNormalDev($C$3,$D$3),0) -> 0 | CQ24: =IF(RAND()<$F$1,_xll.dNormalDev($C$3,$D$3),0) -> -0.01064582706 | CR24: =IF(RAND()<$F$1,_xll.dNormalDev($C$3,$D$3),0) -> -0.01814424911
A25: grower4 | B25: 1.317056155 | C25: 0.1158278164 | F25: =I20 -> 0.01054177724 | G25: 2 | H25: 0.2 | I25: 0.02815606719 | J25: 0.03668765937 | K25: 0.01073947368 | L25: 0.008101377272 | M25: 0.006229080691 | N25: 0.01446233672 | O25: 0.0294473993 | P25: 0.02423515073 | Q25: 0.02887495704 | R25: 0.03882648447 | S25: 0 | T25: =S25-S24 -> 0 | X25: =I10*AVERAGE($J24:$J522) -> 0 | Y25: 0 | Z25: 0 | AA25: 0 | AB25: 0 | AC25: 0 | AD25: 0 | AE25: -0.005264782949 | AF25: 0 | AG25: 0 | AJ25: =IF(RAND()<$F$1,_xll.dNormalDev($C$3,$D$3),0) -> 0.02270983717 | AK25: 0 | AL25: =IF(RAND()<$F$1,_xll.dNormalDev($C$3,$D$3),0) -> 0 | AM25: =IF(RAND()<$F$1,_xll.dNormalDev($C$3,$D$3),0) -> 0 | AN25: =IF(RAND()<$F$1,_xll.dNormalDev($C$3,$D$3),0) -> 0 | AO25: =IF(RAND()<$F$1,_xll.dNormalDev($C$3,$D$3),0) -> -0.006063584224 | AP25: =IF(RAND()<$F$1,_xll.dNormalDev($C$3,$D$3),0) -> 0 | AQ25: =IF(RAND()<$F$1,_xll.dNormalDev($C$3,$D$3),0) -> 0 | AR25: =IF(RAND()<$F$1,_xll.dNormalDev($C$3,$D$3),0) -> 0 | AS25: =IF(RAND()<$F$1,_xll.dNormalDev($C$3,$D$3),0) -> 0 | BI25: 3 | BK25: =_xll.dRandReal($C$1,$D$1) -> 0.02408316324 | BL25: =_xll.dNormalDev($C$2,$D$2) -> 0.04741906654 | BM25: =_xll.dNormalDev($C$4,$D$4) -> 1.261215122 | BN25: 1 | BO25: =_xll.dRandInt($C$6,BI25*$BO$6) -> 38 | BP25: =_xll.dRandInt($C$7,$D$7) -> 24 | BQ25: =IF(RAND()<$F$1,_xll.dNormalDev($C$3-((1-(501-$BO25)/500)/$BQ$21),$D$3),0) -> 0 | BR25: =IF(RAND()<$F$1,_xll.dNormalDev($C$3-((1-(501-$BO25)/500)/$BQ$21),$D$3),0) -> 0 | BS25: =IF(RAND()<$F$1,_xll.dNormalDev($C$3-((1-(501-$BO25)/500)/$BQ$21),$D$3),0) -> 0 | BT25: =IF(RAND()<$F$1,_xll.dNormalDev($C$3-((1-(501-$BO25)/500)/$BQ$21),$D$3),0) -> 0 | BU25: =IF(RAND()<$F$1,_xll.dNormalDev($C$3-((1-(501-$BO25)/500)/$BQ$21),$D$3),0) -> 0 | BV25: =IF(RAND()<$F$1,_xll.dNormalDev($C$3-((1-(501-$BO25)/500)/$BQ$21),$D$3),0) -> 0 | BW25: =IF(RAND()<$F$1,_xll.dNormalDev($C$3-((1-(501-$BO25)/500)/$BQ$21),$D$3),0) -> 0 | BX25: =IF(RAND()<$F$1,_xll.dNormalDev($C$3-((1-(501-$BO25)/500)/$BQ$21),$D$3),0) -> 0.0197599865 | BY25: =IF(RAND()<$F$1,_xll.dNormalDev($C$3-((1-(501-$BO25)/500)/$BQ$21),$D$3),0) -> 0 | BZ25: =IF(RAND()<$F$1,_xll.dNormalDev($C$3-((1-(501-$BO25)/500)/$BQ$21),$D$3),0) -> 0 | CC25: =_xll.dRandReal($C$1,$D$1) -> 0.04558264792 | CD25: =_xll.dNormalDev($C$2,$D$2) -> 0.03317355585 | CE25: =_xll.dLogNormalDev($C$5,$D$5) -> 0.3721402071 | CF25: 1 | CG25: 1 | CH25: =_xll.dRandInt($C$7,$D$7) -> 15 | CI25: =IF(RAND()<$F$1,_xll.dNormalDev($C$3,$D$3),0) -> 0 | CJ25: =IF(RAND()<$F$1,_xll.dNormalDev($C$3,$D$3),0) -> 0 | CK25: 0 | CL25: =IF(RAND()<$F$1,_xll.dNormalDev($C$3,$D$3),0) -> 0 | CM25: =IF(RAND()<$F$1,_xll.dNormalDev($C$3,$D$3),0) -> 0 | CN25: =IF(RAND()<$F$1,_xll.dNormalDev($C$3,$D$3),0) -> 0.02686932629 | CO25: =IF(RAND()<$F$1,_xll.dNormalDev($C$3,$D$3),0) -> 0 | CP25: =IF(RAND()<$F$1,_xll.dNormalDev($C$3,$D$3),0) -> 0 | CQ25: =IF(RAND()<$F$1,_xll.dNormalDev($C$3,$D$3),0) -> 0.004035637187 | CR25: =IF(RAND()<$F$1,_xll.dNormalDev($C$3,$D$3),0) -> 0
A26: grower5 | B26: 1.962281964 | C26: 0.01906456175 | G26: 3 | H26: 0.3 | I26: 0.02972269302 | J26: 0.03858039195 | K26: 0.01115985178 | L26: 0.008575290188 | M26: 0.006229080691 | N26: 0.01446233672 | O26: 0.0294473993 | P26: 0.02423515073 | Q26: 0.02887495704 | R26: 0.03882648447 | S26: 0 | T26: =S26-S25 -> 0 | X26: =I11*AVERAGE($K24:$K522) -> 0 | Y26: 0 | Z26: 0 | AA26: 0 | AB26: 0 | AC26: -0.007615133343 | AD26: 0 | AE26: 0 | AF26: 0 | AG26: 0 | AJ26: =IF(RAND()<$F$1,_xll.dNormalDev($C$3,$D$3),0) -> -0.01905259193 | AK26: =IF(RAND()<$F$1,_xll.dNormalDev($C$3,$D$3),0) -> 0 | AL26: 0 | AM26: =IF(RAND()<$F$1,_xll.dNormalDev($C$3,$D$3),0) -> 0 | AN26: =IF(RAND()<$F$1,_xll.dNormalDev($C$3,$D$3),0) -> 0 | AO26: =IF(RAND()<$F$1,_xll.dNormalDev($C$3,$D$3),0) -> 0 | AP26: =IF(RAND()<$F$1,_xll.dNormalDev($C$3,$D$3),0) -> 0 | AQ26: =IF(RAND()<$F$1,_xll.dNormalDev($C$3,$D$3),0) -> 0 | AR26: =IF(RAND()<$F$1,_xll.dNormalDev($C$3,$D$3),0) -> -0.002108638234 | AS26: =IF(RAND()<$F$1,_xll.dNormalDev($C$3,$D$3),0) -> 0 | BI26: 4 | BK26: =_xll.dRandReal($C$1,$D$1) -> 0.03985343373 | BL26: =_xll.dNormalDev($C$2,$D$2) -> 0.04499885059 | BM26: =_xll.dNormalDev($C$4,$D$4) -> 1.175554808 | BN26: 1 | BO26: =_xll.dRandInt($C$6,BI26*$BO$6) -> 4 | BP26: =_xll.dRandInt($C$7,$D$7) -> 14 | BQ26: =IF(RAND()<$F$1,_xll.dNormalDev($C$3-((1-(501-$BO26)/500)/$BQ$21),$D$3),0) -> 0 | BR26: =IF(RAND()<$F$1,_xll.dNormalDev($C$3-((1-(501-$BO26)/500)/$BQ$21),$D$3),0) -> 0 | BS26: =IF(RAND()<$F$1,_xll.dNormalDev($C$3-((1-(501-$BO26)/500)/$BQ$21),$D$3),0) -> 0 | BT26: =IF(RAND()<$F$1,_xll.dNormalDev($C$3-((1-(501-$BO26)/500)/$BQ$21),$D$3),0) -> 0 | BU26: =IF(RAND()<$F$1,_xll.dNormalDev($C$3-((1-(501-$BO26)/500)/$BQ$21),$D$3),0) -> -0.03549516991 | BV26: =IF(RAND()<$F$1,_xll.dNormalDev($C$3-((1-(501-$BO26)/500)/$BQ$21),$D$3),0) -> 0 | BW26: =IF(RAND()<$F$1,_xll.dNormalDev($C$3-((1-(501-$BO26)/500)/$BQ$21),$D$3),0) -> 0 | BX26: =IF(RAND()<$F$1,_xll.dNormalDev($C$3-((1-(501-$BO26)/500)/$BQ$21),$D$3),0) -> 0 | BY26: =IF(RAND()<$F$1,_xll.dNormalDev($C$3-((1-(501-$BO26)/500)/$BQ$21),$D$3),0) -> 0.006108920555 | BZ26: =IF(RAND()<$F$1,_xll.dNormalDev($C$3-((1-(501-$BO26)/500)/$BQ$21),$D$3),0) -> 0.02596659262 | CC26: =_xll.dRandReal($C$1,$D$1) -> 0.0001423332375 | CD26: =_xll.dNormalDev($C$2,$D$2) -> 0.04411001643 | CE26: =_xll.dLogNormalDev($C$5,$D$5) -> 0.5158236118 | CF26: 1 | CG26: 1 | CH26: =_xll.dRandInt($C$7,$D$7) -> 21 | CI26: =IF(RAND()<$F$1,_xll.dNormalDev($C$3,$D$3),0) -> 0.001665906086 | CJ26: =IF(RAND()<$F$1,_xll.dNormalDev($C$3,$D$3),0) -> 0 | CK26: =IF(RAND()<$F$1,_xll.dNormalDev($C$3,$D$3),0) -> 0 | CL26: 0 | CM26: =IF(RAND()<$F$1,_xll.dNormalDev($C$3,$D$3),0) -> -0.00899252358 | CN26: =IF(RAND()<$F$1,_xll.dNormalDev($C$3,$D$3),0) -> 0 | CO26: =IF(RAND()<$F$1,_xll.dNormalDev($C$3,$D$3),0) -> 0 | CP26: =IF(RAND()<$F$1,_xll.dNormalDev($C$3,$D$3),0) -> 0 | CQ26: =IF(RAND()<$F$1,_xll.dNormalDev($C$3,$D$3),0) -> 0 | CR26: =IF(RAND()<$F$1,_xll.dNormalDev($C$3,$D$3),0) -> 0
A27: grower6 | B27: 0.9864189645 | C27: 0.01446233672 | G27: 4 | H27: 0.4 | I27: 0.03137346507 | J27: 0.04056668638 | K27: 0.01159649033 | L27: 0.009076733037 | M27: 0.006229080691 | N27: 0.01446233672 | O27: 0.0294473993 | P27: 0.02423515073 | Q27: 0.02887495704 | R27: 0.03882648447 | S27: 0 | T27: 0 | X27: =I12*AVERAGE($L24:$L522) -> 0 | Y27: -0.009539507972 | Z27: 0 | AA27: 0 | AB27: 0 | AC27: 0 | AD27: 0 | AE27: 0 | AF27: 0 | AG27: -0.004568105353 | AJ27: =IF(RAND()<$F$1,_xll.dNormalDev($C$3,$D$3),0) -> -0.001362631464 | AK27: =IF(RAND()<$F$1,_xll.dNormalDev($C$3,$D$3),0) -> 0 | AL27: =IF(RAND()<$F$1,_xll.dNormalDev($C$3,$D$3),0) -> 0 | AM27: 0 | AN27: =IF(RAND()<$F$1,_xll.dNormalDev($C$3,$D$3),0) -> 0 | AO27: =IF(RAND()<$F$1,_xll.dNormalDev($C$3,$D$3),0) -> 0 | AP27: =IF(RAND()<$F$1,_xll.dNormalDev($C$3,$D$3),0) -> 0 | AQ27: =IF(RAND()<$F$1,_xll.dNormalDev($C$3,$D$3),0) -> 0 | AR27: =IF(RAND()<$F$1,_xll.dNormalDev($C$3,$D$3),0) -> 0 | AS27: =IF(RAND()<$F$1,_xll.dNormalDev($C$3,$D$3),0) -> 0 | BI27: 5 | BK27: =_xll.dRandReal($C$1,$D$1) -> 0.01711304745 | BL27: =_xll.dNormalDev($C$2,$D$2) -> 0.05683204141 | BM27: =_xll.dNormalDev($C$4,$D$4) -> 0.7573705825 | BN27: 1 | BO27: =_xll.dRandInt($C$6,BI27*$BO$6) -> 131 | BP27: =_xll.dRandInt($C$7,$D$7) -> 24 | BQ27: =IF(RAND()<$F$1,_xll.dNormalDev($C$3-((1-(501-$BO27)/500)/$BQ$21),$D$3),0) -> 0 | BR27: =IF(RAND()<$F$1,_xll.dNormalDev($C$3-((1-(501-$BO27)/500)/$BQ$21),$D$3),0) -> 0 | BS27: =IF(RAND()<$F$1,_xll.dNormalDev($C$3-((1-(501-$BO27)/500)/$BQ$21),$D$3),0) -> 0 | BT27: =IF(RAND()<$F$1,_xll.dNormalDev($C$3-((1-(501-$BO27)/500)/$BQ$21),$D$3),0) -> 0 | BU27: =IF(RAND()<$F$1,_xll.dNormalDev($C$3-((1-(501-$BO27)/500)/$BQ$21),$D$3),0) -> 0 | BV27: =IF(RAND()<$F$1,_xll.dNormalDev($C$3-((1-(501-$BO27)/500)/$BQ$21),$D$3),0) -> 0 | BW27: =IF(RAND()<$F$1,_xll.dNormalDev($C$3-((1-(501-$BO27)/500)/$BQ$21),$D$3),0) -> 0 | BX27: =IF(RAND()<$F$1,_xll.dNormalDev($C$3-((1-(501-$BO27)/500)/$BQ$21),$D$3),0) -> 0 | BY27: =IF(RAND()<$F$1,_xll.dNormalDev($C$3-((1-(501-$BO27)/500)/$BQ$21),$D$3),0) -> 0 | BZ27: =IF(RAND()<$F$1,_xll.dNormalDev($C$3-((1-(501-$BO27)/500)/$BQ$21),$D$3),0) -> 0 | CC27: =_xll.dRandReal($C$1,$D$1) -> 0.02294663832 | CD27: =_xll.dNormalDev($C$2,$D$2) -> 0.06285843345 | CE27: =_xll.dNormalDev($C$4,$D$4) -> 1.129966415 | CF27: 1 | CG27: =_xll.dRandInt($C$6,CA27*$BO$6) -> 1 | CH27: =_xll.dRandInt($C$7,$D$7) -> 25 | CI27: =IF(RAND()<$F$1,_xll.dNormalDev($C$3,$D$3),0) -> 0 | CJ27: =IF(RAND()<$F$1,_xll.dNormalDev($C$3,$D$3),0) -> -0.01668336755 | CK27: =IF(RAND()<$F$1,_xll.dNormalDev($C$3,$D$3),0) -> 0 | CL27: =IF(RAND()<$F$1,_xll.dNormalDev($C$3,$D$3),0) -> 0 | CM27: 0 | CN27: =IF(RAND()<$F$1,_xll.dNormalDev($C$3,$D$3),0) -> 0 | CO27: =IF(RAND()<$F$1,_xll.dNormalDev($C$3,$D$3),0) -> 0 | CP27: =IF(RAND()<$F$1,_xll.dNormalDev($C$3,$D$3),0) -> 0 | CQ27: =IF(RAND()<$F$1,_xll.dNormalDev($C$3,$D$3),0) -> 0 | CR27: =IF(RAND()<$F$1,_xll.dNormalDev($C$3,$D$3),0) -> 0
A28: grower7 | B28: 1.011575292 | C28: 0.0294473993 | G28: 5 | H28: 0.5 | I28: 0.03311255929 | J28: 0.04265073592 | K28: 0.01205000279 | L28: 0.009607281841 | M28: 0.006229080691 | N28: 0.01446233672 | O28: 0.0294473993 | P28: 0.02423515073 | Q28: 0.02887495704 | R28: 0.03882648447 | S28: 0 | T28: 0 | X28: =I14*AVERAGE($N24:$N522) -> 0 | Y28: 0 | Z28: 0 | AA28: 0 | AB28: 0 | AC28: 0 | AD28: 0 | AE28: -0.003413625756 | AF28: 0 | AG28: 0 | AJ28: =IF(RAND()<$F$1,_xll.dNormalDev($C$3,$D$3),0) -> 0 | AK28: =IF(RAND()<$F$1,_xll.dNormalDev($C$3,$D$3),0) -> 0 | AL28: =IF(RAND()<$F$1,_xll.dNormalDev($C$3,$D$3),0) -> 0 | AM28: =IF(RAND()<$F$1,_xll.dNormalDev($C$3,$D$3),0) -> 0 | AN28: 0 | AO28: =IF(RAND()<$F$1,_xll.dNormalDev($C$3,$D$3),0) -> 0 | AP28: =IF(RAND()<$F$1,_xll.dNormalDev($C$3,$D$3),0) -> 0 | AQ28: =IF(RAND()<$F$1,_xll.dNormalDev($C$3,$D$3),0) -> 0 | AR28: =IF(RAND()<$F$1,_xll.dNormalDev($C$3,$D$3),0) -> 0 | AS28: =IF(RAND()<$F$1,_xll.dNormalDev($C$3,$D$3),0) -> 0 | BI28: 6 | BK28: =_xll.dRandReal($C$1,$D$1) -> 0.003563971363 | BL28: =_xll.dNormalDev($C$2,$D$2) -> 0.05855003761 | BM28: =_xll.dNormalDev($C$4,$D$4) -> 1.199895682 | BN28: 1 | BO28: =_xll.dRandInt($C$6,BI28*$BO$6) -> 161 | BP28: =_xll.dRandInt($C$7,$D$7) -> 13 | BQ28: =IF(RAND()<$F$1,_xll.dNormalDev($C$3-((1-(501-$BO28)/500)/$BQ$21),$D$3),0) -> 0 | BR28: =IF(RAND()<$F$1,_xll.dNormalDev($C$3-((1-(501-$BO28)/500)/$BQ$21),$D$3),0) -> -0.0338367568 | BS28: =IF(RAND()<$F$1,_xll.dNormalDev($C$3-((1-(501-$BO28)/500)/$BQ$21),$D$3),0) -> 0 | BT28: =IF(RAND()<$F$1,_xll.dNormalDev($C$3-((1-(501-$BO28)/500)/$BQ$21),$D$3),0) -> 0 | BU28: =IF(RAND()<$F$1,_xll.dNormalDev($C$3-((1-(501-$BO28)/500)/$BQ$21),$D$3),0) -> 0 | BV28: =IF(RAND()<$F$1,_xll.dNormalDev($C$3-((1-(501-$BO28)/500)/$BQ$21),$D$3),0) -> 0 | BW28: =IF(RAND()<$F$1,_xll.dNormalDev($C$3-((1-(501-$BO28)/500)/$BQ$21),$D$3),0) -> -0.01976037901 | BX28: =IF(RAND()<$F$1,_xll.dNormalDev($C$3-((1-(501-$BO28)/500)/$BQ$21),$D$3),0) -> 0 | BY28: =IF(RAND()<$F$1,_xll.dNormalDev($C$3-((1-(501-$BO28)/500)/$BQ$21),$D$3),0) -> 0 | BZ28: =IF(RAND()<$F$1,_xll.dNormalDev($C$3-((1-(501-$BO28)/500)/$BQ$21),$D$3),0) -> 0 | CC28: =_xll.dRandReal($C$1,$D$1) -> 0.01178431563 | CD28: =_xll.dNormalDev($C$2,$D$2) -> 0.05671696118 | CE28: =_xll.dNormalDev($C$4,$D$4) -> 0.9078504516 | CF28: 1 | CG28: =_xll.dRandInt($C$6,CA28*$BO$6) -> 1 | CH28: =_xll.dRandInt($C$7,$D$7) -> 12 | CI28: =IF(RAND()<$F$1,_xll.dNormalDev($C$3,$D$3),0) -> 0 | CJ28: =IF(RAND()<$F$1,_xll.dNormalDev($C$3,$D$3),0) -> 0 | CK28: =IF(RAND()<$F$1,_xll.dNormalDev($C$3,$D$3),0) -> 0 | CL28: =IF(RAND()<$F$1,_xll.dNormalDev($C$3,$D$3),0) -> 0 | CM28: =IF(RAND()<$F$1,_xll.dNormalDev($C$3,$D$3),0) -> 0 | CN28: 0 | CO28: =IF(RAND()<$F$1,_xll.dNormalDev($C$3,$D$3),0) -> 0 | CP28: =IF(RAND()<$F$1,_xll.dNormalDev($C$3,$D$3),0) -> 0 | CQ28: =IF(RAND()<$F$1,_xll.dNormalDev($C$3,$D$3),0) -> -0.03276425444 | CR28: =IF(RAND()<$F$1,_xll.dNormalDev($C$3,$D$3),0) -> 0.0002158569762
A29: grower8 | B29: 0.906799605 | C29: 0.02423515073 | G29: 6 | H29: 0.6 | I29: 0.03494431989 | J29: 0.04483687621 | K29: 0.01252102451 | L29: 0.01016860006 | M29: 0.006229080691 | N29: 0.01446233672 | O29: 0.0294473993 | P29: 0.02423515073 | Q29: 0.02887495704 | R29: 0.03882648447 | S29: 0 | T29: 0 | X29: =I15*AVERAGE($O24:$O522) -> 0 | Y29: 0 | Z29: 0 | AA29: 0 | AB29: 0 | AC29: 0 | AD29: 0 | AE29: 0 | AF29: 0 | AG29: 0 | AJ29: =IF(RAND()<$F$1,_xll.dNormalDev($C$3,$D$3),0) -> 0 | AK29: =IF(RAND()<$F$1,_xll.dNormalDev($C$3,$D$3),0) -> -0.002842954011 | AL29: =IF(RAND()<$F$1,_xll.dNormalDev($C$3,$D$3),0) -> 0 | AM29: =IF(RAND()<$F$1,_xll.dNormalDev($C$3,$D$3),0) -> 0 | AN29: =IF(RAND()<$F$1,_xll.dNormalDev($C$3,$D$3),0) -> 0 | AO29: 0 | AP29: =IF(RAND()<$F$1,_xll.dNormalDev($C$3,$D$3),0) -> 0 | AQ29: =IF(RAND()<$F$1,_xll.dNormalDev($C$3,$D$3),0) -> 0 | AR29: =IF(RAND()<$F$1,_xll.dNormalDev($C$3,$D$3),0) -> 0 | AS29: =IF(RAND()<$F$1,_xll.dNormalDev($C$3,$D$3),0) -> 0 | BI29: 7 | BK29: =_xll.dRandReal($C$1,$D$1) -> 0.003625720285 | BL29: =_xll.dNormalDev($C$2,$D$2) -> 0.0464227052 | BM29: =_xll.dNormalDev($C$4,$D$4) -> 1.196335914 | BN29: 1 | BO29: =_xll.dRandInt($C$6,BI29*$BO$6) -> 205 | BP29: =_xll.dRandInt($C$7,$D$7) -> 24 | BQ29: =IF(RAND()<$F$1,_xll.dNormalDev($C$3-((1-(501-$BO29)/500)/$BQ$21),$D$3),0) -> -0.02402538888 | BR29: =IF(RAND()<$F$1,_xll.dNormalDev($C$3-((1-(501-$BO29)/500)/$BQ$21),$D$3),0) -> -0.01805980573 | BS29: =IF(RAND()<$F$1,_xll.dNormalDev($C$3-((1-(501-$BO29)/500)/$BQ$21),$D$3),0) -> 0 | BT29: =IF(RAND()<$F$1,_xll.dNormalDev($C$3-((1-(501-$BO29)/500)/$BQ$21),$D$3),0) -> 0 | BU29: =IF(RAND()<$F$1,_xll.dNormalDev($C$3-((1-(501-$BO29)/500)/$BQ$21),$D$3),0) -> 0 | BV29: =IF(RAND()<$F$1,_xll.dNormalDev($C$3-((1-(501-$BO29)/500)/$BQ$21),$D$3),0) -> 0.01003779986 | BW29: =IF(RAND()<$F$1,_xll.dNormalDev($C$3-((1-(501-$BO29)/500)/$BQ$21),$D$3),0) -> 0 | BX29: =IF(RAND()<$F$1,_xll.dNormalDev($C$3-((1-(501-$BO29)/500)/$BQ$21),$D$3),0) -> 0 | BY29: =IF(RAND()<$F$1,_xll.dNormalDev($C$3-((1-(501-$BO29)/500)/$BQ$21),$D$3),0) -> 0 | BZ29: =IF(RAND()<$F$1,_xll.dNormalDev($C$3-((1-(501-$BO29)/500)/$BQ$21),$D$3),0) -> 0 | CC29: =_xll.dRandReal($C$1,$D$1) -> 0.04210262875 | CD29: =_xll.dNormalDev($C$2,$D$2) -> 0.04470891309 | CE29: =_xll.dNormalDev($C$4,$D$4) -> 0.9889869909 | CF29: 1 | CG29: =_xll.dRandInt($C$6,CA29*$BO$6) -> 1 | CH29: =_xll.dRandInt($C$7,$D$7) -> 11 | CI29: =IF(RAND()<$F$1,_xll.dNormalDev($C$3,$D$3),0) -> 0 | CJ29: =IF(RAND()<$F$1,_xll.dNormalDev($C$3,$D$3),0) -> -0.007271258535 | CK29: =IF(RAND()<$F$1,_xll.dNormalDev($C$3,$D$3),0) -> 0 | CL29: =IF(RAND()<$F$1,_xll.dNormalDev($C$3,$D$3),0) -> 0 | CM29: =IF(RAND()<$F$1,_xll.dNormalDev($C$3,$D$3),0) -> 0 | CN29: =IF(RAND()<$F$1,_xll.dNormalDev($C$3,$D$3),0) -> 0 | CO29: 0 | CP29: =IF(RAND()<$F$1,_xll.dNormalDev($C$3,$D$3),0) -> 0 | CQ29: =IF(RAND()<$F$1,_xll.dNormalDev($C$3,$D$3),0) -> -0.001874254238 | CR29: =IF(RAND()<$F$1,_xll.dNormalDev($C$3,$D$3),0) -> 0
A30: grower9 | B30: 0.9095466227 | C30: 0.02887495704 | G30: 7 | H30: 0.7 | I30: 0.03687326164 | J30: 0.04712958511 | K30: 0.01301021345 | L30: 0.01076244309 | M30: 0.006229080691 | N30: 0.01446233672 | O30: 0.0294473993 | P30: 0.02423515073 | Q30: 0.02887495704 | R30: 0.03882648447 | S30: 0 | T30: 0 | W30: =SLOPE(V28:V33,U28:U33) ->  | X30: =I16*AVERAGE($P24:$P522) -> 0 | Y30: 0 | Z30: 0 | AA30: 0 | AB30: 0 | AC30: 0 | AD30: 0 | AE30: 0 | AF30: 0 | AG30: 0 | AJ30: =IF(RAND()<$F$1,_xll.dNormalDev($C$3,$D$3),0) -> 0.05176871415 | AK30: =IF(RAND()<$F$1,_xll.dNormalDev($C$3,$D$3),0) -> 0.014363391 | AL30: =IF(RAND()<$F$1,_xll.dNormalDev($C$3,$D$3),0) -> 0 | AM30: =IF(RAND()<$F$1,_xll.dNormalDev($C$3,$D$3),0) -> 0.04303724601 | AN30: =IF(RAND()<$F$1,_xll.dNormalDev($C$3,$D$3),0) -> 0 | AO30: =IF(RAND()<$F$1,_xll.dNormalDev($C$3,$D$3),0) -> 0 | AP30: 0 | AQ30: =IF(RAND()<$F$1,_xll.dNormalDev($C$3,$D$3),0) -> 0 | AR30: =IF(RAND()<$F$1,_xll.dNormalDev($C$3,$D$3),0) -> 0 | AS30: =IF(RAND()<$F$1,_xll.dNormalDev($C$3,$D$3),0) -> 0 | BI30: 8 | BK30: =_xll.dRandReal($C$1,$D$1) -> 0.02667683281 | BL30: =_xll.dNormalDev($C$2,$D$2) -> 0.05003695755 | BM30: =_xll.dNormalDev($C$4,$D$4) -> 1.124322908 | BN30: 1 | BO30: =_xll.dRandInt($C$6,BI30*$BO$6) -> 77 | BP30: =_xll.dRandInt($C$7,$D$7) -> 10 | BQ30: =IF(RAND()<$F$1,_xll.dNormalDev($C$3-((1-(501-$BO30)/500)/$BQ$21),$D$3),0) -> 0 | BR30: =IF(RAND()<$F$1,_xll.dNormalDev($C$3-((1-(501-$BO30)/500)/$BQ$21),$D$3),0) -> -0.0205011022 | BS30: =IF(RAND()<$F$1,_xll.dNormalDev($C$3-((1-(501-$BO30)/500)/$BQ$21),$D$3),0) -> 0 | BT30: =IF(RAND()<$F$1,_xll.dNormalDev($C$3-((1-(501-$BO30)/500)/$BQ$21),$D$3),0) -> -0.008418623447 | BU30: =IF(RAND()<$F$1,_xll.dNormalDev($C$3-((1-(501-$BO30)/500)/$BQ$21),$D$3),0) -> -0.005721032461 | BV30: =IF(RAND()<$F$1,_xll.dNormalDev($C$3-((1-(501-$BO30)/500)/$BQ$21),$D$3),0) -> 0 | BW30: =IF(RAND()<$F$1,_xll.dNormalDev($C$3-((1-(501-$BO30)/500)/$BQ$21),$D$3),0) -> 0 | BX30: =IF(RAND()<$F$1,_xll.dNormalDev($C$3-((1-(501-$BO30)/500)/$BQ$21),$D$3),0) -> 0 | BY30: =IF(RAND()<$F$1,_xll.dNormalDev($C$3-((1-(501-$BO30)/500)/$BQ$21),$D$3),0) -> -0.00725731094 | BZ30: =IF(RAND()<$F$1,_xll.dNormalDev($C$3-((1-(501-$BO30)/500)/$BQ$21),$D$3),0) -> 0 | CC30: =_xll.dRandReal($C$1,$D$1) -> 0.03344970027 | CD30: =_xll.dNormalDev($C$2,$D$2) -> 0.04181372871 | CE30: =_xll.dNormalDev($C$4,$D$4) -> 0.8382944591 | CF30: 1 | CG30: =_xll.dRandInt($C$6,CA30*$BO$6) -> 1 | CH30: =_xll.dRandInt($C$7,$D$7) -> 15 | CI30: =IF(RAND()<$F$1,_xll.dNormalDev($C$3,$D$3),0) -> 0 | CJ30: =IF(RAND()<$F$1,_xll.dNormalDev($C$3,$D$3),0) -> 0.01366881882 | CK30: =IF(RAND()<$F$1,_xll.dNormalDev($C$3,$D$3),0) -> 0 | CL30: =IF(RAND()<$F$1,_xll.dNormalDev($C$3,$D$3),0) -> -0.007819582908 | CM30: =IF(RAND()<$F$1,_xll.dNormalDev($C$3,$D$3),0) -> 0 | CN30: =IF(RAND()<$F$1,_xll.dNormalDev($C$3,$D$3),0) -> 0 | CO30: =IF(RAND()<$F$1,_xll.dNormalDev($C$3,$D$3),0) -> 0 | CP30: 0 | CQ30: =IF(RAND()<$F$1,_xll.dNormalDev($C$3,$D$3),0) -> -0.02419488713 | CR30: =IF(RAND()<$F$1,_xll.dNormalDev($C$3,$D$3),0) -> -0.01317304614
A31: grower10 | B31: 0.9540164128 | C31: 0.03882648447 | D31: emerg | G31: 8 | H31: 0.8 | I31: 0.03890407154 | J31: 0.04953348194 | K31: 0.01351825085 | L31: 0.01139066299 | M31: 0.006229080691 | N31: 0.01446233672 | O31: 0.0294473993 | P31: 0.02423515073 | Q31: 0.02887495704 | R31: 0.03882648447 | S31: 0 | T31: 0 | X31: =I17*AVERAGE($Q24:$Q522) -> 0 | Y31: 0 | Z31: 0 | AA31: 0 | AB31: 0.01635377211 | AC31: -0.009134141953 | AD31: 0 | AE31: 0 | AF31: 0 | AG31: 0 | AJ31: =IF(RAND()<$F$1,_xll.dNormalDev($C$3,$D$3),0) -> 0 | AK31: =IF(RAND()<$F$1,_xll.dNormalDev($C$3,$D$3),0) -> 0 | AL31: =IF(RAND()<$F$1,_xll.dNormalDev($C$3,$D$3),0) -> 0 | AM31: =IF(RAND()<$F$1,_xll.dNormalDev($C$3,$D$3),0) -> -0.01932236743 | AN31: =IF(RAND()<$F$1,_xll.dNormalDev($C$3,$D$3),0) -> 0 | AO31: =IF(RAND()<$F$1,_xll.dNormalDev($C$3,$D$3),0) -> 0 | AP31: =IF(RAND()<$F$1,_xll.dNormalDev($C$3,$D$3),0) -> 0 | AQ31: 0 | AR31: =IF(RAND()<$F$1,_xll.dNormalDev($C$3,$D$3),0) -> 0 | AS31: =IF(RAND()<$F$1,_xll.dNormalDev($C$3,$D$3),0) -> 0 | BI31: 9 | BK31: =_xll.dRandReal($C$1,$D$1) -> 0.03628495181 | BL31: =_xll.dNormalDev($C$2,$D$2) -> 0.0393448555 | BM31: =_xll.dNormalDev($C$4,$D$4) -> 1.205949411 | BN31: 1 | BO31: =_xll.dRandInt($C$6,BI31*$BO$6) -> 17 | BP31: =_xll.dRandInt($C$7,$D$7) -> 20 | BQ31: =IF(RAND()<$F$1,_xll.dNormalDev($C$3-((1-(501-$BO31)/500)/$BQ$21),$D$3),0) -> 0 | BR31: =IF(RAND()<$F$1,_xll.dNormalDev($C$3-((1-(501-$BO31)/500)/$BQ$21),$D$3),0) -> 0 | BS31: =IF(RAND()<$F$1,_xll.dNormalDev($C$3-((1-(501-$BO31)/500)/$BQ$21),$D$3),0) -> 0 | BT31: =IF(RAND()<$F$1,_xll.dNormalDev($C$3-((1-(501-$BO31)/500)/$BQ$21),$D$3),0) -> 0.03197571728 | BU31: =IF(RAND()<$F$1,_xll.dNormalDev($C$3-((1-(501-$BO31)/500)/$BQ$21),$D$3),0) -> 0 | BV31: =IF(RAND()<$F$1,_xll.dNormalDev($C$3-((1-(501-$BO31)/500)/$BQ$21),$D$3),0) -> 0 | BW31: =IF(RAND()<$F$1,_xll.dNormalDev($C$3-((1-(501-$BO31)/500)/$BQ$21),$D$3),0) -> 0 | BX31: =IF(RAND()<$F$1,_xll.dNormalDev($C$3-((1-(501-$BO31)/500)/$BQ$21),$D$3),0) -> 0 | BY31: =IF(RAND()<$F$1,_xll.dNormalDev($C$3-((1-(501-$BO31)/500)/$BQ$21),$D$3),0) -> -0.01338357323 | BZ31: =IF(RAND()<$F$1,_xll.dNormalDev($C$3-((1-(501-$BO31)/500)/$BQ$21),$D$3),0) -> 0 | CC31: =_xll.dRandReal($C$1,$D$1) -> 0.0002937421668 | CD31: =_xll.dNormalDev($C$2,$D$2) -> 0.05248606171 | CE31: =_xll.dNormalDev($C$4,$D$4) -> 1.061805692 | CF31: 1 | CG31: =_xll.dRandInt($C$6,CA31*$BO$6) -> 1 | CH31: =_xll.dRandInt($C$7,$D$7) -> 16 | CI31: =IF(RAND()<$F$1,_xll.dNormalDev($C$3,$D$3),0) -> 0 | CJ31: =IF(RAND()<$F$1,_xll.dNormalDev($C$3,$D$3),0) -> -0.0004547007262 | CK31: =IF(RAND()<$F$1,_xll.dNormalDev($C$3,$D$3),0) -> 0 | CL31: =IF(RAND()<$F$1,_xll.dNormalDev($C$3,$D$3),0) -> 0 | CM31: =IF(RAND()<$F$1,_xll.dNormalDev($C$3,$D$3),0) -> 0 | CN31: =IF(RAND()<$F$1,_xll.dNormalDev($C$3,$D$3),0) -> 0 | CO31: =IF(RAND()<$F$1,_xll.dNormalDev($C$3,$D$3),0) -> 0 | CP31: =IF(RAND()<$F$1,_xll.dNormalDev($C$3,$D$3),0) -> 0 | CQ31: 0 | CR31: =IF(RAND()<$F$1,_xll.dNormalDev($C$3,$D$3),0) -> 0
A32: avg | B32: =AVERAGE(I24:R522) -> 0.666876902 | D32: =K24 -> 0.0103347638 | G32: 9 | H32: 0.9 | I32: 0.04104160994 | J32: 0.05205332592 | K32: 0.01404584196 | L32: 0.01205521338 | M32: 0.006229080691 | N32: 0.01446233672 | O32: 0.0294473993 | P32: 0.02423515073 | Q32: 0.02887495704 | R32: 0.03882648447 | S32: 0 | T32: 0 | X32: =I18*AVERAGE($R24:$R522) -> 0 | Y32: 0 | Z32: 0 | AA32: 0 | AB32: 0 | AC32: 0 | AD32: 0 | AE32: 0 | AF32: 0 | AG32: 0 | AJ32: =IF(RAND()<$F$1,_xll.dNormalDev($C$3,$D$3),0) -> 0 | AK32: =IF(RAND()<$F$1,_xll.dNormalDev($C$3,$D$3),0) -> 0 | AL32: =IF(RAND()<$F$1,_xll.dNormalDev($C$3,$D$3),0) -> 0 | AM32: =IF(RAND()<$F$1,_xll.dNormalDev($C$3,$D$3),0) -> 0 | AN32: =IF(RAND()<$F$1,_xll.dNormalDev($C$3,$D$3),0) -> 0 | AO32: =IF(RAND()<$F$1,_xll.dNormalDev($C$3,$D$3),0) -> 0 | AP32: =IF(RAND()<$F$1,_xll.dNormalDev($C$3,$D$3),0) -> -0.00242518581 | AQ32: =IF(RAND()<$F$1,_xll.dNormalDev($C$3,$D$3),0) -> 0 | AR32: 0 | AS32: =IF(RAND()<$F$1,_xll.dNormalDev($C$3,$D$3),0) -> 0 | BI32: 10 | BK32: =_xll.dRandReal($C$1,$D$1) -> 0.01355545609 | BL32: =_xll.dNormalDev($C$2,$D$2) -> 0.039835228 | BM32: =_xll.dNormalDev($C$4,$D$4) -> 0.7166978392 | BN32: 1 | BO32: =_xll.dRandInt($C$6,BI32*$BO$6) -> 21 | BP32: =_xll.dRandInt($C$7,$D$7) -> 14 | BQ32: =IF(RAND()<$F$1,_xll.dNormalDev($C$3-((1-(501-$BO32)/500)/$BQ$21),$D$3),0) -> 0 | BR32: =IF(RAND()<$F$1,_xll.dNormalDev($C$3-((1-(501-$BO32)/500)/$BQ$21),$D$3),0) -> 0 | BS32: =IF(RAND()<$F$1,_xll.dNormalDev($C$3-((1-(501-$BO32)/500)/$BQ$21),$D$3),0) -> 0 | BT32: =IF(RAND()<$F$1,_xll.dNormalDev($C$3-((1-(501-$BO32)/500)/$BQ$21),$D$3),0) -> 0 | BU32: =IF(RAND()<$F$1,_xll.dNormalDev($C$3-((1-(501-$BO32)/500)/$BQ$21),$D$3),0) -> 0 | BV32: =IF(RAND()<$F$1,_xll.dNormalDev($C$3-((1-(501-$BO32)/500)/$BQ$21),$D$3),0) -> -0.006568018294 | BW32: =IF(RAND()<$F$1,_xll.dNormalDev($C$3-((1-(501-$BO32)/500)/$BQ$21),$D$3),0) -> 0.02132570393 | BX32: =IF(RAND()<$F$1,_xll.dNormalDev($C$3-((1-(501-$BO32)/500)/$BQ$21),$D$3),0) -> 0 | BY32: =IF(RAND()<$F$1,_xll.dNormalDev($C$3-((1-(501-$BO32)/500)/$BQ$21),$D$3),0) -> 0 | BZ32: =IF(RAND()<$F$1,_xll.dNormalDev($C$3-((1-(501-$BO32)/500)/$BQ$21),$D$3),0) -> 0 | CC32: =_xll.dRandReal($C$1,$D$1) -> 0.03723999658 | CD32: =_xll.dNormalDev($C$2,$D$2) -> 0.04706759458 | CE32: =_xll.dNormalDev($C$4,$D$4) -> 0.766667411 | CF32: 1 | CG32: =_xll.dRandInt($C$6,CA32*$BO$6) -> 1 | CH32: =_xll.dRandInt($C$7,$D$7) -> 25 | CI32: =IF(RAND()<$F$1,_xll.dNormalDev($C$3,$D$3),0) -> 0 | CJ32: =IF(RAND()<$F$1,_xll.dNormalDev($C$3,$D$3),0) -> 0 | CK32: =IF(RAND()<$F$1,_xll.dNormalDev($C$3,$D$3),0) -> 0 | CL32: =IF(RAND()<$F$1,_xll.dNormalDev($C$3,$D$3),0) -> 0 | CM32: =IF(RAND()<$F$1,_xll.dNormalDev($C$3,$D$3),0) -> -0.005272706734 | CN32: =IF(RAND()<$F$1,_xll.dNormalDev($C$3,$D$3),0) -> 0 | CO32: =IF(RAND()<$F$1,_xll.dNormalDev($C$3,$D$3),0) -> 0 | CP32: =IF(RAND()<$F$1,_xll.dNormalDev($C$3,$D$3),0) -> 0 | CQ32: =IF(RAND()<$F$1,_xll.dNormalDev($C$3,$D$3),0) -> 0 | CR32: 0
A33: stdev | B33: =STDEV(I24:R522) -> 0.5030730669 | D33: =K44 -> 0.02219475949 | G33: 10 | H33: 1 | I33: 0.04329091076 | J33: 0.0546940138 | K33: 0.01459371674 | L33: 0.01275815453 | M33: 0.006229080691 | N33: 0.01446233672 | O33: 0.0294473993 | P33: 0.02423515073 | Q33: 0.02887495704 | R33: 0.03882648447 | S33: 0 | T33: 0 | X33: =SUM(X24:X32) -> 0 | Y33: -0.009539507972 | Z33: 0 | AA33: 0 | AB33: 0.01635377211 | AC33: 0.006893049939 | AD33: 0 | AE33: -0.008678408705 | AF33: 0 | AG33: -0.001995555811 | AJ33: =IF(RAND()<$F$1,_xll.dNormalDev($C$3,$D$3),0) -> 0 | AK33: =IF(RAND()<$F$1,_xll.dNormalDev($C$3,$D$3),0) -> 0 | AL33: =IF(RAND()<$F$1,_xll.dNormalDev($C$3,$D$3),0) -> 0.03298475697 | AM33: =IF(RAND()<$F$1,_xll.dNormalDev($C$3,$D$3),0) -> 0 | AN33: =IF(RAND()<$F$1,_xll.dNormalDev($C$3,$D$3),0) -> 0 | AO33: =IF(RAND()<$F$1,_xll.dNormalDev($C$3,$D$3),0) -> 0 | AP33: =IF(RAND()<$F$1,_xll.dNormalDev($C$3,$D$3),0) -> 0 | AQ33: =IF(RAND()<$F$1,_xll.dNormalDev($C$3,$D$3),0) -> -0.03455182565 | AR33: =IF(RAND()<$F$1,_xll.dNormalDev($C$3,$D$3),0) -> 3.015283119e-05 | AS33: 0
D34: =K64 -> 0.04697389828 | G34: 11 | H34: 1.1 | I34: 0.045657181 | J34: 0.05746057659 | K34: 0.0151626306 | L34: 0.01350165865 | M34: 0.006229080691 | N34: 0.01446233672 | O34: 0.0294473993 | P34: 0.02423515073 | Q34: 0.02887495704 | R34: 0.03882648447 | S34: 0 | T34: 0
A35: maxlevel | B35: =MAX(B22:B31) -> 1.962281964 | D35: =K84 -> 0.09642110814 | G35: 12 | H35: 1.2 | I35: 0.04814579924 | J35: 0.06035817531 | K35: 0.01575336515 | L35: 0.0142880154 | M35: 0.006229080691 | N35: 0.01446233672 | O35: 0.0294473993 | P35: 0.02423515073 | Q35: 0.02887495704 | R35: 0.03882648447 | S35: 0 | T35: 0 | W35: =IF(RAND()<poisson_parameter*model!K35,1,0) -> 0 | X35: =IF(RAND()<K24*$T$22,1,0) -> 0 | Y35: 1
A36: average endlevel | B36: =AVERAGE(endlevel10) -> 1.048601468 | D36: =K104 -> 0.1866538961 | G36: 13 | H36: 1.3 | I36: 0.05076231304 | J36: 0.06339209554 | K36: 0.01636672895 | L36: 0.0151196376 | M36: 0.006229080691 | N36: 0.01446233672 | O36: 0.0294473993 | P36: 0.02423515073 | Q36: 0.02887495704 | R36: 0.03882648447 | S36: 0 | T36: 0 | W36: =IF(RAND()<poisson_parameter*model!K36,1,0) -> 0 | X36: =IF(RAND()<K25*$T$22,1,0) -> 0 | Y36: 2 | BO36: =$C$3-BP36/50 -> 0 | BP36: =1-(501-BO23)/500 -> 0
A37: totsupport maxlevel | B37: =AG20 -> -46.87691705 | D37: =K124 -> 0.3269820688 | G37: 14 | H37: 1.4 | I37: 0.0535124352 | J37: 0.06656774092 | K37: 0.01700355828 | L37: 0.01599906706 | M37: 0.006229080691 | N37: 0.01446233672 | O37: 0.0294473993 | P37: 0.02423515073 | Q37: 0.02887495704 | R37: 0.03882648447 | S37: 0 | T37: 0 | W37: =IF(RAND()<poisson_parameter*model!K37,1,0) -> 0 | X37: =IF(RAND()<(K26-$T$21)*$T$22*(1+SUM($X$35:X36)),1,0) -> 0 | Y37: 3 | BO37: =$C$3-BP37/50 -> 0 | BP37: =1-(501-BO24)/500 -> 0
A38: support maxlevel | B38: =my_lookup(B35,B22:B31,connectionsum) -> 0.04205351475 | D38: =K144 -> 0.4972839706 | G38: 15 | H38: 1.5 | I38: 0.05640203868 | J38: 0.06989062518 | K38: 0.01766471788 | L38: 0.01692898074 | M38: 0.006229080691 | N38: 0.01446233672 | O38: 0.0294473993 | P38: 0.02423515073 | Q38: 0.02887495704 | R38: 0.03882648447 | S38: 0 | T38: 0 | W38: =IF(RAND()<poisson_parameter*model!K38,1,0) -> 0 | X38: =IF(RAND()<(K27-$T$21)*$T$22*(1+pref_attach_on*SUM($X$35:X37)),1,0) -> 0 | Y38: 4 | Z38: =IF(AND(SUM($X$35:X37)=0,X38=1),Y38,"") ->  | AJ38: Average | AK38: Median | AL38: Minimum | AM38: Maximum | AN38: Perc 0.025 | AO38: Perc 0.975 | AP38: StDev | AQ38: Skewness | AR38: P value | AS38: # of simulations | BO38: =$C$3-BP38/50 -> -0.00148 | BP38: =1-(501-BO25)/500 -> 0.074
A39: correl sum and max | B39: =CORREL(connectionsum,maxlevel10) -> 0.9246275108 | D39: =K164 -> 0.6466420923 | G39: 16 | H39: 1.6 | I39: 0.05943715001 | J39: 0.0733663629 | K39: 0.01835110176 | L39: 0.01791219693 | M39: 0.006229080691 | N39: 0.01446233672 | O39: 0.0294473993 | P39: 0.02423515073 | Q39: 0.02887495704 | R39: 0.03882648447 | S39: 0 | T39: 0 | W39: =IF(RAND()<poisson_parameter*model!K39,1,0) -> 0 | X39: =IF(RAND()<(K28^quadratic_condition*L28-$T$21)*$T$22*(1+pref_attach_on*SUM($X$35:X38)),1,0) -> 0 | Y39: 5 | Z39: =IF(AND(SUM($X$35:X38)=0,X39=1),Y39,"") ->  | AJ39: 2.238 | AK39: 2 | AL39: 0 | AM39: 6 | AN39: 0 | AO39: 5 | AP39: 1.261959224 | AQ39: 0.3192296336 | AR39: 0.574 | AS39: 500 | BO39: -0.00012 | BP39: 0.006
A40: correl carcap | B40: =CORREL(B22:B31,E10:E19) -> -0.5693538617 | D40: =K184 -> 0.7359752571 | G40: 17 | H40: 1.7 | I40: 0.06262394121 | J40: 0.0770006586 | K40: 0.01906363399 | L40: 0.01895168176 | M40: 0.006229080691 | N40: 0.01446233672 | O40: 0.0294473993 | P40: 0.02423515073 | Q40: 0.02887495704 | R40: 0.03882648447 | S40: 0 | T40: 0 | W40: =IF(RAND()<poisson_parameter*model!K40,1,0) -> 0 | X40: =IF(RAND()<(K29^quadratic_condition*L29-$T$21)*$T$22*(1+pref_attach_on*SUM($X$35:X39)),1,0) -> 0 | Y40: 6 | Z40: =IF(AND(SUM($X$35:X39)=0,X40=1),Y40,"") ->  | AJ40: 2.308 | AK40: 2 | AL40: 0 | AM40: 6 | AN40: 0 | AO40: 5 | AP40: 1.280787583 | AQ40: 0.2423192205 | AR40: 0.628 | AS40: 500 | BO40: -0.0052 | BP40: 0.26
A41: correl rate | B41: =CORREL(B22:B31,D10:D19) -> -0.1132237461 | D41: =K204 -> 0.7667328129 | G41: 18 | H41: 1.8 | I41: 0.06596871987 | J41: 0.08079929436 | K41: 0.01980326943 | L41: 0.0200505558 | M41: 0.006229080691 | N41: 0.01446233672 | O41: 0.0294473993 | P41: 0.02423515073 | Q41: 0.02887495704 | R41: 0.03882648447 | S41: 0 | T41: 0 | W41: =IF(RAND()<poisson_parameter*model!K41,1,0) -> 0 | X41: =IF(RAND()<(K30^quadratic_condition*L30-$T$21)*$T$22*(1+pref_attach_on*SUM($X$35:X40)),1,0) -> 0 | Y41: 7 | Z41: =IF(AND(SUM($X$35:X40)=0,X41=1),Y41,"") ->  | AJ41: 2.27 | AK41: 2 | AL41: 0 | AM41: 7 | AN41: 0 | AO41: 5 | AP41: 1.239424199 | AQ41: 0.534992646 | AR41: 0.606 | AS41: 500 | BO41: -0.0064 | BP41: 0.32
D42: =K224 -> 0.7629135391 | G42: 19 | H42: 1.9 | I42: 0.06947791739 | J42: 0.08476811555 | K42: 0.02057099457 | L42: 0.02121210077 | M42: 0.006229080691 | N42: 0.01446233672 | O42: 0.0294473993 | P42: 0.02423515073 | Q42: 0.02887495704 | R42: 0.03882648447 | S42: 0 | T42: 0 | W42: =IF(RAND()<poisson_parameter*model!K42,1,0) -> 0 | X42: =IF(RAND()<(K31^quadratic_condition*L31-$T$21)*$T$22*(1+pref_attach_on*SUM($X$35:X41)),1,0) -> 0 | Y42: 8 | Z42: =IF(AND(SUM($X$35:X41)=0,X42=1),Y42,"") ->  | AJ42: 2.32 | AK42: 2 | AL42: 0 | AM42: 8 | AN42: 0 | AO42: 5 | AP42: 1.287211648 | AQ42: 0.4734749909 | AR42: 0.598 | AS42: 500 | BO42: -0.00816 | BP42: 0.408
D43: =E11 -> 1.003550882 | G43: 20 | H43: 2 | I43: 0.07315807514 | J43: 0.08891301479 | K43: 0.0213678283 | L43: 0.02243976652 | M43: 0.006459222159 | N43: 0.01446233672 | O43: 0.0294473993 | P43: 0.02423515073 | Q43: 0.02887495704 | R43: 0.03882648447 | S43: 0 | T43: 0 | W43: =IF(RAND()<poisson_parameter*model!K43,1,0) -> 0 | X43: =IF(RAND()<(K32^quadratic_condition*L32-$T$21)*$T$22*(1+pref_attach_on*SUM($X$35:X42)),1,0) -> 0 | Y43: 9 | Z43: =IF(AND(SUM($X$35:X42)=0,X43=1),Y43,"") ->  | AJ43: 2.264 | AK43: 2 | AL43: 0 | AM43: 7 | AN43: 0 | AO43: 5 | AP43: 1.254372712 | AQ43: 0.3781700279 | AR43: 0.628 | AS43: 500 | BO43: -0.00304 | BP43: 0.152
G44: 21 | H44: 2.1 | I44: 0.07701600469 | J44: 0.09323991394 | K44: 0.02219475949 | L44: 0.023737178 | M44: 0.006697806644 | N44: 0.01446233672 | O44: 0.0294473993 | P44: 0.02423515073 | Q44: 0.02887495704 | R44: 0.03882648447 | S44: 0 | T44: 0 | W44: =IF(RAND()<poisson_parameter*model!K44,1,0) -> 0 | X44: =IF(RAND()<(K33^quadratic_condition*L33-$T$21)*$T$22*(1+pref_attach_on*SUM($X$35:X43)),1,0) -> 0 | Y44: 10 | Z44: =IF(AND(SUM($X$35:X43)=0,X44=1),Y44,"") ->  | AJ44: 2.274 | AK44: 2 | AL44: 0 | AM44: 6 | AN44: 0 | AO44: 5 | AP44: 1.364789104 | AQ44: 0.3646352869 | AR44: 0.62 | AS44: 500 | BO44: -0.00064 | BP44: 0.032
G45: 22 | H45: 2.2 | I45: 0.08105845072 | J45: 0.09775474404 | K45: 0.02305286448 | L45: 0.02510814239 | M45: 0.006945139388 | N45: 0.01446233672 | O45: 0.0294473993 | P45: 0.02423515073 | Q45: 0.02887495704 | R45: 0.03882648447 | S45: 0 | T45: 0 | W45: =IF(RAND()<poisson_parameter*model!K45,1,0) -> 0 | X45: =IF(RAND()<(K34^quadratic_condition*L34-$T$21)*$T$22*(1+pref_attach_on*SUM($X$35:X44)),1,0) -> 0 | Y45: 11 | Z45: =IF(AND(SUM($X$35:X44)=0,X45=1),Y45,"") ->  | AJ45: 2.286 | AK45: 2 | AL45: 0 | AM45: 7 | AN45: 0 | AO45: 5 | AP45: 1.278856892 | AQ45: 0.3993135887 | AR45: 0.594 | AS45: 500 | BO45: -0.0008 | BP45: 0.04
G46: 23 | H46: 2.3 | I46: 0.08529221669 | J46: 0.1024634231 | K46: 0.02394325338 | L46: 0.02655665633 | M46: 0.007201536329 | N46: 0.01446233672 | O46: 0.0294473993 | P46: 0.02423515073 | Q46: 0.02887495704 | R46: 0.03882648447 | S46: 0 | T46: 0 | W46: =IF(RAND()<poisson_parameter*model!K46,1,0) -> 0 | X46: =IF(RAND()<(K35^quadratic_condition*L35-$T$21)*$T$22*(1+pref_attach_on*SUM($X$35:X45)),1,0) -> 0 | Y46: 12 | Z46: =IF(AND(SUM($X$35:X45)=0,X46=1),Y46,"") ->  | AJ46: 2.29 | AK46: 2 | AL46: 0 | AM46: 7 | AN46: 0 | AO46: 5 | AP46: 1.24458748 | AQ46: 0.2445729401 | AR46: 0.608 | AS46: 500 | BO46: =$C$3-BP46/50 -> -0.0198 | BP46: 0.99
G47: 24 | H47: 2.4 | I47: 0.08972414177 | J47: 0.1073718316 | K47: 0.02486707067 | L47: 0.02808691305 | M47: 0.007467324452 | N47: 0.01446233672 | O47: 0.0294473993 | P47: 0.02423515073 | Q47: 0.02887495704 | R47: 0.03882648447 | S47: 0 | T47: 0 | W47: =IF(RAND()<poisson_parameter*model!K47,1,0) -> 0 | X47: =IF(RAND()<(K36^quadratic_condition*L36-$T$21)*$T$22*(1+pref_attach_on*SUM($X$35:X46)),1,0) -> 0 | Y47: 13 | Z47: =IF(AND(SUM($X$35:X46)=0,X47=1),Y47,"") ->  | AJ47: 2.22 | AK47: 2 | AL47: 0 | AM47: 7 | AN47: 0 | AO47: 5 | AP47: 1.287989843 | AQ47: 0.3976973316 | AR47: 0.62 | AS47: 500
G48: 25 | H48: 2.5 | I48: 0.09436107502 | J48: 0.1124857861 | K48: 0.02582549594 | L48: 0.02970330968 | M48: 0.007742842146 | N48: 0.01446233672 | O48: 0.0294473993 | P48: 0.02423515073 | Q48: 0.02887495704 | R48: 0.03882648447 | S48: 0 | T48: 0 | W48: =IF(RAND()<poisson_parameter*model!K48,1,0) -> 0 | X48: =IF(RAND()<(K37^quadratic_condition*L37-$T$21)*$T$22*(1+pref_attach_on*SUM($X$35:X47)),1,0) -> 0 | Y48: 14 | Z48: =IF(AND(SUM($X$35:X47)=0,X48=1),Y48,"") ->  | AJ48: 2.22 | AK48: 2 | AL48: 0 | AM48: 6 | AN48: 0 | AO48: 5 | AP48: 1.248486057 | AQ48: 0.3218897947 | AR48: 1 | AS48: 500
G49: 26 | H49: 2.6 | I49: 0.0992098468 | J49: 0.1178110097 | K49: 0.02681974447 | L49: 0.03141045441 | M49: 0.008028439576 | N49: 0.01446233672 | O49: 0.0294473993 | P49: 0.02423515073 | Q49: 0.02887495704 | R49: 0.03882648447 | S49: 0 | T49: 0 | W49: =IF(RAND()<poisson_parameter*model!K49,1,0) -> 0 | X49: =IF(RAND()<(K38^quadratic_condition*L38-$T$21)*$T$22*(1+pref_attach_on*SUM($X$35:X48)),1,0) -> 0 | Y49: 15 | Z49: =IF(AND(SUM($X$35:X48)=0,X49=1),Y49,"") ->  | AJ49: =AVERAGE(AJ39:AJ48) -> 2.269 | AP49: =AVERAGE(AP39:AP48) -> 1.274846474
G50: 27 | H50: 2.7 | I50: 0.1042772372 | J50: 0.1233531009 | K50: 0.02785106786 | L50: 0.03321317353 | M50: 0.008324479058 | N50: 0.01446233672 | O50: 0.0294473993 | P50: 0.02423515073 | Q50: 0.02887495704 | R50: 0.03882648447 | S50: 0 | T50: 0 | W50: =IF(RAND()<poisson_parameter*model!K50,1,0) -> 0 | X50: =IF(RAND()<(K39^quadratic_condition*L39-$T$21)*$T$22*(1+pref_attach_on*SUM($X$35:X49)),1,0) -> 0 | Y50: 16 | Z50: =IF(AND(SUM($X$35:X49)=0,X50=1),Y50,"") -> 
G51: 28 | H51: 2.8 | I51: 0.1095699415 | J51: 0.1291174999 | K51: 0.02892075461 | L51: 0.03511651842 | M51: 0.008631335445 | N51: 0.01446233672 | O51: 0.0294473993 | P51: 0.02423515073 | Q51: 0.02887495704 | R51: 0.03882648447 | S51: 0 | T51: 0 | W51: =IF(RAND()<poisson_parameter*model!K51,1,0) -> 0 | X51: =IF(RAND()<(K40^quadratic_condition*L40-$T$21)*$T$22*(1+pref_attach_on*SUM($X$35:X50)),1,0) -> 0 | Y51: 17 | Z51: =IF(AND(SUM($X$35:X50)=0,X51=1),Y51,"") ->  | AJ51: Average | AK51: Median | AL51: Minimum | AM51: Maximum | AN51: Perc 0.025 | AO51: Perc 0.975 | AP51: StDev | AQ51: Skewness | AR51: P value | AS51: # of simulations
G52: 29 | H52: 2.9 | I52: 0.1150945328 | J52: 0.1351094523 | K52: 0.03003013064 | L52: 0.03712577225 | M52: 0.008949396532 | N52: 0.01446233672 | O52: 0.0294473993 | P52: 0.02423515073 | Q52: 0.02887495704 | R52: 0.03882648447 | S52: 0 | T52: 0 | W52: =IF(RAND()<poisson_parameter*model!K52,1,0) -> 0 | X52: =IF(RAND()<(K41^quadratic_condition*L41-$T$21)*$T$22*(1+pref_attach_on*SUM($X$35:X51)),1,0) -> 0 | Y52: 18 | Z52: =IF(AND(SUM($X$35:X51)=0,X52=1),Y52,"") ->  | AJ52: 2.222 | AK52: 2 | AL52: 0 | AM52: 6 | AN52: 0 | AO52: 5 | AP52: 1.333602075 | AQ52: 0.2840817038 | AR52: 1 | AS52: 1000
G53: 30 | H53: 3 | I53: 0.1208574213 | J53: 0.1413339706 | K53: 0.03118055983 | L53: 0.03924645644 | M53: 0.009279063454 | N53: 0.01446233672 | O53: 0.0294473993 | P53: 0.02423515073 | Q53: 0.02887495704 | R53: 0.03882648447 | S53: 0 | T53: 0 | W53: =IF(RAND()<poisson_parameter*model!K53,1,0) -> 0 | X53: =IF(RAND()<(K42^quadratic_condition*L42-$T$21)*$T$22*(1+pref_attach_on*SUM($X$35:X52)),1,0) -> 0 | Y53: 19 | Z53: =IF(AND(SUM($X$35:X52)=0,X53=1),Y53,"") ->  | AJ53: 2.303 | AK53: 2 | AL53: 0 | AM53: 7 | AN53: 0 | AO53: 5 | AP53: 1.372980727 | AQ53: 0.4151897123 | AR53: 1 | AS53: 1000
G54: 31 | H54: 3.1 | I54: 0.1268648112 | J54: 0.1477957939 | K54: 0.03237344445 | L54: 0.04148433671 | M54: 0.00962075111 | N54: 0.01446233672 | O54: 0.0294473993 | P54: 0.02423515073 | Q54: 0.02887495704 | R54: 0.03882648447 | S54: 0 | T54: 0 | W54: =IF(RAND()<poisson_parameter*model!K54,1,0) -> 0 | X54: =IF(RAND()<(K43^quadratic_condition*L43-$T$21)*$T$22*(1+pref_attach_on*SUM($X$35:X53)),1,0) -> 0 | Y54: 20 | Z54: =IF(AND(SUM($X$35:X53)=0,X54=1),Y54,"") ->  | AJ54: 2.244 | AK54: 2 | AL54: 0 | AM54: 7 | AN54: 0 | AO54: 5 | AP54: 1.283008227 | AQ54: 0.5118277556 | AR54: 1 | AS54: 1000
G55: 32 | H55: 3.2 | I55: 0.1331226538 | J55: 0.1544993444 | K55: 0.03361022553 | L55: 0.04384542872 | M55: 0.009974888587 | N55: 0.01446233672 | O55: 0.0294473993 | P55: 0.02423515073 | Q55: 0.02887495704 | R55: 0.03882648447 | S55: 0 | T55: 0 | W55: =IF(RAND()<poisson_parameter*model!K55,1,0) -> 0 | X55: =IF(RAND()<(K44^quadratic_condition*L44-$T$21)*$T$22*(1+pref_attach_on*SUM($X$35:X54)),1,0) -> 0 | Y55: 21 | Z55: =IF(AND(SUM($X$35:X54)=0,X55=1),Y55,"") ->  | AJ55: 2.25 | AK55: 2 | AL55: 0 | AM55: 6 | AN55: 0 | AO55: 5 | AP55: 1.267717282 | AQ55: 0.299446234 | AR55: 1 | AS55: 1000
E56: =B22 -> 1.312335352 | F56: =B24 -> 0.7680468744 | G56: 33 | H56: 3.3 | I56: 0.1396365989 | J56: 0.1614486832 | K56: 0.03489238329 | L56: 0.04633600317 | M56: 0.0103419196 | N56: 0.01446233672 | O56: 0.0294473993 | P56: 0.02423515073 | Q56: 0.02887495704 | R56: 0.03882648447 | S56: 0 | T56: 0 | W56: =IF(RAND()<poisson_parameter*model!K56,1,0) -> 0 | X56: =IF(RAND()<(K45^quadratic_condition*L45-$T$21)*$T$22*(1+pref_attach_on*SUM($X$35:X55)),1,0) -> 0 | Y56: 22 | Z56: =IF(AND(SUM($X$35:X55)=0,X56=1),Y56,"") ->  | AJ56: 2.225 | AK56: 2 | AL56: 0 | AM56: 6 | AN56: 0 | AO56: 5 | AP56: 1.279066461 | AQ56: 0.3328421035 | AR56: 1 | AS56: 1000
G57: 34 | H57: 3.4 | I57: 0.1464119429 | J57: 0.1686474639 | K57: 0.03622143735 | L57: 0.04896259015 | M57: 0.01072230293 | N57: 0.01446233672 | O57: 0.0294473993 | P57: 0.02423515073 | Q57: 0.02887495704 | R57: 0.03882648447 | S57: 0 | T57: 0 | W57: =IF(RAND()<poisson_parameter*model!K57,1,0) -> 0 | X57: =IF(RAND()<(K46^quadratic_condition*L46-$T$21)*$T$22*(1+pref_attach_on*SUM($X$35:X56)),1,0) -> 0 | Y57: 23 | Z57: =IF(AND(SUM($X$35:X56)=0,X57=1),Y57,"") ->  | AJ57: 2.211 | AK57: 2 | AL57: 0 | AM57: 7 | AN57: 0 | AO57: 5 | AP57: 1.279889494 | AQ57: 0.3959745748 | AR57: 1 | AS57: 1000
B58: 1 | C58: =TRANSPOSE(maxlevel10) -> 1.312335352 | D58: =C58 -> 1.312335352 | E58: within person corrleation endlevel | F58: within person corrleation gen factor | G58: 35 | H58: 3.5 | I58: 0.153453575 | J58: 0.176098884 | K58: 0.03759894696 | L58: 0.05173198284 | M58: 0.01111651289 | N58: 0.01446233672 | O58: 0.0294473993 | P58: 0.02423515073 | Q58: 0.02887495704 | R58: 0.03882648447 | S58: 0 | T58: 0 | W58: =IF(RAND()<poisson_parameter*model!K58,1,0) -> 0 | X58: =IF(RAND()<(K47^quadratic_condition*L47-$T$21)*$T$22*(1+pref_attach_on*SUM($X$35:X57)),1,0) -> 0 | Y58: 24 | Z58: =IF(AND(SUM($X$35:X57)=0,X58=1),Y58,"") ->  | AJ58: 2.243 | AK58: 2 | AL58: 0 | AM58: 7 | AN58: 0 | AO58: 5 | AP58: 1.287481498 | AQ58: 0.4311907651 | AR58: 1 | AS58: 1000
B59: 2 | C59: 0.8471454365 | D59: =C68 -> 0.05740745693 | E59: =CORREL(I60:R60,endlevel10) -> -0.06100836454 | F59: =CORREL(I60:R60,$E$9:$E$18) -> 0.07421645083 | G59: 36 | H59: 3.6 | I59: 0.1607659209 | J59: 0.1838056361 | K59: 0.03902651115 | L59: 0.05465124015 | M59: 0.01152503979 | N59: 0.01446233672 | O59: 0.0294473993 | P59: 0.02423515073 | Q59: 0.02887495704 | R59: 0.03882648447 | S59: 0 | T59: 0 | W59: =IF(RAND()<poisson_parameter*model!K59,1,0) -> 0 | X59: =IF(RAND()<(K48^quadratic_condition*L48-$T$21)*$T$22*(1+pref_attach_on*SUM($X$35:X58)),1,0) -> 0 | Y59: 25 | Z59: =IF(AND(SUM($X$35:X58)=0,X59=1),Y59,"") ->  | AJ59: 2.204 | AK59: 2 | AL59: 0 | AM59: 8 | AN59: 0 | AO59: 5 | AP59: 1.289203648 | AQ59: 0.3994563208 | AR59: 1 | AS59: 1000
B60: 3 | C60: 0.7680468744 | D60: =C59 -> 0.8471454365 | E60: =CORREL(I80:R80,endlevel10) -> 0.006194449356 | F60: =CORREL(I80:R80,$E$9:$E$18) -> 0.1498536458 | G60: 37 | H60: 3.7 | I60: 0.1683528859 | J60: 0.1917698581 | K60: 0.04050576876 | L60: 0.05772768843 | M60: 0.0119483904 | N60: 0.01446233672 | O60: 0.0294473993 | P60: 0.02423515073 | Q60: 0.02887495704 | R60: 0.03882648447 | S60: 0 | T60: 0 | W60: =IF(RAND()<poisson_parameter*model!K60,1,0) -> 0 | X60: =IF(RAND()<(K49^quadratic_condition*L49-$T$21)*$T$22*(1+pref_attach_on*SUM($X$35:X59)),1,0) -> 0 | Y60: 26 | Z60: =IF(AND(SUM($X$35:X59)=0,X60=1),Y60,"") ->  | AJ60: 2.27 | AK60: 2 | AL60: 0 | AM60: 6 | AN60: 0 | AO60: 5 | AP60: 1.255657866 | AQ60: 0.3133429148 | AR60: 1 | AS60: 1000
B61: 4 | C61: 1.317056155 | D61: =C69 -> 0.05363685844 | E61: =CORREL(I100:R100,endlevel10) -> 0.05208361678 | F61: =CORREL(I100:R100,$E$9:$E$18) -> 0.2675875819 | G61: 38 | H61: 3.8 | I61: 0.1762177954 | J61: 0.1999930821 | K61: 0.0420383984 | L61: 0.06096892191 | M61: 0.01238708845 | N61: 0.01446233672 | O61: 0.0294473993 | P61: 0.02423515073 | Q61: 0.02887495704 | R61: 0.03882648447 | S61: 0 | T61: 0 | W61: =IF(RAND()<poisson_parameter*model!K61,1,0) -> 0 | X61: =IF(RAND()<(K50^quadratic_condition*L50-$T$21)*$T$22*(1+pref_attach_on*SUM($X$35:X60)),1,0) -> 0 | Y61: 27 | Z61: =IF(AND(SUM($X$35:X60)=0,X61=1),Y61,"") ->  | AJ61: 2.297 | AK61: 2 | AL61: 0 | AM61: 6 | AN61: 0 | AO61: 5 | AP61: 1.284695077 | AQ61: 0.2534247724 | AR61: 1 | AS61: 1000
B62: 5 | C62: 1.962281964 | D62: =C60 -> 0.7680468744 | E62: =CORREL(I120:R120,endlevel10) -> 0.08921451303 | F62: =CORREL(I120:R120,$E$9:$E$18) -> 0.401977094 | G62: 39 | H62: 3.9 | I62: 0.1843633362 | J62: 0.2084761841 | K62: 0.04362611831 | L62: 0.06438280169 | M62: 0.01284167512 | N62: 0.01446233672 | O62: 0.0294473993 | P62: 0.02423515073 | Q62: 0.02887495704 | R62: 0.03882648447 | S62: 0 | T62: 0 | W62: =IF(RAND()<poisson_parameter*model!K62,1,0) -> 0 | X62: =IF(RAND()<(K51^quadratic_condition*L51-$T$21)*$T$22*(1+pref_attach_on*SUM($X$35:X61)),1,0) -> 0 | Y62: 28 | Z62: =IF(AND(SUM($X$35:X61)=0,X62=1),Y62,"") ->  | AJ62: =AVERAGE(AJ52:AJ61) -> 2.2469 | AP62: =AVERAGE(AP52:AP61) -> 1.293330236
B63: 6 | C63: 0.9864189645 | D63: =C70 -> 0.03966894767 | E63: =CORREL(I140:R140,endlevel10) -> 0.1138569969 | F63: =CORREL(I140:R140,$E$9:$E$18) -> 0.4770904213 | G63: 40 | H63: 4 | I63: 0.1927914967 | J63: 0.2172193342 | K63: 0.04527068607 | L63: 0.06797745329 | M63: 0.01331270953 | N63: 0.01446233672 | O63: 0.0294473993 | P63: 0.02423515073 | Q63: 0.02887495704 | R63: 0.03882648447 | S63: 0 | T63: 0 | W63: =IF(RAND()<poisson_parameter*model!K63,1,0) -> 0 | X63: =IF(RAND()<(K52^quadratic_condition*L52-$T$21)*$T$22*(1+pref_attach_on*SUM($X$35:X62)),1,0) -> 0 | Y63: 29 | Z63: =IF(AND(SUM($X$35:X62)=0,X63=1),Y63,"") -> 
B64: 7 | C64: 1.011575292 | D64: =C61 -> 1.317056155 | E64: =CORREL(I160:R160,endlevel10) -> 0.1454981524 | F64: =CORREL(I160:R160,$E$9:$E$18) -> 0.4894932733 | G64: 41 | H64: 4.1 | I64: 0.2015035084 | J64: 0.2262219476 | K64: 0.04697389828 | L64: 0.07176126235 | M64: 0.01380076925 | N64: 0.01446233672 | O64: 0.0294473993 | P64: 0.02423515073 | Q64: 0.02887495704 | R64: 0.03882648447 | S64: 0 | T64: 0 | W64: =IF(RAND()<poisson_parameter*model!K64,1,0) -> 0 | X64: =IF(RAND()<(K53^quadratic_condition*L53-$T$21)*$T$22*(1+pref_attach_on*SUM($X$35:X63)),1,0) -> 0 | Y64: 30 | Z64: =IF(AND(SUM($X$35:X63)=0,X64=1),Y64,"") -> 
A65: =rate10 -> 0.05363685844 | B65: 8 | C65: 0.906799605 | D65: =C71 -> 0.05888259101 | E65: =CORREL(I180:R180,endlevel10) -> 0.2021282801 | F65: =CORREL(I180:R180,$E$9:$E$18) -> 0.4705634983 | G65: 42 | H65: 4.2 | I65: 0.2104997882 | J65: 0.2354826368 | K65: 0.04873758999 | L65: 0.07574286835 | M65: 0.01430645085 | N65: 0.01446233672 | O65: 0.0294473993 | P65: 0.02423515073 | Q65: 0.02887495704 | R65: 0.03882648447 | S65: 0 | T65: 0 | W65: =IF(RAND()<poisson_parameter*model!K65,1,0) -> 0 | X65: =IF(RAND()<(K54^quadratic_condition*L54-$T$21)*$T$22*(1+pref_attach_on*SUM($X$35:X64)),1,0) -> 0 | Y65: 31 | Z65: =IF(AND(SUM($X$35:X64)=0,X65=1),Y65,"") -> 
A66: 0.03966894767 | B66: 9 | C66: 0.9095466227 | D66: =C62 -> 1.962281964 | E66: =CORREL(I200:R200,endlevel10) -> 0.2731904108 | F66: =CORREL(I200:R200,$E$9:$E$18) -> 0.4371986239 | G66: 43 | H66: 4.3 | I66: 0.2197798835 | J66: 0.2449991674 | K66: 0.05056363408 | L66: 0.07993115623 | M66: 0.01483037038 | N66: 0.01446233672 | O66: 0.0294473993 | P66: 0.02423515073 | Q66: 0.02887495704 | R66: 0.03882648447 | S66: 0 | T66: 0 | W66: =IF(RAND()<poisson_parameter*model!K66,1,0) -> 0 | X66: =IF(RAND()<(K55^quadratic_condition*L55-$T$21)*$T$22*(1+pref_attach_on*SUM($X$35:X65)),1,0) -> 0 | Y66: 32 | Z66: =IF(AND(SUM($X$35:X65)=0,X66=1),Y66,"") -> 
A67: 0.05888259101 | B67: 10 | C67: 0.9540164128 | D67: =C72 -> 0.03598292923 | E67: =CORREL(I220:R220,endlevel10) -> 0.3397775821 | F67: =CORREL(I220:R220,$E$9:$E$18) -> 0.3964194545 | G67: 44 | H67: 4.4 | I67: 0.2293424196 | J67: 0.254768415 | K67: 0.05245394048 | L67: 0.08433524549 | M67: 0.01537316393 | N67: 0.01446233672 | O67: 0.0294473993 | P67: 0.02423515073 | Q67: 0.02887495704 | R67: 0.03882648447 | S67: 0 | T67: 0 | W67: =IF(RAND()<poisson_parameter*model!K67,1,0) -> 0 | X67: =IF(RAND()<(K56^quadratic_condition*L56-$T$21)*$T$22*(1+pref_attach_on*SUM($X$35:X66)),1,0) -> 0 | Y67: 33 | Z67: =IF(AND(SUM($X$35:X66)=0,X67=1),Y67,"") -> 
A68: 0.03598292923 | B68: 1 | C68: =D9:D18 -> 0.05740745693 | D68: =C63 -> 0.9864189645 | E68: =CORREL(I240:R240,endlevel10) -> 0.3963094896 | F68: =CORREL(I240:R240,$E$9:$E$18) -> 0.3308120703 | G68: 45 | H68: 4.5 | I68: 0.2391850517 | J68: 0.2647863279 | K68: 0.05441045516 | L68: 0.08896447671 | M68: 0.01593548817 | N68: 0.01446233672 | O68: 0.0294473993 | P68: 0.02423515073 | Q68: 0.02887495704 | R68: 0.03882648447 | S68: 0 | T68: 0 | W68: =IF(RAND()<poisson_parameter*model!K68,1,0) -> 0 | X68: =IF(RAND()<(K57^quadratic_condition*L57-$T$21)*$T$22*(1+pref_attach_on*SUM($X$35:X67)),1,0) -> 0 | Y68: 34 | Z68: =IF(AND(SUM($X$35:X67)=0,X68=1),Y68,"") -> 
A69: 0.04714767178 | B69: 2 | C69: 0.05363685844 | D69: =C73 -> 0.04714767178 | E69: =CORREL(I260:R260,endlevel10) -> 0.4404307595 | F69: =CORREL(I260:R260,$E$9:$E$18) -> 0.2286567975 | G69: 46 | H69: 4.6 | I69: 0.2493044204 | J69: 0.275047892 | K69: 0.05643515904 | L69: 0.09382839512 | M69: 0.01651802086 | N69: 0.01446233672 | O69: 0.0294473993 | P69: 0.02423515073 | Q69: 0.02887495704 | R69: 0.03882648447 | S69: 0 | T69: 0 | W69: =IF(RAND()<poisson_parameter*model!K69,1,0) -> 0 | X69: =IF(RAND()<(K58^quadratic_condition*L58-$T$21)*$T$22*(1+pref_attach_on*SUM($X$35:X68)),1,0) -> 0 | Y69: 35 | Z69: =IF(AND(SUM($X$35:X68)=0,X69=1),Y69,"") -> 
A70: 0.07112470444 | B70: 3 | C70: 0.03966894767 | D70: =C64 -> 1.011575292 | E70: =CORREL(I280:R280,endlevel10) -> 0.4755935516 | F70: =CORREL(I280:R280,$E$9:$E$18) -> 0.1286403082 | G70: 47 | H70: 4.7 | I70: 0.2596961147 | J70: 0.2855471024 | K70: 0.05853006667 | L70: 0.09893673109 | M70: 0.01712146146 | N70: 0.01446233672 | O70: 0.0294473993 | P70: 0.02423515073 | Q70: 0.02887495704 | R70: 0.03882648447 | S70: 0 | T70: 0 | W70: =IF(RAND()<poisson_parameter*model!K70,1,0) -> 0 | X70: =IF(RAND()<(K59^quadratic_condition*L59-$T$21)*$T$22*(1+pref_attach_on*SUM($X$35:X69)),1,0) -> 0 | Y70: 36 | Z70: =IF(AND(SUM($X$35:X69)=0,X70=1),Y70,"") -> 
A71: 0.05085974456 | B71: 4 | C71: 0.05888259101 | D71: =C74 -> 0.07112470444 | E71: =CORREL(I300:R300,endlevel10) -> 0.5581874604 | F71: =CORREL(I300:R300,$E$9:$E$18) -> 0.07581782723 | G71: 48 | H71: 4.8 | I71: 0.27035464 | J71: 0.2962769399 | K71: 0.06069722468 | L71: 0.1042993771 | M71: 0.01774653163 | N71: 0.01446233672 | O71: 0.0294473993 | P71: 0.02423515073 | Q71: 0.02887495704 | R71: 0.03882648447 | S71: 0 | T71: 0 | W71: =IF(RAND()<poisson_parameter*model!K71,1,0) -> 0 | X71: =IF(RAND()<(K60^quadratic_condition*L60-$T$21)*$T$22*(1+pref_attach_on*SUM($X$35:X70)),1,0) -> 0 | Y71: 37 | Z71: =IF(AND(SUM($X$35:X70)=0,X71=1),Y71,"") -> 
A72: 0.03910122435 | B72: 5 | C72: 0.03598292923 | D72: =C65 -> 0.906799605 | E72: =CORREL(I320:R320,endlevel10) -> 0.7065990446 | F72: =CORREL(I320:R320,$E$9:$E$18) -> 0.05578869687 | G72: 49 | H72: 4.9 | I72: 0.2812733939 | J72: 0.3072293543 | K72: 0.0629387101 | L72: 0.1099263612 | M72: 0.0183939758 | N72: 0.01446233672 | O72: 0.0294473993 | P72: 0.02423515073 | Q72: 0.02887495704 | R72: 0.03882648447 | S72: 0 | T72: 0 | W72: =IF(RAND()<poisson_parameter*model!K72,1,0) -> 0 | X72: =IF(RAND()<(K61^quadratic_condition*L61-$T$21)*$T$22*(1+pref_attach_on*SUM($X$35:X71)),1,0) -> 0 | Y72: 38 | Z72: =IF(AND(SUM($X$35:X71)=0,X72=1),Y72,"") -> 
A73: 0.04216501119 | B73: 6 | C73: 0.04714767178 | D73: =C75 -> 0.05085974456 | E73: =CORREL(I340:R340,endlevel10) -> 0.863787561 | F73: =CORREL(I340:R340,$E$9:$E$18) -> 0.05303849134 | G73: 50 | H73: 5 | I73: 0.2924446511 | J73: 0.3183952544 | K73: 0.06525662842 | L73: 0.1158278164 | M73: 0.01906456175 | N73: 0.01446233672 | O73: 0.0294473993 | P73: 0.02423515073 | Q73: 0.02887495704 | R73: 0.03882648447 | S73: 0 | T73: 0 | W73: =IF(RAND()<poisson_parameter*model!K73,1,0) -> 0 | X73: =IF(RAND()<(K62^quadratic_condition*L62-$T$21)*$T$22*(1+pref_attach_on*SUM($X$35:X72)),1,0) -> 0 | Y73: 39 | Z73: =IF(AND(SUM($X$35:X72)=0,X73=1),Y73,"") -> 
A74: 0 | B74: 7 | C74: 0.07112470444 | D74: =C66 -> 0.9095466227 | E74: =CORREL(I360:R360,endlevel10) -> 0.9544460971 | F74: =CORREL(I360:R360,$E$9:$E$18) -> 0.05618082931 | G74: 51 | H74: 5.1 | I74: 0.3038595564 | J74: 0.3297645065 | K74: 0.06765311137 | L74: 0.1220139462 | M74: 0.01975908116 | N74: 0.01446233672 | O74: 0.0294473993 | P74: 0.02423515073 | Q74: 0.02887495704 | R74: 0.03882648447 | S74: 0 | T74: 0 | W74: =IF(RAND()<poisson_parameter*model!K74,1,0) -> 0 | X74: =IF(RAND()<(K63^quadratic_condition*L63-$T$21)*$T$22*(1+pref_attach_on*SUM($X$35:X73)),1,0) -> 0 | Y74: 40 | Z74: =IF(AND(SUM($X$35:X73)=0,X74=1),Y74,"") -> 
A75: =carcap10 -> 1.044243448 | B75: 8 | C75: 0.05085974456 | D75: =C76 -> 0.03910122435 | E75: =CORREL(I380:R380,endlevel10) -> 0.9865964916 | F75: =CORREL(I380:R380,$E$9:$E$18) -> 0.05822830825 | G75: 52 | H75: 5.2 | I75: 0.3155081275 | J75: 0.3413259398 | K75: 0.07013031456 | L75: 0.1284949854 | M75: 0.02047835013 | N75: 0.01446233672 | O75: 0.0294473993 | P75: 0.02423515073 | Q75: 0.02887495704 | R75: 0.03882648447 | S75: 0 | T75: 0 | W75: =IF(RAND()<poisson_parameter*model!K75,1,0) -> 0 | X75: =IF(RAND()<(K64^quadratic_condition*L64-$T$21)*$T$22*(1+pref_attach_on*SUM($X$35:X74)),1,0) -> 0 | Y75: 41 | Z75: =IF(AND(SUM($X$35:X74)=0,X75=1),Y75,"") -> 
A76: 1.003550882 | B76: 9 | C76: 0.03910122435 | D76: =C67 -> 0.9540164128 | E76: =CORREL(I400:R400,endlevel10) -> 0.9957982396 | F76: =CORREL(I400:R400,$E$9:$E$18) -> 0.05803173386 | G76: 53 | H76: 5.3 | I76: 0.3273792684 | J76: 0.3530673618 | K76: 0.07269041477 | L76: 0.1352811566 | M76: 0.02122320981 | N76: 0.01446233672 | O76: 0.0294473993 | P76: 0.02423515073 | Q76: 0.02887495704 | R76: 0.03882648447 | S76: 0 | T76: 0 | W76: =IF(RAND()<poisson_parameter*model!K76,1,0) -> 0 | X76: =IF(RAND()<(K65^quadratic_condition*L65-$T$21)*$T$22*(1+pref_attach_on*SUM($X$35:X75)),1,0) -> 0 | Y76: 42 | Z76: =IF(AND(SUM($X$35:X75)=0,X76=1),Y76,"") -> 
A77: 1.317056155 | B77: 10 | C77: 0.04216501119 | D77: =C77 -> 0.04216501119 | E77: =CORREL(I420:R420,endlevel10) -> 0.9984838195 | F77: =CORREL(I420:R420,$E$9:$E$18) -> 0.05649968398 | G77: 54 | H77: 5.4 | I77: 0.3394607933 | J77: 0.3649755817 | K77: 0.07533560699 | L77: 0.1423826218 | M77: 0.02199452691 | N77: 0.01446233672 | O77: 0.0294473993 | P77: 0.02423515073 | Q77: 0.02887495704 | R77: 0.03882648447 | S77: 0 | T77: 0 | W77: =IF(RAND()<poisson_parameter*model!K77,1,0) -> 0 | X77: =IF(RAND()<(K66^quadratic_condition*L66-$T$21)*$T$22*(1+pref_attach_on*SUM($X$35:X76)),1,0) -> 0 | Y77: 43 | Z77: =IF(AND(SUM($X$35:X76)=0,X77=1),Y77,"") -> 
A78: 0.9514573434 | E78: =CORREL(I440:R440,endlevel10) -> 0.9994021697 | F78: =CORREL(I440:R440,$E$9:$E$18) -> 0.05452868064 | G78: 55 | H78: 5.5 | I78: 0.3517394613 | J78: 0.3770364433 | K78: 0.07806810125 | L78: 0.1498094297 | M78: 0.02279319424 | N78: 0.01446233672 | O78: 0.0294473993 | P78: 0.02423515073 | Q78: 0.02887495704 | R78: 0.03882648447 | S78: 0 | T78: 0 | W78: =IF(RAND()<poisson_parameter*model!K78,1,0) -> 0 | X78: =IF(RAND()<(K67^quadratic_condition*L67-$T$21)*$T$22*(1+pref_attach_on*SUM($X$35:X77)),1,0) -> 0 | Y78: 44 | Z78: =IF(AND(SUM($X$35:X77)=0,X78=1),Y78,"") -> 
A79: 0.8541375503 | C79: max | D79: =B24 -> 0.7680468744 | E79: =CORREL(I460:R460,endlevel10) -> 0.99977032 | F79: =CORREL(I460:R460,$E$9:$E$18) -> 0.05263122137 | G79: 56 | H79: 5.6 | I79: 0.3642010219 | J79: 0.3892348675 | K79: 0.08089011904 | L79: 0.1575714571 | M79: 0.02362013132 | N79: 0.01446233672 | O79: 0.0294473993 | P79: 0.02423515073 | Q79: 0.02887495704 | R79: 0.03882648447 | S79: 0 | T79: 0 | W79: =IF(RAND()<poisson_parameter*model!K79,1,0) -> 0 | X79: =IF(RAND()<(K68^quadratic_condition*L68-$T$21)*$T$22*(1+pref_attach_on*SUM($X$35:X78)),1,0) -> 0 | Y79: 45 | Z79: =IF(AND(SUM($X$35:X78)=0,X79=1),Y79,"") -> 
A80: 1.011575301 | C80: totsup | D80: =Z33 -> 0 | E80: =CORREL(I480:R480,endlevel10) -> 0.9999256861 | F80: =CORREL(I480:R480,$E$9:$E$18) -> 0.05101821156 | G80: 57 | H80: 5.7 | I80: 0.3768302718 | J80: 0.4015549033 | K80: 0.08380388952 | L80: 0.1656783459 | M80: 0.02447628483 | N80: 0.01446233672 | O80: 0.0294473993 | P80: 0.02423515073 | Q80: 0.02887495704 | R80: 0.03882648447 | S80: 0 | T80: 0 | W80: =IF(RAND()<poisson_parameter*model!K80,1,0) -> 0 | X80: =IF(RAND()<(K69^quadratic_condition*L69-$T$21)*$T$22*(1+pref_attach_on*SUM($X$35:X79)),1,0) -> 0 | Y80: 46 | Z80: =IF(AND(SUM($X$35:X79)=0,X80=1),Y80,"") -> 
A81: 1.182923298 | C81: sup | D81: =K20 -> -0.01286426142 | G81: 58 | H81: 5.8 | I81: 0.3896111218 | J81: 0.4139797889 | K81: 0.08681164534 | L81: 0.1741394356 | M81: 0.02536262921 | N81: 0.01446233672 | O81: 0.0294473993 | P81: 0.02423515073 | Q81: 0.02887495704 | R81: 0.03882648447 | S81: 0 | T81: 0 | W81: =IF(RAND()<poisson_parameter*model!K81,1,0) -> 0 | X81: =IF(RAND()<(K70^quadratic_condition*L70-$T$21)*$T$22*(1+pref_attach_on*SUM($X$35:X80)),1,0) -> 0 | Y81: 47 | Z81: =IF(AND(SUM($X$35:X80)=0,X81=1),Y81,"") -> 
A82: 0.9099390428 | C82: carcap | D82: =E11 -> 1.003550882 | G82: 59 | H82: 5.9 | I82: 0.4025266742 | J82: 0.4264920205 | K82: 0.08991561824 | L82: 0.1829636895 | M82: 0.02628016713 | N82: 0.01446233672 | O82: 0.0294473993 | P82: 0.02423515073 | Q82: 0.02887495704 | R82: 0.03882648447 | S82: 0 | T82: 0 | W82: =IF(RAND()<poisson_parameter*model!K82,1,0) -> 0 | X82: =IF(RAND()<(K71^quadratic_condition*L71-$T$21)*$T$22*(1+pref_attach_on*SUM($X$35:X81)),1,0) -> 0 | Y82: 48 | Z82: =IF(AND(SUM($X$35:X81)=0,X82=1),Y82,"") -> 
A83: 1.007597242 | C83: rate | D83: =D11 -> 0.03966894767 | G83: 60 | H83: 6 | I83: 0.4155593091 | J83: 0.4390734305 | K83: 0.09311803415 | L83: 0.1921596183 | M83: 0.02722993003 | N83: 0.01446233672 | O83: 0.0294473993 | P83: 0.02423515073 | Q83: 0.02887495704 | R83: 0.03882648447 | S83: 0 | T83: 0 | W83: =IF(RAND()<poisson_parameter*model!K83,1,0) -> 0 | X83: =IF(RAND()<(K72^quadratic_condition*L72-$T$21)*$T$22*(1+pref_attach_on*SUM($X$35:X82)),1,0) -> 0 | Y83: 49 | Z83: =IF(AND(SUM($X$35:X82)=0,X83=1),Y83,"") -> 
A84: 0 | D84: =B25 -> 1.317056155 | G84: 61 | H84: 6.1 | I84: 0.4286907799 | J84: 0.4517052722 | K84: 0.09642110814 | L84: 0.2017351972 | M84: 0.02821297856 | N84: 0.01446233672 | O84: 0.0294473993 | P84: 0.02423515073 | Q84: 0.02887495704 | R84: 0.03882648447 | S84: 0 | T84: 0 | W84: =IF(RAND()<poisson_parameter*model!K84,1,0) -> 0 | X84: =IF(RAND()<(K73^quadratic_condition*L73-$T$21)*$T$22*(1+pref_attach_on*SUM($X$35:X83)),1,0) -> 0 | Y84: 50 | Z84: =IF(AND(SUM($X$35:X83)=0,X84=1),Y84,"") -> 
A85: =TRANSPOSE(connectionsum) -> 0.01054177724 | D85: =AA33 -> 0 | G85: 62 | H85: 6.2 | I85: 0.4419023153 | J85: 0.4643683127 | K85: 0.09982703886 | L85: 0.2116977806 | M85: 0.02923040309 | N85: 0.01446233672 | O85: 0.0294473993 | P85: 0.02423515073 | Q85: 0.02887495704 | R85: 0.03882648447 | S85: 0 | T85: 0 | W85: =IF(RAND()<poisson_parameter*model!K85,1,0) -> 0 | X85: =IF(RAND()<(K74^quadratic_condition*L74-$T$21)*$T$22*(1+pref_attach_on*SUM($X$35:X84)),1,0) -> 0 | Y85: 51 | Z85: =IF(AND(SUM($X$35:X84)=0,X85=1),Y85,"") -> 
A86: -0.008849270258 | D86: =L20 -> 0 | G86: 63 | H86: 6.3 | I86: 0.4551747289 | J86: 0.4770429309 | K86: 0.1033380027 | L86: 0.2220540123 | M86: 0.03028332411 | N86: 0.01446233672 | O86: 0.0294473993 | P86: 0.02423515073 | Q86: 0.02887495704 | R86: 0.03882648447 | S86: 0 | T86: 0 | W86: =IF(RAND()<poisson_parameter*model!K86,1,0) -> 0 | X86: =IF(RAND()<(K75^quadratic_condition*L75-$T$21)*$T$22*(1+pref_attach_on*SUM($X$35:X85)),1,0) -> 0 | Y86: 52 | Z86: =IF(AND(SUM($X$35:X85)=0,X86=1),Y86,"") -> 
A87: -0.01286426142 | D87: =E12 -> 1.317056155 | G87: 64 | H87: 6.4 | I87: 0.4684885324 | J87: 0.4897092213 | K87: 0.1069561476 | L87: 0.2328097334 | M87: 0.03137289268 | N87: 0.01446233672 | O87: 0.0294473993 | P87: 0.02423515073 | Q87: 0.02887495704 | R87: 0.03882648447 | S87: 0 | T87: 0 | W87: =IF(RAND()<poisson_parameter*model!K87,1,0) -> 0 | X87: =IF(RAND()<(K76^quadratic_condition*L76-$T$21)*$T$22*(1+pref_attach_on*SUM($X$35:X86)),1,0) -> 0 | Y87: 53 | Z87: =IF(AND(SUM($X$35:X86)=0,X87=1),Y87,"") -> 
A88: 0 | D88: =D12 -> 0.05888259101 | G88: 65 | H88: 6.5 | I88: 0.4818240536 | J88: 0.5023471015 | K88: 0.1106835863 | L88: 0.2439698876 | M88: 0.03250029081 | N88: 0.01446233672 | O88: 0.0294473993 | P88: 0.02423515073 | Q88: 0.02887495704 | R88: 0.03882648447 | S88: 0 | T88: 0 | W88: =IF(RAND()<poisson_parameter*model!K88,1,0) -> 0 | X88: =IF(RAND()<(K77^quadratic_condition*L77-$T$21)*$T$22*(1+pref_attach_on*SUM($X$35:X87)),1,0) -> 0 | Y88: 54 | Z88: =IF(AND(SUM($X$35:X87)=0,X88=1),Y88,"") -> 
A89: 0.04205351475 | D89: =B26 -> 1.962281964 | G89: 66 | H89: 6.6 | I89: 0.4951615555 | J89: 0.5149364223 | K89: 0.1145223899 | L89: 0.2555384257 | M89: 0.03366673179 | N89: 0.01446233672 | O89: 0.0294473993 | P89: 0.02423515073 | Q89: 0.02887495704 | R89: 0.03882648447 | S89: 0 | T89: 0 | W89: =IF(RAND()<poisson_parameter*model!K89,1,0) -> 0 | X89: =IF(RAND()<(K78^quadratic_condition*L78-$T$21)*$T$22*(1+pref_attach_on*SUM($X$35:X88)),1,0) -> 0 | Y89: 55 | Z89: =IF(AND(SUM($X$35:X88)=0,X89=1),Y89,"") -> 
A90: -0.01593359076 | D90: =AB33 -> 0.01635377211 | G90: 67 | H90: 6.7 | I90: 0.5084813562 | J90: 0.5274570807 | K90: 0.1184745798 | L90: 0.2675182089 | M90: 0.03487346056 | N90: 0.01446233672 | O90: 0.0294473993 | P90: 0.02423515073 | Q90: 0.02887495704 | R90: 0.03882648447 | S90: 0 | T90: =S90-S89 -> 0 | W90: =IF(RAND()<poisson_parameter*model!K90,1,0) -> 0 | X90: =IF(RAND()<(K79^quadratic_condition*L79-$T$21)*$T$22*(1+pref_attach_on*SUM($X$35:X89)),1,0) -> 0 | Y90: 56 | Z90: =IF(AND(SUM($X$35:X89)=0,X90=1),Y90,"") -> 
A91: 0 | D91: =M20 -> 0.04205351475 | G91: 68 | H91: 6.8 | I91: 0.5217639485 | J91: 0.5398891314 | K91: 0.1225421208 | L91: 0.2799109139 | M91: 0.03612175393 | N91: 0.01446233672 | O91: 0.0294473993 | P91: 0.02423515073 | Q91: 0.02887495704 | R91: 0.03882648447 | S91: 0 | T91: 0 | W91: =IF(RAND()<poisson_parameter*model!K91,1,0) -> 0 | X91: =IF(RAND()<(K80^quadratic_condition*L80-$T$21)*$T$22*(1+pref_attach_on*SUM($X$35:X90)),1,0) -> 0 | Y91: 57 | Z91: =IF(AND(SUM($X$35:X90)=0,X91=1),Y91,"") -> 
A92: -0.01375951367 | D92: =E13 -> 0.9514573434 | G92: 69 | H92: 6.9 | I92: 0.5349901155 | J92: 0.5522128996 | K92: 0.1267269123 | L92: 0.2927169392 | M92: 0.03741292088 | N92: 0.01446233672 | O92: 0.0294473993 | P92: 0.02423515073 | Q92: 0.02887495704 | R92: 0.03882648447 | S92: 0 | T92: 0 | W92: =IF(RAND()<poisson_parameter*model!K92,1,0) -> 0 | X92: =IF(RAND()<(K81^quadratic_condition*L81-$T$21)*$T$22*(1+pref_attach_on*SUM($X$35:X91)),1,0) -> 0 | Y92: 58 | Z92: =IF(AND(SUM($X$35:X91)=0,X92=1),Y92,"") -> 
A93: 0 | D93: =D13 -> 0.03598292923 | G93: 70 | H93: 7 | I93: 0.5481410439 | J93: 0.5644090902 | K93: 0.1310307809 | L93: 0.3059353151 | M93: 0.03874830268 | N93: 0.01446233672 | O93: 0.0294473993 | P93: 0.02423515073 | Q93: 0.02887495704 | R93: 0.03882648447 | S93: 0 | T93: 0 | W93: =IF(RAND()<poisson_parameter*model!K93,1,0) -> 0 | X93: =IF(RAND()<(K82^quadratic_condition*L82-$T$21)*$T$22*(1+pref_attach_on*SUM($X$35:X92)),1,0) -> 0 | Y93: 59 | Z93: =IF(AND(SUM($X$35:X92)=0,X93=1),Y93,"") -> 
A94: -0.001688978195 | D94: =B27 -> 0.9864189645 | G94: 71 | H94: 7.1 | I94: 0.5611984304 | J94: 0.5764588941 | K94: 0.1354554708 | L94: 0.3195636188 | M94: 0.04012927309 | N94: 0.01446233672 | O94: 0.0294473993 | P94: 0.02423515073 | Q94: 0.02887495704 | R94: 0.03882648447 | S94: 0 | T94: 0 | W94: =IF(RAND()<poisson_parameter*model!K94,1,0) -> 0 | X94: =IF(RAND()<(K83^quadratic_condition*L83-$T$21)*$T$22*(1+pref_attach_on*SUM($X$35:X93)),1,0) -> 0 | Y94: 60 | Z94: =IF(AND(SUM($X$35:X93)=0,X94=1),Y94,"") -> 
D95: =AC33 -> 0.006893049939 | G95: 72 | H95: 7.2 | I95: 0.5741445826 | J95: 0.5883440908 | K95: 0.1400026354 | L95: 0.3335978946 | M95: 0.04155723838 | N95: 0.01446233672 | O95: 0.0294473993 | P95: 0.02423515073 | Q95: 0.02887495704 | R95: 0.03882648447 | S95: 0 | T95: 0 | W95: =IF(RAND()<poisson_parameter*model!K95,1,0) -> 0 | X95: =IF(RAND()<(K84^quadratic_condition*L84-$T$21)*$T$22*(1+pref_attach_on*SUM($X$35:X94)),1,0) -> 0 | Y95: 61 | Z95: =IF(AND(SUM($X$35:X94)=0,X95=1),Y95,"") -> 
D96: =N20 -> -0.01593359076 | G96: 73 | H96: 7.3 | I96: 0.5869625121 | J96: 0.6000471447 | K96: 0.1446738279 | L96: 0.3480325837 | M96: 0.04303363739 | N96: 0.01446233672 | O96: 0.0294473993 | P96: 0.02423515073 | Q96: 0.02887495704 | R96: 0.03882648447 | S96: 0 | T96: 0 | W96: =IF(RAND()<poisson_parameter*model!K96,1,0) -> 0 | X96: =IF(RAND()<(K85^quadratic_condition*L85-$T$21)*$T$22*(1+pref_attach_on*SUM($X$35:X95)),1,0) -> 0 | Y96: 62 | Z96: =IF(AND(SUM($X$35:X95)=0,X96=1),Y96,"") -> 
D97: =E14 -> 0.8541375503 | G97: 74 | H97: 7.4 | I97: 0.5996360183 | J97: 0.6115512954 | K97: 0.1494704914 | L97: 0.3628604617 | M97: 0.04455994144 | N97: 0.01446233672 | O97: 0.0294473993 | P97: 0.02423515073 | Q97: 0.02887495704 | R97: 0.03882648447 | S97: 0 | T97: 0 | W97: =IF(RAND()<poisson_parameter*model!K97,1,0) -> 0 | X97: =IF(RAND()<(K86^quadratic_condition*L86-$T$21)*$T$22*(1+pref_attach_on*SUM($X$35:X96)),1,0) -> 0 | Y97: 63 | Z97: =IF(AND(SUM($X$35:X96)=0,X97=1),Y97,"") -> 
D98: =D14 -> 0.04714767178 | G98: 75 | H98: 7.5 | I98: 0.6121497635 | J98: 0.6228406404 | K98: 0.1543939497 | L98: 0.3780725881 | M98: 0.04613765421 | N98: 0.01446233672 | O98: 0.0294473993 | P98: 0.02423515073 | Q98: 0.02887495704 | R98: 0.03882648447 | S98: 0 | T98: 0 | W98: =IF(RAND()<poisson_parameter*model!K98,1,0) -> 0 | X98: =IF(RAND()<(K87^quadratic_condition*L87-$T$21)*$T$22*(1+pref_attach_on*SUM($X$35:X97)),1,0) -> 0 | Y98: 64 | Z98: =IF(AND(SUM($X$35:X97)=0,X98=1),Y98,"") -> 
B99: early_levels | G99: 76 | H99: 7.6 | I99: 0.6244893377 | J99: 0.63390021 | K99: 0.1594453969 | L99: 0.3936582683 | M99: 0.04776831154 | N99: 0.01446233672 | O99: 0.0294473993 | P99: 0.02423515073 | Q99: 0.02887495704 | R99: 0.03882648447 | S99: 0 | T99: 0 | W99: =IF(RAND()<poisson_parameter*model!K99,1,0) -> 0 | X99: =IF(RAND()<(K88^quadratic_condition*L88-$T$21)*$T$22*(1+pref_attach_on*SUM($X$35:X98)),1,0) -> 0 | Y99: 65 | Z99: =IF(AND(SUM($X$35:X98)=0,X99=1),Y99,"") -> 
B100: =TRANSPOSE(early_levels) -> 0.2924446511 | C100: =TRANSPOSE(maxlevel10) -> 1.312335352 | E100: =B100 -> 0.2924446511 | G100: 77 | H100: 7.7 | I100: 0.6366413135 | J100: 0.6447160338 | K100: 0.1646258873 | L100: 0.409605029 | M100: 0.04945348114 | N100: 0.01446233672 | O100: 0.0294473993 | P100: 0.02423515073 | Q100: 0.02887495704 | R100: 0.03882648447 | S100: 0 | T100: 0 | W100: =IF(RAND()<poisson_parameter*model!K100,1,0) -> 0 | X100: =IF(RAND()<(K89^quadratic_condition*L89-$T$21)*$T$22*(1+pref_attach_on*SUM($X$35:X99)),1,0) -> 0 | Y100: 66 | Z100: =IF(AND(SUM($X$35:X99)=0,X100=1),Y100,"") -> 
B101: 0.3183952544 | C101: 0.8471454365 | E101: =C100 -> 1.312335352 | G101: 78 | H101: 7.8 | I101: 0.64859329 | J101: 0.6552751973 | K101: 0.1699363251 | L101: 0.4258986093 | M101: 0.05119476216 | N101: 0.01446233672 | O101: 0.0294473993 | P101: 0.02423515073 | Q101: 0.02887495704 | R101: 0.03882648447 | S101: 0 | T101: 0 | W101: =IF(RAND()<poisson_parameter*model!K101,1,0) -> 0 | X101: =IF(RAND()<(K90^quadratic_condition*L90-$T$21)*$T$22*(1+pref_attach_on*SUM($X$35:X100)),1,0) -> 0 | Y101: 67 | Z101: =IF(AND(SUM($X$35:X100)=0,X101=1),Y101,"") -> 
B102: 0.06525662842 | C102: 0.7680468744 | E102: =B101 -> 0.3183952544 | G102: 79 | H102: 7.9 | I102: 0.6603339261 | J102: 0.6655658899 | K102: 0.1753774542 | L102: 0.4425229684 | M102: 0.05299378476 | N102: 0.01446233672 | O102: 0.0294473993 | P102: 0.02423515073 | Q102: 0.02887495704 | R102: 0.03882648447 | S102: 0 | T102: 0 | W102: =IF(RAND()<poisson_parameter*model!K102,1,0) -> 0 | X102: =IF(RAND()<(K91^quadratic_condition*L91-$T$21)*$T$22*(1+pref_attach_on*SUM($X$35:X101)),1,0) -> 0 | Y102: 68 | Z102: =IF(AND(SUM($X$35:X101)=0,X102=1),Y102,"") -> 
B103: 0.1158278164 | C103: 1.317056155 | E103: =C101 -> 0.8471454365 | G103: 80 | H103: 8 | I103: 0.6718529642 | J103: 0.6755774428 | K103: 0.1809498473 | L103: 0.4594603102 | M103: 0.05485220947 | N103: 0.01446233672 | O103: 0.0294473993 | P103: 0.02423515073 | Q103: 0.02887495704 | R103: 0.03882648447 | S103: 0 | T103: 0 | W103: =IF(RAND()<poisson_parameter*model!K103,1,0) -> 0 | X103: =IF(RAND()<(K92^quadratic_condition*L92-$T$21)*$T$22*(1+pref_attach_on*SUM($X$35:X102)),1,0) -> 0 | Y103: 69 | Z103: =IF(AND(SUM($X$35:X102)=0,X103=1),Y103,"") -> 
B104: 0.01906456175 | C104: 1.962281964 | E104: =B102 -> 0.06525662842 | G104: 81 | H104: 8.1 | I104: 0.6831412424 | J104: 0.6853003573 | K104: 0.1866538961 | L104: 0.4766911262 | M104: 0.05677172651 | N104: 0.01446233672 | O104: 0.0294473993 | P104: 0.02423515073 | Q104: 0.02887495704 | R104: 0.03882648447 | S104: 0 | T104: 0 | W104: =IF(RAND()<poisson_parameter*model!K104,1,0) -> 0 | X104: =IF(RAND()<(K93^quadratic_condition*L93-$T$21)*$T$22*(1+pref_attach_on*SUM($X$35:X103)),1,0) -> 0 | Y104: 70 | Z104: =IF(AND(SUM($X$35:X103)=0,X104=1),Y104,"") -> 
B105: 0.01446233672 | C105: 0.9864189645 | E105: =C102 -> 0.7680468744 | G105: 82 | H105: 8.2 | I105: 0.6941906984 | J105: 0.6947263232 | K105: 0.1924898005 | L105: 0.4941942572 | M105: 0.05875405494 | N105: 0.01446233672 | O105: 0.0294473993 | P105: 0.02423515073 | Q105: 0.02887495704 | R105: 0.03882648447 | S105: 0 | T105: 0 | W105: =IF(RAND()<poisson_parameter*model!K105,1,0) -> 0 | X105: =IF(RAND()<(K94^quadratic_condition*L94-$T$21)*$T$22*(1+pref_attach_on*SUM($X$35:X104)),1,0) -> 0 | Y105: 71 | Z105: =IF(AND(SUM($X$35:X104)=0,X105=1),Y105,"") -> 
B106: 0.0294473993 | C106: 1.011575292 | E106: =B103 -> 0.1158278164 | G106: 83 | H106: 8.3 | I106: 0.7049943635 | J106: 0.7038482285 | K106: 0.1984575585 | L106: 0.5119469735 | M106: 0.06080094175 | N106: 0.01446233672 | O106: 0.0294473993 | P106: 0.02423515073 | Q106: 0.02887495704 | R106: 0.03882648447 | S106: 0 | T106: 0 | W106: =IF(RAND()<poisson_parameter*model!K106,1,0) -> 0 | X106: =IF(RAND()<(K95^quadratic_condition*L95-$T$21)*$T$22*(1+pref_attach_on*SUM($X$35:X105)),1,0) -> 0 | Y106: 72 | Z106: =IF(AND(SUM($X$35:X105)=0,X106=1),Y106,"") -> 
B107: 0.02423515073 | C107: 0.906799605 | E107: =C103 -> 1.317056155 | G107: 84 | H107: 8.4 | I107: 0.7155463485 | J107: 0.7126601588 | K107: 0.2045569562 | L107: 0.5299250727 | M107: 0.0629141607 | N107: 0.01446233672 | O107: 0.0294473993 | P107: 0.02423515073 | Q107: 0.02887495704 | R107: 0.03882648447 | S107: 0 | T107: 0 | W107: =IF(RAND()<poisson_parameter*model!K107,1,0) -> 0 | X107: =IF(RAND()<(K96^quadratic_condition*L96-$T$21)*$T$22*(1+pref_attach_on*SUM($X$35:X106)),1,0) -> 0 | Y107: 73 | Z107: =IF(AND(SUM($X$35:X106)=0,X107=1),Y107,"") -> 
B108: 0.02887495704 | C108: 0.9095466227 | G108: 85 | H108: 8.5 | I108: 0.7258418211 | J108: 0.7211573892 | K108: 0.2107875579 | L108: 0.5481029969 | M108: 0.06509551115 | N108: 0.01446233672 | O108: 0.0294473993 | P108: 0.02423515073 | Q108: 0.02887495704 | R108: 0.03882648447 | S108: 0 | T108: 0 | W108: =IF(RAND()<poisson_parameter*model!K108,1,0) -> 0 | X108: =IF(RAND()<(K97^quadratic_condition*L97-$T$21)*$T$22*(1+pref_attach_on*SUM($X$35:X107)),1,0) -> 0 | Y108: 74 | Z108: =IF(AND(SUM($X$35:X107)=0,X108=1),Y108,"") -> 
B109: 0.03882648447 | C109: 0.9540164128 | G109: 86 | H109: 8.6 | I109: 0.7358769777 | J109: 0.7293363666 | K109: 0.217148697 | L109: 0.5664539651 | M109: 0.06734681665 | N109: 0.01446233672 | O109: 0.0294473993 | P109: 0.02423515073 | Q109: 0.02887495704 | R109: 0.03882648447 | S109: 0 | T109: 0 | W109: =IF(RAND()<poisson_parameter*model!K109,1,0) -> 0 | X109: =IF(RAND()<(K98^quadratic_condition*L98-$T$21)*$T$22*(1+pref_attach_on*SUM($X$35:X108)),1,0) -> 0 | Y109: 75 | Z109: =IF(AND(SUM($X$35:X108)=0,X109=1),Y109,"") -> 
G110: 87 | H110: 8.7 | I110: 0.7456490077 | J110: 0.7371946855 | K110: 0.2236394668 | L110: 0.5849501226 | M110: 0.06966992339 | N110: 0.01446233672 | O110: 0.0294473993 | P110: 0.02423515073 | Q110: 0.02887495704 | R110: 0.03882648447 | S110: 0 | T110: 0 | W110: =IF(RAND()<poisson_parameter*model!K110,1,0) -> 0 | X110: =IF(RAND()<(K99^quadratic_condition*L99-$T$21)*$T$22*(1+pref_attach_on*SUM($X$35:X109)),1,0) -> 0 | Y110: 76 | Z110: =IF(AND(SUM($X$35:X109)=0,X110=1),Y110,"") -> 
B111: =CORREL(B100:B109,C100:C109) -> -0.04433156395 | G111: 88 | H111: 8.8 | I111: 0.7551560536 | J111: 0.7447310556 | K111: 0.2302587116 | L111: 0.6035627032 | M111: 0.07206669852 | N111: 0.01446233672 | O111: 0.0294473993 | P111: 0.02423515073 | Q111: 0.02887495704 | R111: 0.03882648447 | S111: 0 | T111: 0 | W111: =IF(RAND()<poisson_parameter*model!K111,1,0) -> 0 | X111: =IF(RAND()<(K100^quadratic_condition*L100-$T$21)*$T$22*(1+pref_attach_on*SUM($X$35:X110)),1,0) -> 0 | Y111: 77 | Z111: =IF(AND(SUM($X$35:X110)=0,X111=1),Y111,"") -> 
G112: 89 | H112: 8.9 | I112: 0.7643971657 | J112: 0.7519452634 | K112: 0.2370050196 | L112: 0.6222622046 | M112: 0.07453902822 | N112: 0.01446233672 | O112: 0.0294473993 | P112: 0.02423515073 | Q112: 0.02887495704 | R112: 0.03882648447 | S112: 0 | T112: 0 | W112: =IF(RAND()<poisson_parameter*model!K112,1,0) -> 0 | X112: =IF(RAND()<(K101^quadratic_condition*L101-$T$21)*$T$22*(1+pref_attach_on*SUM($X$35:X111)),1,0) -> 0 | Y112: 78 | Z112: =IF(AND(SUM($X$35:X111)=0,X112=1),Y112,"") -> 
G113: 90 | H113: 9 | I113: 0.773372254 | J113: 0.7588381284 | K113: 0.2438767146 | L113: 0.6410185727 | M113: 0.07708881568 | N113: 0.01446233672 | O113: 0.0294473993 | P113: 0.02423515073 | Q113: 0.02887495704 | R113: 0.03882648447 | S113: 0 | T113: 0 | W113: =IF(RAND()<poisson_parameter*model!K113,1,0) -> 0 | X113: =IF(RAND()<(K102^quadratic_condition*L102-$T$21)*$T$22*(1+pref_attach_on*SUM($X$35:X112)),1,0) -> 0 | Y113: 79 | Z113: =IF(AND(SUM($X$35:X112)=0,X113=1),Y113,"") -> 
G114: 91 | H114: 9.1 | I114: 0.7820820366 | J114: 0.765411453 | K114: 0.2508718501 | L114: 0.6598013938 | M114: 0.07971797884 | N114: 0.01446233672 | O114: 0.0294473993 | P114: 0.02423515073 | Q114: 0.02887495704 | R114: 0.03882648447 | S114: 0 | T114: 0 | W114: =IF(RAND()<poisson_parameter*model!K114,1,0) -> 0 | X114: =IF(RAND()<(K103^quadratic_condition*L103-$T$21)*$T$22*(1+pref_attach_on*SUM($X$35:X113)),1,0) -> 0 | Y114: 80 | Z114: =IF(AND(SUM($X$35:X113)=0,X114=1),Y114,"") -> 
G115: 92 | H115: 9.2 | I115: 0.7905279868 | J115: 0.7716679698 | K115: 0.2579882033 | L115: 0.6785800921 | M115: 0.0824284479 | N115: 0.01446233672 | O115: 0.0294473993 | P115: 0.02423515073 | Q115: 0.02887495704 | R115: 0.03882648447 | S115: 0 | T115: 0 | W115: =IF(RAND()<poisson_parameter*model!K115,1,0) -> 0 | X115: =IF(RAND()<(K104^quadratic_condition*L104-$T$21)*$T$22*(1+pref_attach_on*SUM($X$35:X114)),1,0) -> 0 | Y115: 81 | Z115: =IF(AND(SUM($X$35:X114)=0,X115=1),Y115,"") -> 
G116: 93 | H116: 9.3 | I116: 0.7987122782 | J116: 0.7776112832 | K116: 0.2652232701 | L116: 0.6973241281 | M116: 0.08522216271 | N116: 0.01446233672 | O116: 0.0294473993 | P116: 0.02423515073 | Q116: 0.02887495704 | R116: 0.03882648447 | S116: 0 | T116: 0 | W116: =IF(RAND()<poisson_parameter*model!K116,1,0) -> 0 | X116: =IF(RAND()<(K105^quadratic_condition*L105-$T$21)*$T$22*(1+pref_attach_on*SUM($X$35:X115)),1,0) -> 0 | Y116: 82 | Z116: =IF(AND(SUM($X$35:X115)=0,X116=1),Y116,"") -> 
G117: 94 | H117: 9.4 | I117: 0.8066377293 | J117: 0.7832458102 | K117: 0.2725742612 | L117: 0.7160031976 | M117: 0.08810106989 | N117: 0.01446233672 | O117: 0.0294473993 | P117: 0.02423515073 | Q117: 0.02887495704 | R117: 0.03882648447 | S117: 0 | T117: 0 | W117: =IF(RAND()<poisson_parameter*model!K117,1,0) -> 0 | X117: =IF(RAND()<(K106^quadratic_condition*L106-$T$21)*$T$22*(1+pref_attach_on*SUM($X$35:X116)),1,0) -> 0 | Y117: 83 | Z117: =IF(AND(SUM($X$35:X116)=0,X117=1),Y117,"") -> 
G118: 95 | H118: 9.5 | I118: 0.8143077481 | J118: 0.7885767173 | K118: 0.2800380993 | L118: 0.734587427 | M118: 0.09106711974 | N118: 0.01446233672 | O118: 0.0294473993 | P118: 0.02423515073 | Q118: 0.02887495704 | R118: 0.03882648447 | S118: 0 | T118: 0 | W118: =IF(RAND()<poisson_parameter*model!K118,1,0) -> 0 | X118: =IF(RAND()<(K107^quadratic_condition*L107-$T$21)*$T$22*(1+pref_attach_on*SUM($X$35:X117)),1,0) -> 0 | Y118: 84 | Z118: =IF(AND(SUM($X$35:X117)=0,X118=1),Y118,"") -> 
G119: 96 | H119: 9.6 | I119: 0.8217262772 | J119: 0.7936098567 | K119: 0.2876114169 | L119: 0.7530475623 | M119: 0.09412226292 | N119: 0.01446233672 | O119: 0.0294473993 | P119: 0.02423515073 | Q119: 0.02887495704 | R119: 0.03882648447 | S119: 0 | T119: 0 | W119: =IF(RAND()<poisson_parameter*model!K119,1,0) -> 0 | X119: =IF(RAND()<(K108^quadratic_condition*L108-$T$21)*$T$22*(1+pref_attach_on*SUM($X$35:X118)),1,0) -> 0 | Y119: 85 | Z119: =IF(AND(SUM($X$35:X118)=0,X119=1),Y119,"") -> 
G120: 97 | H120: 9.7 | I120: 0.8288977398 | J120: 0.7983517017 | K120: 0.2952905561 | L120: 0.7713551497 | M120: 0.09726844697 | N120: 0.01446233672 | O120: 0.0294473993 | P120: 0.02423515073 | Q120: 0.02887495704 | R120: 0.03882648447 | S120: 0 | T120: 0 | W120: =IF(RAND()<poisson_parameter*model!K120,1,0) -> 0 | X120: =IF(RAND()<(K109^quadratic_condition*L109-$T$21)*$T$22*(1+pref_attach_on*SUM($X$35:X119)),1,0) -> 0 | Y120: 86 | Z120: =IF(AND(SUM($X$35:X119)=0,X120=1),Y120,"") ->  | AB120: 10 | AC120: 20 | AD120: 30 | AE120: 50 | AF120: 12.5 | AG120: 22.5 | AH120: 32.5 | AI120: 23.5 | AJ120: 33.5 | AK120: 14.5 | AL120: 24.5 | AM120: 34.5 | AN120: 54.5
G121: 98 | H121: 9.8 | I121: 0.8358269869 | J121: 0.8028092815 | K121: 0.3030715691 | L121: 0.7894827055 | M121: 0.1005076125 | N121: 0.01446233672 | O121: 0.0294473993 | P121: 0.02423515073 | Q121: 0.02887495704 | R121: 0.03882648447 | S121: 0 | T121: 0 | W121: =IF(RAND()<poisson_parameter*model!K121,1,0) -> 0 | X121: =IF(RAND()<(K110^quadratic_condition*L110-$T$21)*$T$22*(1+pref_attach_on*SUM($X$35:X120)),1,0) -> 0 | Y121: 87 | Z121: =IF(AND(SUM($X$35:X120)=0,X121=1),Y121,"") ->  | AA121: 10 | AB121: 125 | AC121: 2 | AF121: 1 | AK121: 1 | AO121: 129
G122: 99 | H122: 9.9 | I122: 0.8425192463 | J122: 0.8069901164 | K122: 0.3109502197 | L122: 0.8074038733 | M122: 0.1038416891 | N122: 0.01446233672 | O122: 0.0294473993 | P122: 0.02423515073 | Q122: 0.02887495704 | R122: 0.03882648447 | S122: 0 | T122: 0 | W122: =IF(RAND()<poisson_parameter*model!K122,1,0) -> 0 | X122: =IF(RAND()<(K111^quadratic_condition*L111-$T$21)*$T$22*(1+pref_attach_on*SUM($X$35:X121)),1,0) -> 0 | Y122: 88 | Z122: =IF(AND(SUM($X$35:X121)=0,X122=1),Y122,"") ->  | AA122: 20 | AC122: 116 | AD122: 2 | AG122: 1 | AL122: 1 | AO122: 120
G123: 100 | H123: 10 | I123: 0.8489800734 | J123: 0.8109021539 | K123: 0.3189219868 | L123: 0.8250935659 | M123: 0.1072725913 | N123: 0.01446233672 | O123: 0.0294473993 | P123: 0.02423515073 | Q123: 0.02887495704 | R123: 0.03882648447 | S123: 0 | T123: 0 | W123: =IF(RAND()<poisson_parameter*model!K123,1,0) -> 0 | X123: =IF(RAND()<(K112^quadratic_condition*L112-$T$21)*$T$22*(1+pref_attach_on*SUM($X$35:X122)),1,0) -> 0 | Y123: 89 | Z123: =IF(AND(SUM($X$35:X122)=0,X123=1),Y123,"") ->  | AA123: 30 | AB123: 1 | AC123: 2 | AD123: 88 | AM123: 3 | AO123: 94
G124: 101 | H124: 10.1 | I124: 0.8552153045 | J124: 0.8145537065 | K124: 0.3269820688 | L124: 0.8425280914 | M124: 0.110802214 | N124: 0.01446233672 | O124: 0.0294473993 | P124: 0.02423515073 | Q124: 0.02887495704 | R124: 0.03882648447 | S124: 0 | T124: 0 | W124: =IF(RAND()<poisson_parameter*model!K124,1,0) -> 0 | X124: =IF(RAND()<(K113^quadratic_condition*L113-$T$21)*$T$22*(1+pref_attach_on*SUM($X$35:X123)),1,0) -> 0 | Y124: 90 | Z124: =IF(AND(SUM($X$35:X123)=0,X124=1),Y124,"") ->  | AA124: 50 | AE124: 22 | AN124: 1 | AO124: 23
G125: 102 | H125: 10.2 | I125: 0.8612310127 | J125: 0.8179533905 | K125: 0.3351253893 | L125: 0.8596852624 | M125: 0.1144324276 | N125: 0.01446233672 | O125: 0.0294473993 | P125: 0.02423515073 | Q125: 0.02887495704 | R125: 0.03882648447 | S125: 0 | T125: 0 | W125: =IF(RAND()<poisson_parameter*model!K125,1,0) -> 0 | X125: =IF(RAND()<(K114^quadratic_condition*L114-$T$21)*$T$22*(1+pref_attach_on*SUM($X$35:X124)),1,0) -> 0 | Y125: 91 | Z125: =IF(AND(SUM($X$35:X124)=0,X125=1),Y125,"") ->  | AA125: 12.5 | AB125: 2 | AF125: 171 | AG125: 1 | AL125: 1 | AO125: 175
G126: 103 | H126: 10.3 | I126: 0.867033465 | J126: 0.8211100676 | K126: 0.343346605 | L126: 0.8765444864 | M126: 0.1181650732 | N126: 0.01446233672 | O126: 0.0294473993 | P126: 0.02423515073 | Q126: 0.02887495704 | R126: 0.03882648447 | S126: 0 | T126: 0 | W126: =IF(RAND()<poisson_parameter*model!K126,1,0) -> 0 | X126: =IF(RAND()<(K115^quadratic_condition*L115-$T$21)*$T$22*(1+pref_attach_on*SUM($X$35:X125)),1,0) -> 0 | Y126: 92 | Z126: =IF(AND(SUM($X$35:X125)=0,X126=1),Y126,"") ->  | AA126: 22.5 | AG126: 209 | AH126: 1 | AI126: 1 | AL126: 2 | AO126: 213
G127: 104 | H127: 10.4 | I127: 0.872629084 | J127: 0.8240327888 | K127: 0.3516401136 | L127: 0.8930868386 | M127: 0.1220019574 | N127: 0.01446233672 | O127: 0.0294473993 | P127: 0.02423515073 | Q127: 0.02887495704 | R127: 0.03882648447 | S127: 0 | T127: 0 | W127: =IF(RAND()<poisson_parameter*model!K127,1,0) -> 0 | X127: =IF(RAND()<(K116^quadratic_condition*L116-$T$21)*$T$22*(1+pref_attach_on*SUM($X$35:X126)),1,0) -> 0 | Y127: 93 | Z127: =IF(AND(SUM($X$35:X126)=0,X127=1),Y127,"") ->  | AA127: 32.5 | AD127: 1 | AH127: 63 | AJ127: 1 | AM127: 1 | AO127: 66
G128: 105 | H128: 10.5 | I128: 0.8780244103 | J128: 0.8267307411 | K128: 0.3600000647 | L128: 0.9092951153 | M128: 0.1259448467 | N128: 0.01446233672 | O128: 0.0294473993 | P128: 0.02423515073 | Q128: 0.02887495704 | R128: 0.03882648447 | S128: 0 | T128: 0 | W128: =IF(RAND()<poisson_parameter*model!K128,1,0) -> 0 | X128: =IF(RAND()<(K117^quadratic_condition*L117-$T$21)*$T$22*(1+pref_attach_on*SUM($X$35:X127)),1,0) -> 0 | Y128: 94 | Z128: =IF(AND(SUM($X$35:X127)=0,X128=1),Y128,"") ->  | AA128: 23.5 | AG128: 1 | AI128: 10 | AO128: 11
G129: 106 | H129: 10.6 | I129: 0.8832260693 | J129: 0.829213197 | K129: 0.3684203705 | L129: 0.9251538702 | M129: 0.1299954619 | N129: 0.01446233672 | O129: 0.0294473993 | P129: 0.02423515073 | Q129: 0.02887495704 | R129: 0.03882648447 | S129: 0 | T129: 0 | W129: =IF(RAND()<poisson_parameter*model!K129,1,0) -> 0 | X129: =IF(RAND()<(K118^quadratic_condition*L118-$T$21)*$T$22*(1+pref_attach_on*SUM($X$35:X128)),1,0) -> 0 | Y129: 95 | Z129: =IF(AND(SUM($X$35:X128)=0,X129=1),Y129,"") ->  | AA129: 33.5 | AH129: 1 | AJ129: 11 | AO129: 12
G130: 107 | H130: 10.7 | I130: 0.8882407389 | J130: 0.8314894676 | K130: 0.3768947193 | L130: 0.9406494316 | M130: 0.1341554725 | N130: 0.01446233672 | O130: 0.0294473993 | P130: 0.02423515073 | Q130: 0.02887495704 | R130: 0.03882648447 | S130: 0 | T130: 0 | W130: =IF(RAND()<poisson_parameter*model!K130,1,0) -> 0 | X130: =IF(RAND()<(K119^quadratic_condition*L119-$T$21)*$T$22*(1+pref_attach_on*SUM($X$35:X129)),1,0) -> 0 | Y130: 96 | Z130: =IF(AND(SUM($X$35:X129)=0,X130=1),Y130,"") ->  | AA130: 14.5 | AB130: 1 | AF130: 3 | AK130: 47 | AO130: 51
G131: 108 | H131: 10.8 | I131: 0.8930751213 | J131: 0.8335688585 | K131: 0.3854165892 | L131: 0.9557699041 | M131: 0.1384264898 | N131: 0.01446233672 | O131: 0.0294473993 | P131: 0.02423515073 | Q131: 0.02887495704 | R131: 0.03882648447 | S131: 0 | T131: 0 | W131: =IF(RAND()<poisson_parameter*model!K131,1,0) -> 0 | X131: =IF(RAND()<(K120^quadratic_condition*L120-$T$21)*$T$22*(1+pref_attach_on*SUM($X$35:X130)),1,0) -> 0 | Y131: 97 | Z131: =IF(AND(SUM($X$35:X130)=0,X131=1),Y131,"") ->  | AA131: 24.5 | AG131: 1 | AK131: 1 | AL131: 102 | AN131: 1 | AO131: 105
G132: 109 | H132: 10.9 | I132: 0.8977359166 | J132: 0.8354606294 | K132: 0.3939792639 | L132: 0.9705051534 | M132: 0.1428100616 | N132: 0.01446233672 | O132: 0.0294473993 | P132: 0.02423515073 | Q132: 0.02887495704 | R132: 0.03882648447 | S132: 0 | T132: 0 | W132: =IF(RAND()<poisson_parameter*model!K132,1,0) -> 0 | X132: =IF(RAND()<(K121^quadratic_condition*L121-$T$21)*$T$22*(1+pref_attach_on*SUM($X$35:X131)),1,0) -> 0 | Y132: 98 | Z132: =IF(AND(SUM($X$35:X131)=0,X132=1),Y132,"") ->  | AA132: 34.5 | AD132: 2 | AH132: 1 | AK132: 1 | AM132: 164 | AO132: 168
G133: 110 | H133: 11 | I133: 0.9022297986 | J133: 0.8371739574 | K133: 0.4025758488 | L133: 0.9848467772 | M133: 0.1473076649 | N133: 0.01446233672 | O133: 0.0294473993 | P133: 0.02423515073 | Q133: 0.02887495704 | R133: 0.03882648447 | S133: 0 | T133: 0 | W133: =IF(RAND()<poisson_parameter*model!K133,1,0) -> 0 | X133: =IF(RAND()<(K122^quadratic_condition*L122-$T$21)*$T$22*(1+pref_attach_on*SUM($X$35:X132)),1,0) -> 0 | Y133: 99 | Z133: =IF(AND(SUM($X$35:X132)=0,X133=1),Y133,"") ->  | AA133: 54.5 | AE133: 1 | AK133: 1 | AN133: 95 | AO133: 97
G134: 111 | H134: 11.1 | I134: 0.9065633938 | J134: 0.838717903 | K134: 0.4111992891 | L134: 0.998788062 | M134: 0.1519206994 | N134: 0.01446233672 | O134: 0.0294473993 | P134: 0.02423515073 | Q134: 0.02887495704 | R134: 0.03882648447 | S134: 0 | T134: 0 | W134: =IF(RAND()<poisson_parameter*model!K134,1,0) -> 0 | X134: =IF(RAND()<(K123^quadratic_condition*L123-$T$21)*$T$22*(1+pref_attach_on*SUM($X$35:X133)),1,0) -> 0 | Y134: 100 | Z134: =IF(AND(SUM($X$35:X133)=0,X134=1),Y134,"") ->  | AB134: 129 | AC134: 120 | AD134: 93 | AE134: 23 | AF134: 175 | AG134: 213 | AH134: 66 | AI134: 11 | AJ134: 12 | AK134: 51 | AL134: 106 | AM134: 168 | AN134: 97 | AO134: 1264
G135: 112 | H135: 11.2 | I135: 0.9107432617 | J135: 0.8401013804 | K135: 0.4198423885 | L135: 1.012323929 | M135: 0.1566504809 | N135: 0.01446233672 | O135: 0.0294473993 | P135: 0.02423515073 | Q135: 0.02887495704 | R135: 0.03882648447 | S135: 0 | T135: 0 | W135: =IF(RAND()<poisson_parameter*model!K135,1,0) -> 0 | X135: =IF(RAND()<(K124^quadratic_condition*L124-$T$21)*$T$22*(1+pref_attach_on*SUM($X$35:X134)),1,0) -> 0 | Y135: 101 | Z135: =IF(AND(SUM($X$35:X134)=0,X135=1),Y135,"") -> 
G136: 113 | H136: 11.3 | I136: 0.9147758777 | J136: 0.8413331305 | K136: 0.4284978286 | L136: 1.02545087 | M136: 0.1614982341 | N136: 0.01446233672 | O136: 0.0294473993 | P136: 0.02423515073 | Q136: 0.02887495704 | R136: 0.03882648447 | S136: 0 | T136: 0 | W136: =IF(RAND()<poisson_parameter*model!K136,1,0) -> 0 | X136: =IF(RAND()<(K125^quadratic_condition*L125-$T$21)*$T$22*(1+pref_attach_on*SUM($X$35:X135)),1,0) -> 0 | Y136: 102 | Z136: =IF(AND(SUM($X$35:X135)=0,X136=1),Y136,"") -> 
G137: 114 | H137: 11.4 | I137: 0.9186676182 | J137: 0.8424216972 | K137: 0.4371581898 | L137: 1.038166871 | M137: 0.1664650854 | N137: 0.01446233672 | O137: 0.0294473993 | P137: 0.02423515073 | Q137: 0.02887495704 | R137: 0.03882648447 | S137: 0 | T137: 0 | W137: =IF(RAND()<poisson_parameter*model!K137,1,0) -> 0 | X137: =IF(RAND()<(K126^quadratic_condition*L126-$T$21)*$T$22*(1+pref_attach_on*SUM($X$35:X136)),1,0) -> 0 | Y137: 103 | Z137: =IF(AND(SUM($X$35:X136)=0,X137=1),Y137,"") -> 
G138: 115 | H138: 11.5 | I138: 0.922424747 | J138: 0.8433754077 | K138: 0.445815972 | L138: 1.050471336 | M138: 0.171552056 | N138: 0.01446233672 | O138: 0.0294473993 | P138: 0.02423515073 | Q138: 0.02887495704 | R138: 0.03882648447 | S138: 0 | T138: 0 | W138: =IF(RAND()<poisson_parameter*model!K138,1,0) -> 0 | X138: =IF(RAND()<(K127^quadratic_condition*L127-$T$21)*$T$22*(1+pref_attach_on*SUM($X$35:X137)),1,0) -> 0 | Y138: 104 | Z138: =IF(AND(SUM($X$35:X137)=0,X138=1),Y138,"") -> 
G139: 116 | H139: 11.6 | I139: 0.926053404 | J139: 0.8442023543 | K139: 0.4544636168 | L139: 1.062364998 | M139: 0.1767600541 | N139: 0.01446233672 | O139: 0.0294473993 | P139: 0.02423515073 | Q139: 0.02887495704 | R139: 0.03882648447 | S139: 0 | T139: 0 | W139: =IF(RAND()<poisson_parameter*model!K139,1,0) -> 0 | X139: =IF(RAND()<(K128^quadratic_condition*L128-$T$21)*$T$22*(1+pref_attach_on*SUM($X$35:X138)),1,0) -> 0 | Y139: 105 | Z139: =IF(AND(SUM($X$35:X138)=0,X139=1),Y139,"") -> 
G140: 117 | H140: 11.7 | I140: 0.929559595 | J140: 0.8449103808 | K140: 0.4630935297 | L140: 1.073849828 | M140: 0.1820898682 | N140: 0.01446233672 | O140: 0.0294473993 | P140: 0.02423515073 | Q140: 0.02887495704 | R140: 0.03882648447 | S140: 0 | T140: 0 | W140: =IF(RAND()<poisson_parameter*model!K140,1,0) -> 0 | X140: =IF(RAND()<(K129^quadratic_condition*L129-$T$21)*$T$22*(1+pref_attach_on*SUM($X$35:X139)),1,0) -> 0 | Y140: 106 | Z140: =IF(AND(SUM($X$35:X139)=0,X140=1),Y140,"") -> 
G141: 118 | H141: 11.8 | I141: 0.9329491834 | J141: 0.8455070699 | K141: 0.4716981024 | L141: 1.084928945 | M141: 0.1875421593 | N141: 0.01446233672 | O141: 0.0294473993 | P141: 0.02423515073 | Q141: 0.02887495704 | R141: 0.03882648447 | S141: 0 | T141: 0 | W141: =IF(RAND()<poisson_parameter*model!K141,1,0) -> 0 | X141: =IF(RAND()<(K130^quadratic_condition*L130-$T$21)*$T$22*(1+pref_attach_on*SUM($X$35:X140)),1,0) -> 0 | Y141: 107 | Z141: =IF(AND(SUM($X$35:X140)=0,X141=1),Y141,"") -> 
G142: 119 | H142: 11.9 | I142: 0.9362278831 | J142: 0.8459997349 | K142: 0.4802697358 | L142: 1.095606517 | M142: 0.1931174539 | N142: 0.01446233672 | O142: 0.0294473993 | P142: 0.02423515073 | Q142: 0.02887495704 | R142: 0.03882648447 | S142: 0 | T142: 0 | W142: =IF(RAND()<poisson_parameter*model!K142,1,0) -> 0 | X142: =IF(RAND()<(K131^quadratic_condition*L131-$T$21)*$T$22*(1+pref_attach_on*SUM($X$35:X141)),1,0) -> 0 | Y142: 108 | Z142: =IF(AND(SUM($X$35:X141)=0,X142=1),Y142,"") -> 
G143: 120 | H143: 12 | I143: 0.9394012527 | J143: 0.8463954118 | K143: 0.4888008628 | L143: 1.105887671 | M143: 0.1988161365 | N143: 0.01446233672 | O143: 0.0294473993 | P143: 0.02423515073 | Q143: 0.02887495704 | R143: 0.03882648447 | S143: 0 | T143: 0 | W143: =IF(RAND()<poisson_parameter*model!K143,1,0) -> 0 | X143: =IF(RAND()<(K132^quadratic_condition*L132-$T$21)*$T$22*(1+pref_attach_on*SUM($X$35:X142)),1,0) -> 0 | Y143: 109 | Z143: =IF(AND(SUM($X$35:X142)=0,X143=1),Y143,"") -> 
G144: 121 | H144: 12.1 | I144: 0.9424746907 | J144: 0.8467008555 | K144: 0.4972839706 | L144: 1.115778393 | M144: 0.2046384426 | N144: 0.01446233672 | O144: 0.0294473993 | P144: 0.02423515073 | Q144: 0.02887495704 | R144: 0.03882648447 | S144: 0 | T144: 0 | W144: =IF(RAND()<poisson_parameter*model!K144,1,0) -> 0 | X144: =IF(RAND()<(K133^quadratic_condition*L133-$T$21)*$T$22*(1+pref_attach_on*SUM($X$35:X143)),1,0) -> 0 | Y144: 110 | Z144: =IF(AND(SUM($X$35:X143)=0,X144=1),Y144,"") -> 
G145: 122 | H145: 12.2 | I145: 0.945453432 | J145: 0.8469225365 | K145: 0.5057116239 | L145: 1.125285441 | M145: 0.2105844517 | N145: 0.01446233672 | O145: 0.0294473993 | P145: 0.02423515073 | Q145: 0.02887495704 | R145: 0.03882648447 | S145: 0 | T145: 0 | W145: =IF(RAND()<poisson_parameter*model!K145,1,0) -> 0 | X145: =IF(RAND()<(K134^quadratic_condition*L134-$T$21)*$T$22*(1+pref_attach_on*SUM($X$35:X144)),1,0) -> 0 | Y145: 111 | Z145: =IF(AND(SUM($X$35:X144)=0,X145=1),Y145,"") -> 
G146: 123 | H146: 12.3 | I146: 0.948342545 | J146: 0.8470666401 | K146: 0.5140764865 | L146: 1.134416249 | M146: 0.2166540806 | N146: 0.01446233672 | O146: 0.0294473993 | P146: 0.02423515073 | Q146: 0.02887495704 | R146: 0.03882648447 | S146: 0 | T146: 0 | W146: =IF(RAND()<poisson_parameter*model!K146,1,0) -> 0 | X146: =IF(RAND()<(K135^quadratic_condition*L135-$T$21)*$T$22*(1+pref_attach_on*SUM($X$35:X145)),1,0) -> 0 | Y146: 112 | Z146: =IF(AND(SUM($X$35:X145)=0,X146=1),Y146,"") -> 
G147: 124 | H147: 12.4 | I147: 0.9511469298 | J147: 0.8471390673 | K147: 0.5223713428 | L147: 1.143178844 | M147: 0.2228470765 | N147: 0.01446233672 | O147: 0.0294473993 | P147: 0.02423515073 | Q147: 0.02887495704 | R147: 0.03882648447 | S147: 0 | T147: 0 | W147: =IF(RAND()<poisson_parameter*model!K147,1,0) -> 0 | X147: =IF(RAND()<(K136^quadratic_condition*L136-$T$21)*$T$22*(1+pref_attach_on*SUM($X$35:X146)),1,0) -> 0 | Y147: 113 | Z147: =IF(AND(SUM($X$35:X146)=0,X147=1),Y147,"") -> 
G148: 125 | H148: 12.5 | I148: 0.953871317 | J148: 0.8471454365 | K148: 0.5305891192 | L148: 1.151581763 | M148: 0.2291630111 | N148: 0.01446233672 | O148: 0.0294473993 | P148: 0.02423515073 | Q148: 0.02887495704 | R148: 0.03882648447 | S148: 0 | T148: 0 | W148: =IF(RAND()<poisson_parameter*model!K148,1,0) -> 0 | X148: =IF(RAND()<(K137^quadratic_condition*L137-$T$21)*$T$22*(1+pref_attach_on*SUM($X$35:X147)),1,0) -> 0 | Y148: 114 | Z148: =IF(AND(SUM($X$35:X147)=0,X148=1),Y148,"") -> 
G149: 126 | H149: 12.6 | I149: 0.9565202675 | J149: 0.8470910876 | K149: 0.5387229042 | L149: 1.159633967 | M149: 0.2356012742 | N149: 0.01446233672 | O149: 0.0294473993 | P149: 0.02423515073 | Q149: 0.02887495704 | R149: 0.03882648447 | S149: 0 | T149: 0 | W149: =IF(RAND()<poisson_parameter*model!K149,1,0) -> 0 | X149: =IF(RAND()<(K138^quadratic_condition*L138-$T$21)*$T$22*(1+pref_attach_on*SUM($X$35:X148)),1,0) -> 0 | Y149: 115 | Z149: =IF(AND(SUM($X$35:X148)=0,X149=1),Y149,"") -> 
G150: 127 | H150: 12.7 | I150: 0.9590981721 | J150: 0.8469810857 | K150: 0.5467659676 | L150: 1.167344775 | M150: 0.2421610682 | N150: 0.01446233672 | O150: 0.0294473993 | P150: 0.02423515073 | Q150: 0.02887495704 | R150: 0.03882648447 | S150: 0 | T150: 0 | W150: =IF(RAND()<poisson_parameter*model!K150,1,0) -> 0 | X150: =IF(RAND()<(K139^quadratic_condition*L139-$T$21)*$T$22*(1+pref_attach_on*SUM($X$35:X149)),1,0) -> 0 | Y150: 116 | Z150: =IF(AND(SUM($X$35:X149)=0,X150=1),Y150,"") -> 
G151: 128 | H151: 12.8 | I151: 0.9616092524 | J151: 0.8468202273 | K151: 0.5547117793 | L151: 1.174723786 | M151: 0.2488414033 | N151: 0.01446233672 | O151: 0.0294473993 | P151: 0.02423515073 | Q151: 0.02887495704 | R151: 0.03882648447 | S151: 0 | T151: 0 | W151: =IF(RAND()<poisson_parameter*model!K151,1,0) -> 0 | X151: =IF(RAND()<(K140^quadratic_condition*L140-$T$21)*$T$22*(1+pref_attach_on*SUM($X$35:X150)),1,0) -> 0 | Y151: 117 | Z151: =IF(AND(SUM($X$35:X150)=0,X151=1),Y151,"") -> 
G152: 129 | H152: 12.9 | I152: 0.9640575619 | J152: 0.8466130462 | K152: 0.5625540261 | L152: 1.181780817 | M152: 0.2556410921 | N152: 0.01446233672 | O152: 0.0294473993 | P152: 0.02423515073 | Q152: 0.02887495704 | R152: 0.03882648447 | S152: 0 | T152: 0 | W152: =IF(RAND()<poisson_parameter*model!K152,1,0) -> 0 | X152: =IF(RAND()<(K141^quadratic_condition*L141-$T$21)*$T$22*(1+pref_attach_on*SUM($X$35:X151)),1,0) -> 0 | Y152: 118 | Z152: =IF(AND(SUM($X$35:X151)=0,X152=1),Y152,"") -> 
G153: 130 | H153: 13 | I153: 0.9664469874 | J153: 0.8463638206 | K153: 0.5702866286 | L153: 1.188525841 | M153: 0.2625587459 | N153: 0.01446233672 | O153: 0.0294473993 | P153: 0.02423515073 | Q153: 0.02887495704 | R153: 0.03882648447 | S153: 0 | T153: 0 | W153: =IF(RAND()<poisson_parameter*model!K153,1,0) -> 0 | X153: =IF(RAND()<(K142^quadratic_condition*L142-$T$21)*$T$22*(1+pref_attach_on*SUM($X$35:X152)),1,0) -> 0 | Y153: 119 | Z153: =IF(AND(SUM($X$35:X152)=0,X153=1),Y153,"") -> 
G154: 131 | H154: 13.1 | I154: 0.9687812507 | J154: 0.8460765811 | K154: 0.5779037555 | L154: 1.194968933 | M154: 0.2695927706 | N154: 0.01446233672 | O154: 0.0294473993 | P154: 0.02423515073 | Q154: 0.02887495704 | R154: 0.03882648447 | S154: 0 | T154: =S154-S153 -> 0 | W154: =IF(RAND()<poisson_parameter*model!K154,1,0) -> 0 | X154: =IF(RAND()<(K143^quadratic_condition*L143-$T$21)*$T$22*(1+pref_attach_on*SUM($X$35:X153)),1,0) -> 0 | Y154: 120 | Z154: =IF(AND(SUM($X$35:X153)=0,X154=1),Y154,"") -> 
G155: 132 | H155: 13.2 | I155: 0.971063911 | J155: 0.8457551181 | K155: 0.5853998381 | L155: 1.201120215 | M155: 0.2767413641 | N155: 0.01446233672 | O155: 0.0294473993 | P155: 0.02423515073 | Q155: 0.02887495704 | R155: 0.03882648447 | S155: 0 | T155: 0 | W155: =IF(RAND()<poisson_parameter*model!K155,1,0) -> 0 | X155: =IF(RAND()<(K144^quadratic_condition*L144-$T$21)*$T$22*(1+pref_attach_on*SUM($X$35:X154)),1,0) -> 0 | Y155: 121 | Z155: =IF(AND(SUM($X$35:X154)=0,X155=1),Y155,"") -> 
G156: 133 | H156: 13.3 | I156: 0.9732983667 | J156: 0.8454029905 | K156: 0.5927695821 | L156: 1.206989815 | M156: 0.2840025135 | N156: 0.01446233672 | O156: 0.0294473993 | P156: 0.02423515073 | Q156: 0.02887495704 | R156: 0.03882648447 | S156: 0 | T156: 0 | W156: =IF(RAND()<poisson_parameter*model!K156,1,0) -> 0 | X156: =IF(RAND()<(K145^quadratic_condition*L145-$T$21)*$T$22*(1+pref_attach_on*SUM($X$35:X155)),1,0) -> 0 | Y156: 122 | Z156: =IF(AND(SUM($X$35:X155)=0,X156=1),Y156,"") -> 
G157: 134 | H157: 13.4 | I157: 0.9754878585 | J157: 0.8450235346 | K157: 0.6000079787 | L157: 1.21258782 | M157: 0.2913739936 | N157: 0.01446233672 | O157: 0.0294473993 | P157: 0.02423515073 | Q157: 0.02887495704 | R157: 0.03882648447 | S157: 0 | T157: 0 | W157: =IF(RAND()<poisson_parameter*model!K157,1,0) -> 0 | X157: =IF(RAND()<(K146^quadratic_condition*L146-$T$21)*$T$22*(1+pref_attach_on*SUM($X$35:X156)),1,0) -> 0 | Y157: 123 | Z157: =IF(AND(SUM($X$35:X156)=0,X157=1),Y157,"") -> 
G158: 135 | H158: 13.5 | I158: 0.9776354718 | J158: 0.8446198725 | K158: 0.6071103148 | L158: 1.217924243 | M158: 0.2988533657 | N158: 0.01446233672 | O158: 0.0294473993 | P158: 0.02423515073 | Q158: 0.02887495704 | R158: 0.03882648447 | S158: 0 | T158: 0 | W158: =IF(RAND()<poisson_parameter*model!K158,1,0) -> 0 | X158: =IF(RAND()<(K147^quadratic_condition*L147-$T$21)*$T$22*(1+pref_attach_on*SUM($X$35:X157)),1,0) -> 0 | Y158: 124 | Z158: =IF(AND(SUM($X$35:X157)=0,X158=1),Y158,"") -> 
G159: 136 | H159: 13.6 | I159: 0.9797441395 | J159: 0.8441949213 | K159: 0.6140721804 | L159: 1.223008985 | M159: 0.3064379777 | N159: 0.01446233672 | O159: 0.0294473993 | P159: 0.02423515073 | Q159: 0.02887495704 | R159: 0.03882648447 | S159: 0 | T159: 0 | W159: =IF(RAND()<poisson_parameter*model!K159,1,0) -> 0 | X159: =IF(RAND()<(K148^quadratic_condition*L148-$T$21)*$T$22*(1+pref_attach_on*SUM($X$35:X158)),1,0) -> 0 | Y159: 125 | Z159: =IF(AND(SUM($X$35:X158)=0,X159=1),Y159,"") -> 
G160: 137 | H160: 13.7 | I160: 0.9818166453 | J160: 0.8437514022 | K160: 0.6208894759 | L160: 1.227851812 | M160: 0.3141249644 | N160: 0.01446233672 | O160: 0.0294473993 | P160: 0.02423515073 | Q160: 0.02887495704 | R160: 0.03882648447 | S160: 0 | T160: 0 | W160: =IF(RAND()<poisson_parameter*model!K160,1,0) -> 0 | X160: =IF(RAND()<(K149^quadratic_condition*L149-$T$21)*$T$22*(1+pref_attach_on*SUM($X$35:X159)),1,0) -> 0 | Y160: 126 | Z160: =IF(AND(SUM($X$35:X159)=0,X160=1),Y160,"") -> 
G161: 138 | H161: 13.8 | I161: 0.9838556267 | J161: 0.8432918491 | K161: 0.6275584177 | L161: 1.232462323 | M161: 0.3219112489 | N161: 0.01446233672 | O161: 0.0294473993 | P161: 0.02423515073 | Q161: 0.02887495704 | R161: 0.03882648447 | S161: 0 | T161: 0 | W161: =IF(RAND()<poisson_parameter*model!K161,1,0) -> 0 | X161: =IF(RAND()<(K150^quadratic_condition*L150-$T$21)*$T$22*(1+pref_attach_on*SUM($X$35:X160)),1,0) -> 0 | Y161: 127 | Z161: =IF(AND(SUM($X$35:X160)=0,X161=1),Y161,"") -> 
G162: 139 | H162: 13.9 | I162: 0.9858635777 | J162: 0.8428186176 | K162: 0.6340755416 | L162: 1.236849936 | M162: 0.3297935452 | N162: 0.01446233672 | O162: 0.0294473993 | P162: 0.02423515073 | Q162: 0.02887495704 | R162: 0.03882648447 | S162: 0 | T162: 0 | W162: =IF(RAND()<poisson_parameter*model!K162,1,0) -> 0 | X162: =IF(RAND()<(K151^quadratic_condition*L151-$T$21)*$T$22*(1+pref_attach_on*SUM($X$35:X161)),1,0) -> 0 | Y162: 128 | Z162: =IF(AND(SUM($X$35:X161)=0,X162=1),Y162,"") -> 
G163: 140 | H163: 14 | I163: 0.9878428529 | J163: 0.8423338941 | K163: 0.6404377059 | L163: 1.24102386 | M163: 0.3377683608 | N163: 0.01446233672 | O163: 0.0294473993 | P163: 0.02423515073 | Q163: 0.02887495704 | R163: 0.03882648447 | S163: 0 | T163: 0 | W163: =IF(RAND()<poisson_parameter*model!K163,1,0) -> 0 | X163: =IF(RAND()<(K152^quadratic_condition*L152-$T$21)*$T$22*(1+pref_attach_on*SUM($X$35:X162)),1,0) -> 0 | Y163: 129 | Z163: =IF(AND(SUM($X$35:X162)=0,X163=1),Y163,"") -> 
G164: 141 | H164: 14.1 | I164: 0.9897956698 | J164: 0.8418397038 | K164: 0.6466420923 | L164: 1.244993087 | M164: 0.3458320011 | N164: 0.01446233672 | O164: 0.0294473993 | P164: 0.02423515073 | Q164: 0.02887495704 | R164: 0.03882648447 | S164: 0 | T164: 0 | W164: =IF(RAND()<poisson_parameter*model!K164,1,0) -> 0 | X164: =IF(RAND()<(K153^quadratic_condition*L153-$T$21)*$T$22*(1+pref_attach_on*SUM($X$35:X163)),1,0) -> 0 | Y164: 130 | Z164: =IF(AND(SUM($X$35:X163)=0,X164=1),Y164,"") -> 
G165: 142 | H165: 14.2 | I165: 0.991724113 | J165: 0.8413379198 | K165: 0.6526862065 | L165: 1.248766377 | M165: 0.3539805741 | N165: 0.01446233672 | O165: 0.0294473993 | P165: 0.02423515073 | Q165: 0.02887495704 | R165: 0.03882648447 | S165: 0 | T165: 0 | W165: =IF(RAND()<poisson_parameter*model!K165,1,0) -> 0 | X165: =IF(RAND()<(K154^quadratic_condition*L154-$T$21)*$T$22*(1+pref_attach_on*SUM($X$35:X164)),1,0) -> 0 | Y165: 131 | Z165: =IF(AND(SUM($X$35:X164)=0,X165=1),Y165,"") -> 
G166: 143 | H166: 14.3 | I166: 0.9936301369 | J166: 0.8408302705 | K166: 0.6585678762 | L166: 1.252352247 | M166: 0.3622099963 | N166: 0.01446233672 | O166: 0.0294473993 | P166: 0.02423515073 | Q166: 0.02887495704 | R166: 0.03882648447 | S166: 0 | T166: 0 | W166: =IF(RAND()<poisson_parameter*model!K166,1,0) -> 0 | X166: =IF(RAND()<(K155^quadratic_condition*L155-$T$21)*$T$22*(1+pref_attach_on*SUM($X$35:X165)),1,0) -> 0 | Y166: 132 | Z166: =IF(AND(SUM($X$35:X165)=0,X166=1),Y166,"") -> 
G167: 144 | H167: 14.4 | I167: 0.9955155693 | J167: 0.8403183485 | K167: 0.6642852491 | L167: 1.255758961 | M167: 0.3705159993 | N167: 0.01446233672 | O167: 0.0294473993 | P167: 0.02423515073 | Q167: 0.02887495704 | R167: 0.03882648447 | S167: 0 | T167: 0 | W167: =IF(RAND()<poisson_parameter*model!K167,1,0) -> 0 | X167: =IF(RAND()<(K156^quadratic_condition*L156-$T$21)*$T$22*(1+pref_attach_on*SUM($X$35:X166)),1,0) -> 0 | Y167: 133 | Z167: =IF(AND(SUM($X$35:X166)=0,X167=1),Y167,"") -> 
G168: 145 | H168: 14.5 | I168: 0.9973821149 | J168: 0.8398036174 | K168: 0.6698367892 | L168: 1.25899453 | M168: 0.3788941373 | N168: 0.01446233672 | O168: 0.0294473993 | P168: 0.02423515073 | Q168: 0.02887495704 | R168: 0.03882648447 | S168: 0 | T168: 0 | W168: =IF(RAND()<poisson_parameter*model!K168,1,0) -> 0 | X168: =IF(RAND()<(K157^quadratic_condition*L157-$T$21)*$T$22*(1+pref_attach_on*SUM($X$35:X167)),1,0) -> 0 | Y168: 134 | Z168: =IF(AND(SUM($X$35:X167)=0,X168=1),Y168,"") -> 
G169: 146 | H169: 14.6 | I169: 0.9992313585 | J169: 0.83928742 | K169: 0.675221272 | L169: 1.262066702 | M169: 0.3873397954 | N169: 0.01446233672 | O169: 0.0294473993 | P169: 0.02423515073 | Q169: 0.02887495704 | R169: 0.03882648447 | S169: 0 | T169: 0 | W169: =IF(RAND()<poisson_parameter*model!K169,1,0) -> 0 | X169: =IF(RAND()<(K158^quadratic_condition*L158-$T$21)*$T$22*(1+pref_attach_on*SUM($X$35:X168)),1,0) -> 0 | Y169: 135 | Z169: =IF(AND(SUM($X$35:X168)=0,X169=1),Y169,"") -> 
G170: 147 | H170: 14.7 | I170: 1.001064769 | J170: 0.8387709849 | K170: 0.6804377791 | L170: 1.264982966 | M170: 0.3958481992 | N170: 0.01446233672 | O170: 0.0294473993 | P170: 0.02423515073 | Q170: 0.02887495704 | R170: 0.04028840174 | S170: 0 | T170: 0 | W170: =IF(RAND()<poisson_parameter*model!K170,1,0) -> 0 | X170: =IF(RAND()<(K159^quadratic_condition*L159-$T$21)*$T$22*(1+pref_attach_on*SUM($X$35:X169)),1,0) -> 0 | Y170: 136 | Z170: =IF(AND(SUM($X$35:X169)=0,X170=1),Y170,"") -> 
G171: 148 | H171: 14.8 | I171: 1.002883701 | J171: 0.8382554338 | K171: 0.6854856915 | L171: 1.267750542 | M171: 0.4044144242 | N171: 0.01446233672 | O171: 0.0294473993 | P171: 0.02423515073 | Q171: 0.02887495704 | R171: 0.04180246544 | S171: 0 | T171: 0 | W171: =IF(RAND()<poisson_parameter*model!K171,1,0) -> 0 | X171: =IF(RAND()<(K160^quadratic_condition*L160-$T$21)*$T$22*(1+pref_attach_on*SUM($X$35:X170)),1,0) -> 0 | Y171: 137 | Z171: =IF(AND(SUM($X$35:X170)=0,X171=1),Y171,"") -> 
G172: 149 | H172: 14.9 | I172: 1.004689401 | J172: 0.8377417878 | K172: 0.6903646818 | L172: 1.270376393 | M172: 0.4130334072 | N172: 0.01446233672 | O172: 0.0294473993 | P172: 0.02423515073 | Q172: 0.02887495704 | R172: 0.04337035057 | S172: 0 | T172: 0 | W172: =IF(RAND()<poisson_parameter*model!K172,1,0) -> 0 | X172: =IF(RAND()<(K161^quadratic_condition*L161-$T$21)*$T$22*(1+pref_attach_on*SUM($X$35:X171)),1,0) -> 0 | Y172: 138 | Z172: =IF(AND(SUM($X$35:X171)=0,X172=1),Y172,"") -> 
G173: 150 | H173: 15 | I173: 1.006483008 | J173: 0.8372309741 | K173: 0.6950747066 | L173: 1.272867218 | M173: 0.4216999571 | N173: 0.01446233672 | O173: 0.0294473993 | P173: 0.02423515073 | Q173: 0.02887495704 | R173: 0.04499377137 | S173: 0 | T173: 0 | W173: =IF(RAND()<poisson_parameter*model!K173,1,0) -> 0 | X173: =IF(RAND()<(K162^quadratic_condition*L162-$T$21)*$T$22*(1+pref_attach_on*SUM($X$35:X172)),1,0) -> 0 | Y173: 139 | Z173: =IF(AND(SUM($X$35:X172)=0,X173=1),Y173,"") -> 
G174: 151 | H174: 15.1 | I174: 1.008265561 | J174: 0.8367238316 | K174: 0.6996159971 | L174: 1.275229458 | M174: 0.4304087675 | N174: 0.01446233672 | O174: 0.0294473993 | P174: 0.02423515073 | Q174: 0.02887495704 | R174: 0.04667448102 | S174: 0 | T174: 0 | W174: =IF(RAND()<poisson_parameter*model!K174,1,0) -> 0 | X174: =IF(RAND()<(K163^quadratic_condition*L163-$T$21)*$T$22*(1+pref_attach_on*SUM($X$35:X173)),1,0) -> 0 | Y174: 140 | Z174: =IF(AND(SUM($X$35:X173)=0,X174=1),Y174,"") -> 
G175: 152 | H175: 15.2 | I175: 1.010037995 | J175: 0.8362211168 | K175: 0.7039890497 | L175: 1.277469299 | M175: 0.4391544292 | N175: 0.01446233672 | O175: 0.0294473993 | P175: 0.02423515073 | Q175: 0.02887495704 | R175: 0.04841427132 | S175: 0 | T175: 0 | W175: =IF(RAND()<poisson_parameter*model!K175,1,0) -> 0 | X175: =IF(RAND()<(K164^quadratic_condition*L164-$T$21)*$T$22*(1+pref_attach_on*SUM($X$35:X174)),1,0) -> 0 | Y175: 141 | Z175: =IF(AND(SUM($X$35:X174)=0,X175=1),Y175,"") -> 
G176: 153 | H176: 15.3 | I176: 1.011801154 | J176: 0.8357235097 | K176: 0.7081946158 | L176: 1.279592677 | M176: 0.4479314435 | N176: 0.01446233672 | O176: 0.0294473993 | P176: 0.02423515073 | Q176: 0.02887495704 | R176: 0.05021497217 | S176: 0 | T176: 0 | W176: =IF(RAND()<poisson_parameter*model!K176,1,0) -> 0 | X176: =IF(RAND()<(K165^quadratic_condition*L165-$T$21)*$T$22*(1+pref_attach_on*SUM($X$35:X175)),1,0) -> 0 | Y176: 142 | Z176: =IF(AND(SUM($X$35:X175)=0,X176=1),Y176,"") -> 
G177: 154 | H177: 15.4 | I177: 1.013555786 | J177: 0.8352316182 | K177: 0.7122336912 | L177: 1.281605285 | M177: 0.456734236 | N177: 0.01530235328 | O177: 0.0294473993 | P177: 0.02423515073 | Q177: 0.02887495704 | R177: 0.05207845091 | S177: 0 | T177: 0 | W177: =IF(RAND()<poisson_parameter*model!K177,1,0) -> 0 | X177: =IF(RAND()<(K166^quadratic_condition*L166-$T$21)*$T$22*(1+pref_attach_on*SUM($X$35:X176)),1,0) -> 0 | Y177: 143 | Z177: =IF(AND(SUM($X$35:X176)=0,X177=1),Y177,"") -> 
G178: 155 | H178: 15.5 | I178: 1.015302553 | J178: 0.8347459836 | K178: 0.7161075054 | L178: 1.283512572 | M178: 0.4655571703 | N178: 0.01619005617 | O178: 0.0294473993 | P178: 0.02423515073 | Q178: 0.02887495704 | R178: 0.0540066116 | S178: 0 | T178: 0 | W178: =IF(RAND()<poisson_parameter*model!K178,1,0) -> 0 | X178: =IF(RAND()<(K167^quadratic_condition*L167-$T$21)*$T$22*(1+pref_attach_on*SUM($X$35:X177)),1,0) -> 0 | Y178: 144 | Z178: =IF(AND(SUM($X$35:X177)=0,X178=1),Y178,"") -> 
G179: 156 | H179: 15.6 | I179: 1.017042028 | J179: 0.8342670854 | K179: 0.7198175097 | L179: 1.285319756 | M179: 0.474394563 | N179: 0.01712808137 | O179: 0.0294473993 | P179: 0.02423515073 | Q179: 0.02887495704 | R179: 0.05600139403 | S179: 0 | T179: 0 | W179: =IF(RAND()<poisson_parameter*model!K179,1,0) -> 0 | X179: =IF(RAND()<(K168^quadratic_condition*L168-$T$21)*$T$22*(1+pref_attach_on*SUM($X$35:X178)),1,0) -> 0 | Y179: 145 | Z179: =IF(AND(SUM($X$35:X178)=0,X179=1),Y179,"") -> 
G180: 157 | H180: 15.7 | I180: 1.018774706 | J180: 0.833795345 | K180: 0.7233653662 | L180: 1.287031828 | M180: 0.4832406978 | N180: 0.01811920327 | O180: 0.0294473993 | P180: 0.02423515073 | Q180: 0.02887495704 | R180: 0.05806477269 | S180: 0 | T180: 0 | W180: =IF(RAND()<poisson_parameter*model!K180,1,0) -> 0 | X180: =IF(RAND()<(K169^quadratic_condition*L169-$T$21)*$T$22*(1+pref_attach_on*SUM($X$35:X179)),1,0) -> 0 | Y180: 146 | Z180: =IF(AND(SUM($X$35:X179)=0,X180=1),Y180,"") -> 
G181: 158 | H181: 15.8 | I181: 1.020501001 | J181: 0.8333311306 | K181: 0.7267529356 | L181: 1.288653555 | M181: 0.4920898408 | N181: 0.01916634095 | O181: 0.0294473993 | P181: 0.02423515073 | Q181: 0.02887495704 | R181: 0.06019875542 | S181: 0 | T181: 0 | W181: =IF(RAND()<poisson_parameter*model!K181,1,0) -> 0 | X181: =IF(RAND()<(K170^quadratic_condition*L170-$T$21)*$T$22*(1+pref_attach_on*SUM($X$35:X180)),1,0) -> 0 | Y181: 147 | Z181: =IF(AND(SUM($X$35:X180)=0,X181=1),Y181,"") -> 
G182: 159 | H182: 15.9 | I182: 1.022221251 | J182: 0.8328747608 | K182: 0.7299822652 | L182: 1.290189494 | M182: 0.5009362551 | N182: 0.02027256453 | O182: 0.0294473993 | P182: 0.02423515073 | Q182: 0.02887495704 | R182: 0.06240538201 | S182: 0 | T182: 0 | W182: =IF(RAND()<poisson_parameter*model!K182,1,0) -> 0 | X182: =IF(RAND()<(K171^quadratic_condition*L171-$T$21)*$T$22*(1+pref_attach_on*SUM($X$35:X181)),1,0) -> 0 | Y182: 148 | Z182: =IF(AND(SUM($X$35:X181)=0,X182=1),Y182,"") -> 
G183: 160 | H183: 16 | I183: 1.023935725 | J183: 0.8324265085 | K183: 0.7330555775 | L183: 1.291643991 | M183: 0.5097742157 | N183: 0.02144110165 | O183: 0.0294473993 | P183: 0.02423515073 | Q183: 0.02887495704 | R183: 0.06468672254 | S183: 0 | T183: 0 | W183: =IF(RAND()<poisson_parameter*model!K183,1,0) -> 0 | X183: =IF(RAND()<(K172^quadratic_condition*L172-$T$21)*$T$22*(1+pref_attach_on*SUM($X$35:X182)),1,0) -> 0 | Y183: 149 | Z183: =IF(AND(SUM($X$35:X182)=0,X183=1),Y183,"") -> 
G184: 161 | H184: 16.1 | I184: 1.025644622 | J184: 0.831986604 | K184: 0.7359752571 | L184: 1.293021195 | M184: 0.5185980246 | N184: 0.02267534412 | O184: 0.0294473993 | P184: 0.02423515073 | Q184: 0.02887495704 | R184: 0.06704487545 | S184: 0 | T184: 0 | W184: =IF(RAND()<poisson_parameter*model!K184,1,0) -> 0 | X184: =IF(RAND()<(K173^quadratic_condition*L173-$T$21)*$T$22*(1+pref_attach_on*SUM($X$35:X183)),1,0) -> 0 | Y184: 150 | Z184: =IF(AND(SUM($X$35:X183)=0,X184=1),Y184,"") -> 
G185: 162 | H185: 16.2 | I185: 1.027348077 | J185: 0.8315552387 | K185: 0.7387438399 | L185: 1.294325059 | M185: 0.5274020249 | N185: 0.02397885453 | O185: 0.0294473993 | P185: 0.02423515073 | Q185: 0.02887495704 | R185: 0.06948196554 | S185: 0 | T185: 0 | W185: =IF(RAND()<poisson_parameter*model!K185,1,0) -> 0 | X185: =IF(RAND()<(K174^quadratic_condition*L174-$T$21)*$T$22*(1+pref_attach_on*SUM($X$35:X184)),1,0) -> 0 | Y185: 151 | Z185: =IF(AND(SUM($X$35:X184)=0,X185=1),Y185,"") -> 
G186: 163 | H186: 16.3 | I186: 1.029046163 | J186: 0.8311325681 | K186: 0.7413640002 | L186: 1.295559353 | M186: 0.5361806158 | N186: 0.02535537301 | O186: 0.0294473993 | P186: 0.02423515073 | Q186: 0.02887495704 | R186: 0.07200014159 | S186: 0 | T186: 0 | W186: =IF(RAND()<poisson_parameter*model!K186,1,0) -> 0 | X186: =IF(RAND()<(K175^quadratic_condition*L175-$T$21)*$T$22*(1+pref_attach_on*SUM($X$35:X185)),1,0) -> 0 | Y186: 152 | Z186: =IF(AND(SUM($X$35:X185)=0,X186=1),Y186,"") -> 
G187: 164 | H187: 16.4 | I187: 1.030738895 | J187: 0.8307187146 | K187: 0.7438385393 | L187: 1.296727664 | M187: 0.5449282661 | N187: 0.02680882389 | O187: 0.0294473993 | P187: 0.02423515073 | Q187: 0.02887495704 | R187: 0.07460157381 | S187: 0 | T187: 0 | W187: =IF(RAND()<poisson_parameter*model!K187,1,0) -> 0 | X187: =IF(RAND()<(K176^quadratic_condition*L176-$T$21)*$T$22*(1+pref_attach_on*SUM($X$35:X186)),1,0) -> 0 | Y187: 153 | Z187: =IF(AND(SUM($X$35:X186)=0,X187=1),Y187,"") -> 
G188: 165 | H188: 16.5 | I188: 1.032426235 | J188: 0.8303137702 | K188: 0.7461703739 | L188: 1.297833411 | M188: 0.5536395285 | N188: 0.02834332241 | O188: 0.0294473993 | P188: 0.02423515073 | Q188: 0.02887495704 | R188: 0.07728845101 | S188: 0 | T188: 0 | W188: =IF(RAND()<poisson_parameter*model!K188,1,0) -> 0 | X188: =IF(RAND()<(K177^quadratic_condition*L177-$T$21)*$T$22*(1+pref_attach_on*SUM($X$35:X187)),1,0) -> 0 | Y188: 154 | Z188: =IF(AND(SUM($X$35:X187)=0,X188=1),Y188,"") -> 
G189: 166 | H189: 16.6 | I189: 1.034108094 | J189: 0.829917799 | K189: 0.7483625245 | L189: 1.298879844 | M189: 0.5623090521 | N189: 0.02996318132 | O189: 0.0294473993 | P189: 0.02423515073 | Q189: 0.02887495704 | R189: 0.08006297756 | S189: 0 | T189: 0 | W189: =IF(RAND()<poisson_parameter*model!K189,1,0) -> 0 | X189: =IF(RAND()<(K178^quadratic_condition*L178-$T$21)*$T$22*(1+pref_attach_on*SUM($X$35:X188)),1,0) -> 0 | Y189: 155 | Z189: =IF(AND(SUM($X$35:X188)=0,X189=1),Y189,"") -> 
G190: 167 | H190: 16.7 | I190: 1.035784333 | J190: 0.8295308399 | K190: 0.7504181043 | L190: 1.299870058 | M190: 0.5709315956 | N190: 0.03167291731 | O190: 0.0294473993 | P190: 0.02423515073 | Q190: 0.02887495704 | R190: 0.08292736997 | S190: 0 | T190: 0 | W190: =IF(RAND()<poisson_parameter*model!K190,1,0) -> 0 | X190: =IF(RAND()<(K179^quadratic_condition*L179-$T$21)*$T$22*(1+pref_attach_on*SUM($X$35:X189)),1,0) -> 0 | Y190: 156 | Z190: =IF(AND(SUM($X$35:X189)=0,X190=1),Y190,"") -> 
G191: 168 | H191: 16.8 | I191: 1.037454771 | J191: 0.8291529084 | K191: 0.7523403083 | L191: 1.300806993 | M191: 0.5795020391 | N191: 0.03347725733 | O191: 0.0294473993 | P191: 0.02423515073 | Q191: 0.02887495704 | R191: 0.08588385329 | S191: 0 | T191: 0 | W191: =IF(RAND()<poisson_parameter*model!K191,1,0) -> 0 | X191: =IF(RAND()<(K180^quadratic_condition*L180-$T$21)*$T$22*(1+pref_attach_on*SUM($X$35:X190)),1,0) -> 0 | Y191: 157 | Z191: =IF(AND(SUM($X$35:X190)=0,X191=1),Y191,"") -> 
G192: 169 | H192: 16.9 | I192: 1.039119186 | J192: 0.8287839989 | K192: 0.7541324025 | L192: 1.301693446 | M192: 0.5880153957 | N192: 0.0353811445 | O192: 0.0294473993 | P192: 0.02423515073 | Q192: 0.02887495704 | R192: 0.08893465714 | S192: 0 | T192: 0 | W192: =IF(RAND()<poisson_parameter*model!K192,1,0) -> 0 | X192: =IF(RAND()<(K181^quadratic_condition*L181-$T$21)*$T$22*(1+pref_attach_on*SUM($X$35:X191)),1,0) -> 0 | Y192: 158 | Z192: =IF(AND(SUM($X$35:X191)=0,X192=1),Y192,"") -> 
G193: 170 | H193: 17 | I193: 1.040777318 | J193: 0.8284240867 | K193: 0.7557977137 | L193: 1.302532073 | M193: 0.596466822 | N193: 0.03738974382 | O193: 0.0294473993 | P193: 0.02423515073 | Q193: 0.02887495704 | R193: 0.09208201146 | S193: 0 | T193: 0 | W193: =IF(RAND()<poisson_parameter*model!K193,1,0) -> 0 | X193: =IF(RAND()<(K182^quadratic_condition*L182-$T$21)*$T$22*(1+pref_attach_on*SUM($X$35:X192)),1,0) -> 0 | Y193: 159 | Z193: =IF(AND(SUM($X$35:X192)=0,X193=1),Y193,"") -> 
G194: 171 | H194: 17.1 | I194: 1.042428871 | J194: 0.8280731296 | K194: 0.7573396199 | L194: 1.303325397 | M194: 0.6048516284 | N194: 0.03950844737 | O194: 0.0294473993 | P194: 0.02423515073 | Q194: 0.02887495704 | R194: 0.09532814198 | S194: 0 | T194: 0 | W194: =IF(RAND()<poisson_parameter*model!K194,1,0) -> 0 | X194: =IF(RAND()<(K183^quadratic_condition*L183-$T$21)*$T$22*(1+pref_attach_on*SUM($X$35:X193)),1,0) -> 0 | Y194: 160 | Z194: =IF(AND(SUM($X$35:X193)=0,X194=1),Y194,"") -> 
G195: 172 | H195: 17.2 | I195: 1.044073522 | J195: 0.8277310698 | K195: 0.7587615398 | L195: 1.304075816 | M195: 0.613165288 | N195: 0.04174287899 | O195: 0.0294473993 | P195: 0.02423515073 | Q195: 0.02887495704 | R195: 0.09867526532 | S195: 0 | T195: 0 | W195: =IF(RAND()<poisson_parameter*model!K195,1,0) -> 0 | X195: =IF(RAND()<(K184^quadratic_condition*L184-$T$21)*$T$22*(1+pref_attach_on*SUM($X$35:X194)),1,0) -> 0 | Y195: 161 | Z195: =IF(AND(SUM($X$35:X194)=0,X195=1),Y195,"") -> 
G196: 173 | H196: 17.3 | I196: 1.045710915 | J196: 0.8273978352 | K196: 0.7600669245 | L196: 1.304785604 | M196: 0.6214034451 | N196: 0.04409889831 | O196: 0.0294473993 | P196: 0.02423515073 | Q196: 0.02887495704 | R196: 0.1021255838 | S196: 0 | T196: 0 | W196: =IF(RAND()<poisson_parameter*model!K196,1,0) -> 0 | X196: =IF(RAND()<(K185^quadratic_condition*L185-$T$21)*$T$22*(1+pref_attach_on*SUM($X$35:X195)),1,0) -> 0 | Y196: 162 | Z196: =IF(AND(SUM($X$35:X195)=0,X196=1),Y196,"") -> 
G197: 174 | H197: 17.4 | I197: 1.047340673 | J197: 0.827073341 | K197: 0.7612592483 | L197: 1.30545692 | M197: 0.6295619227 | N197: 0.04658260406 | O197: 0.0294473993 | P197: 0.02423515073 | Q197: 0.02887495704 | R197: 0.1056812798 | S197: 0 | T197: 0 | W197: =IF(RAND()<poisson_parameter*model!K197,1,0) -> 0 | X197: =IF(RAND()<(K186^quadratic_condition*L186-$T$21)*$T$22*(1+pref_attach_on*SUM($X$35:X196)),1,0) -> 0 | Y197: 163 | Z197: =IF(AND(SUM($X$35:X196)=0,X197=1),Y197,"") -> 
G198: 175 | H198: 17.5 | I198: 1.048962394 | J198: 0.8267574914 | K198: 0.7623420002 | L198: 1.306091814 | M198: 0.6376367296 | N198: 0.04920033647 | O198: 0.0294473993 | P198: 0.02423515073 | Q198: 0.02887495704 | R198: 0.1093445103 | S198: 0 | T198: 0 | W198: =IF(RAND()<poisson_parameter*model!K198,1,0) -> 0 | X198: =IF(RAND()<(K187^quadratic_condition*L187-$T$21)*$T$22*(1+pref_attach_on*SUM($X$35:X197)),1,0) -> 0 | Y198: 164 | Z198: =IF(AND(SUM($X$35:X197)=0,X198=1),Y198,"") -> 
G199: 176 | H199: 17.6 | I199: 1.050575661 | J199: 0.82645018 | K199: 0.7633186758 | L199: 1.306692229 | M199: 0.6456240655 | N199: 0.05195867862 | O199: 0.0294473993 | P199: 0.02423515073 | Q199: 0.02887495704 | R199: 0.1131174 | S199: 0 | T199: 0 | W199: =IF(RAND()<poisson_parameter*model!K199,1,0) -> 0 | X199: =IF(RAND()<(K188^quadratic_condition*L188-$T$21)*$T$22*(1+pref_attach_on*SUM($X$35:X198)),1,0) -> 0 | Y199: 165 | Z199: =IF(AND(SUM($X$35:X198)=0,X199=1),Y199,"") -> 
G200: 177 | H200: 17.7 | I200: 1.052180037 | J200: 0.8261512919 | K200: 0.7641927702 | L200: 1.307260008 | M200: 0.6535203267 | N200: 0.05486445663 | O200: 0.0294473993 | P200: 0.02423515073 | Q200: 0.02887495704 | R200: 0.1170020354 | S200: 0 | T200: 0 | W200: =IF(RAND()<poisson_parameter*model!K200,1,0) -> 0 | X200: =IF(RAND()<(K189^quadratic_condition*L189-$T$21)*$T$22*(1+pref_attach_on*SUM($X$35:X199)),1,0) -> 0 | Y200: 166 | Z200: =IF(AND(SUM($X$35:X199)=0,X200=1),Y200,"") -> 
... 822 more rows

Sheet results

Sheet Preparation

Sheet Explanation Output

Sheet Explanation Parameters

Sheet Running a Simulation
